Workbook

Sheet Январь
P1: Январь | X1: Экономия | Y1: Базовая норма расхода на 100 км | Z1: Базовая норма расхода на 1 мото/час
A2: Общество с ограниченной ответственностью "Втормет Царицыно" | R2: 1-я пол. | S2: 2018-01-01 | T2: 2018-01-18 | U2: =ТС!E5 -> 350 | V2: =SUMIFS(Январь[Выдано топливо, литр],Январь[Дата],">="&$S$2,Январь[Дата],"<="&$T$2)+IF(MONTH(T2)<>MONTH(S2),INDIRECT(TEXT(A7-1,"ММММ")&"!F69")-SUM(INDIRECT(TEXT(A7-1,"ММММ")&"!V1:V2")))+SUMIFS($U$7:$U$69,Январь[Дата],">="&$S$2,Январь[Дата],"<="&$T$2)+IF(MONTH(T2)<>MONTH(S2),INDIRECT(TEXT(A7-1,"ММММ")&"!F69")-SUM(INDIRECT(TEXT(A7-1,"ММММ")&"!V1:V2"))) -> 2300 | W2: =IF(V2=0,0,(SUMIFS($N$7:$N$69,$A$7:$A$69,">="&$S$2,$A$7:$A$69,"<="&$T$2))/(V2-U2+G7)) -> 0.7891304348 | X2: =SUMIFS(Январь[Отклонение от нормы (Перерасход(+), экономия(-)), литр],Январь[Дата],">="&$S$2,Январь[Дата],"<="&$T$2) -> 485 | Y2: =IF(Y4="Зима",VLOOKUP(Z4,Расчет[[Номер гос.регистрации / Заводской номер]:[Итога норма а/м "ЛЕТО"]],8,FALSE),VLOOKUP(Z4,Расчет[[Номер гос.регистрации / Заводской номер]:[Итога норма а/м "ЛЕТО"]],9,FALSE)) -> 0 | Z2: =IF(Y4="Зима",VLOOKUP(Z4,Расчет[[Номер гос.регистрации / Заводской номер]:[Итога норма а/м "ЛЕТО"]],13,FALSE),VLOOKUP(Z4,Расчет[[Номер гос.регистрации / Заводской номер]:[Итога норма а/м "ЛЕТО"]],14,FALSE)) -> 18.15
A3: Отчет водителя ломовоза с манипулятором | R3: 2-я пол. | S3: =T2+1 -> 2018-01-19 | T3: =INDEX(Январь[Дата],COUNT(Январь[Дата])) ->  | U3: =ТС!E6 -> 350 | V3: =SUMIFS(Январь[Выдано топливо, литр],Январь[Дата],">="&$S$3,Январь[Дата],"<="&$T$3)+IF(MONTH(T3)<>MONTH(S3),INDIRECT(TEXT(A7-1,"ММММ")&"!F38")-SUM(INDIRECT(TEXT(A7-1,"ММММ")&"!V1:V2")))+SUMIFS($U$7:$U$68,Январь[Дата],">="&$S$3,Январь[Дата],"<="&$T$3)+IF(MONTH(T3)<>MONTH(S3),INDIRECT(TEXT(A7-1,"ММММ")&"!F38")-SUM(INDIRECT(TEXT(A7-1,"ММММ")&"!V1:V2"))) ->  | W3: =IF(V3=0,0,(SUMIFS($N$7:$N$69,$A$7:$A$69,">="&$S$3,$A$7:$A$69,"<="&$T$3))/(V3-U3+U3)) ->  | X3: =SUMIFS(Январь[Отклонение от нормы (Перерасход(+), экономия(-)), литр],Январь[Дата],">="&$S$3,Январь[Дата],"<="&$T$3) -> 0
H4: за | I4: 2018 | O4: Фукс 350 c | S4: =IF(INDEX(Январь[Дата],COUNT(Январь[Дата]))=T3,"",T3+1) ->  | W4: =IFERROR(IF(S4="","",INDIRECT(TEXT(A7+40,"ММММ")&"!W2")),) ->  | Y4: Зима | Z4: Норма 1
A6: Дата | B6: ФИО водителя | C6: Показание одометра машины на начало дня, км | D6: Показание одометра машины на конец дня, км | E6: Пройдено за день, км | F6: Выдано топливо, литр | G6: Остаток топлива в баке на начало дня, литр | H6: Показание счетчика моточасов спецоборудования на начало дня, м/ч | I6: Показание счетчика моточасов спецоборудования на конец дня, м/ч | J6: Работа спецоборудования за день, м/ч | K6: Количество ходок | L6: Расход топлива на работу спецоборудования, литр | M6: Остаток топлива в баке на конец дня, литр | N6: Расход топлива по норме, литр | O6: Фактический расход топлива, литр | P6: Отклонение от нормы (Перерасход(+), экономия(-)), литр | R6: Дата | S6: Обнуление одометра, км | T6: Пройдено за день, км | U6: Выдано топливо, литр | V6: Обнуление счетчика моточасов спецоборудования, м/ч | W6: Работа спецоборудования за день, м/ч | X6: Расход топлива по норме, литр | Y6: Фактический расход топлива, литр | Z6: Дата
A7: =IF(ISEVEN(ROW(A1)),IFERROR(--(ROW(A1)/2&P$1&I$4),""),"") ->  | C7: =ТС!C5 -> 0 | G7: =ТС!E5 -> 350 | H7: =ТС!D5 -> 29170 | I7: 29170 | J7: =IF(W7="",Январь[[#This Row],[Показание счетчика моточасов спецоборудования на конец дня, м/ч]],Январь[[#This Row],[Показание счетчика моточасов спецоборудования на конец дня, м/ч]]+1)-Январь[[#This Row],[Показание счетчика моточасов спецоборудования на начало дня, м/ч]] -> 0 | L7: =IF(Январь[[#This Row],[Работа спецоборудования за день, м/ч]]="",Январь[[#This Row],[Остаток топлива в баке на начало дня, литр]],Январь[[#This Row],[Работа спецоборудования за день, м/ч]]*$Z$2) -> 0 | M7: =Январь[[#This Row],[Выдано топливо, литр]]+U7+Январь[[#This Row],[Остаток топлива в баке на начало дня, литр]] -> 350 | N7: =IFERROR(ROUND((Январь[[#This Row],[Пройдено за день, км]]*0.01*$Y$2+Январь[[#This Row],[Расход топлива на работу спецоборудования, литр]]),3)+X7,) -> 0 | O7: =IF(Январь[[#This Row],[Дата]]="","",IFERROR(ROUND(Январь[[#This Row],[Расход топлива по норме, литр]]/VLOOKUP(Январь[Дата],S$2:W$4,5),0)+Y7,)) ->  | P7: =IFERROR(Январь[[#This Row],[Фактический расход топлива, литр]]-Январь[[#This Row],[Расход топлива по норме, литр]],"") ->  | R7: =Январь[[#This Row],[Дата]] ->  | Z7: =Январь[[#This Row],[Дата]] -> 
A8: =IF(ISEVEN(ROW(A2)),IFERROR(--(ROW(A2)/2&P$1&I$4),""),"") -> 2018-01-01 | G8: =M7 -> 350 | H8: =I7 -> 29170 | I8: 29170 | J8: =IF(W8="",Январь[[#This Row],[Показание счетчика моточасов спецоборудования на конец дня, м/ч]],Январь[[#This Row],[Показание счетчика моточасов спецоборудования на конец дня, м/ч]]+1)-Январь[[#This Row],[Показание счетчика моточасов спецоборудования на начало дня, м/ч]] -> 0 | L8: =IF(Январь[[#This Row],[Работа спецоборудования за день, м/ч]]="",Январь[[#This Row],[Остаток топлива в баке на начало дня, литр]],Январь[[#This Row],[Работа спецоборудования за день, м/ч]]*$Z$2) -> 0 | M8: =Январь[[#This Row],[Выдано топливо, литр]]+U8+Январь[[#This Row],[Остаток топлива в баке на начало дня, литр]] -> 350 | N8: =IFERROR(ROUND((Январь[[#This Row],[Пройдено за день, км]]*0.01*$Y$2+Январь[[#This Row],[Расход топлива на работу спецоборудования, литр]]),3)+X8,) -> 0 | O8: =IF(Январь[[#This Row],[Дата]]="","",IFERROR(ROUND(Январь[[#This Row],[Расход топлива по норме, литр]]/VLOOKUP(Январь[Дата],S$2:W$4,5),0)+Y8,)) -> 0 | P8: =IFERROR(Январь[[#This Row],[Фактический расход топлива, литр]]-Январь[[#This Row],[Расход топлива по норме, литр]],"") -> 0 | R8: =Январь[[#This Row],[Дата]] -> 2018-01-01 | Z8: =Январь[[#This Row],[Дата]] -> 2018-01-01
A9: =IF(ISEVEN(ROW(A3)),IFERROR(--(ROW(A3)/2&P$1&I$4),""),"") ->  | C9: =IFERROR(IF(INDIRECT(TEXT(A6,"ММММ")&"!A7:A37")="","",IF(S6="",D6,S6)),"") ->  | G9: =M8 -> 350 | H9: =I8 -> 29170 | I9: 29170 | J9: =IF(W9="",Январь[[#This Row],[Показание счетчика моточасов спецоборудования на конец дня, м/ч]],Январь[[#This Row],[Показание счетчика моточасов спецоборудования на конец дня, м/ч]]+1)-Январь[[#This Row],[Показание счетчика моточасов спецоборудования на начало дня, м/ч]] -> 0 | L9: =IF(Январь[[#This Row],[Работа спецоборудования за день, м/ч]]="",Январь[[#This Row],[Остаток топлива в баке на начало дня, литр]],Январь[[#This Row],[Работа спецоборудования за день, м/ч]]*$Z$2) -> 0 | M9: =Январь[[#This Row],[Выдано топливо, литр]]+U9+Январь[[#This Row],[Остаток топлива в баке на начало дня, литр]] -> 350 | N9: =IFERROR(ROUND((Январь[[#This Row],[Пройдено за день, км]]*0.01*$Y$2+Январь[[#This Row],[Расход топлива на работу спецоборудования, литр]]),3)+X9,) -> 0 | O9: =IF(Январь[[#This Row],[Дата]]="","",IFERROR(ROUND(Январь[[#This Row],[Расход топлива по норме, литр]]/VLOOKUP(Январь[Дата],S$2:W$4,5),0)+Y9,)) ->  | P9: =IFERROR(Январь[[#This Row],[Фактический расход топлива, литр]]-Январь[[#This Row],[Расход топлива по норме, литр]],"") ->  | R9: =Январь[[#This Row],[Дата]] ->  | Z9: =Январь[[#This Row],[Дата]] -> 
A10: 2018-01-02 | G10: 350 | H10: 29170 | I10: 29170 | J10: =IF(W10="",Январь[[#This Row],[Показание счетчика моточасов спецоборудования на конец дня, м/ч]],Январь[[#This Row],[Показание счетчика моточасов спецоборудования на конец дня, м/ч]]+1)-Январь[[#This Row],[Показание счетчика моточасов спецоборудования на начало дня, м/ч]] -> 0 | L10: =IF(Январь[[#This Row],[Работа спецоборудования за день, м/ч]]="",Январь[[#This Row],[Остаток топлива в баке на начало дня, литр]],Январь[[#This Row],[Работа спецоборудования за день, м/ч]]*$Z$2) -> 0 | M10: =Январь[[#This Row],[Выдано топливо, литр]]+U10+Январь[[#This Row],[Остаток топлива в баке на начало дня, литр]] -> 350 | N10: =IFERROR(ROUND((Январь[[#This Row],[Пройдено за день, км]]*0.01*$Y$2+Январь[[#This Row],[Расход топлива на работу спецоборудования, литр]]),3)+X10,) -> 0 | O10: =IF(Январь[[#This Row],[Дата]]="","",IFERROR(ROUND(Январь[[#This Row],[Расход топлива по норме, литр]]/VLOOKUP(Январь[Дата],S$2:W$4,5),0)+Y10,)) -> 0 | P10: =IFERROR(Январь[[#This Row],[Фактический расход топлива, литр]]-Январь[[#This Row],[Расход топлива по норме, литр]],"") -> 0 | R10: =Январь[[#This Row],[Дата]] -> 2018-01-02 | Z10: =Январь[[#This Row],[Дата]] -> 2018-01-02
G11: 350 | H11: 29170 | I11: 29170 | J11: =IF(W11="",Январь[[#This Row],[Показание счетчика моточасов спецоборудования на конец дня, м/ч]],Январь[[#This Row],[Показание счетчика моточасов спецоборудования на конец дня, м/ч]]+1)-Январь[[#This Row],[Показание счетчика моточасов спецоборудования на начало дня, м/ч]] -> 0 | L11: =IF(Январь[[#This Row],[Работа спецоборудования за день, м/ч]]="",Январь[[#This Row],[Остаток топлива в баке на начало дня, литр]],Январь[[#This Row],[Работа спецоборудования за день, м/ч]]*$Z$2) -> 0 | M11: =Январь[[#This Row],[Выдано топливо, литр]]+U11+Январь[[#This Row],[Остаток топлива в баке на начало дня, литр]] -> 350 | N11: =IFERROR(ROUND((Январь[[#This Row],[Пройдено за день, км]]*0.01*$Y$2+Январь[[#This Row],[Расход топлива на работу спецоборудования, литр]]),3)+X11,) -> 0 | O11: =IF(Январь[[#This Row],[Дата]]="","",IFERROR(ROUND(Январь[[#This Row],[Расход топлива по норме, литр]]/VLOOKUP(Январь[Дата],S$2:W$4,5),0)+Y11,)) ->  | P11: =IFERROR(Январь[[#This Row],[Фактический расход топлива, литр]]-Январь[[#This Row],[Расход топлива по норме, литр]],"") ->  | R11: =Январь[[#This Row],[Дата]] ->  | Z11: =Январь[[#This Row],[Дата]] -> 
A12: 2018-01-03 | G12: 350 | H12: 29170 | I12: 29170 | J12: =IF(W12="",Январь[[#This Row],[Показание счетчика моточасов спецоборудования на конец дня, м/ч]],Январь[[#This Row],[Показание счетчика моточасов спецоборудования на конец дня, м/ч]]+1)-Январь[[#This Row],[Показание счетчика моточасов спецоборудования на начало дня, м/ч]] -> 0 | L12: =IF(Январь[[#This Row],[Работа спецоборудования за день, м/ч]]="",Январь[[#This Row],[Остаток топлива в баке на начало дня, литр]],Январь[[#This Row],[Работа спецоборудования за день, м/ч]]*$Z$2) -> 0 | M12: =Январь[[#This Row],[Выдано топливо, литр]]+U12+Январь[[#This Row],[Остаток топлива в баке на начало дня, литр]] -> 350 | N12: =IFERROR(ROUND((Январь[[#This Row],[Пройдено за день, км]]*0.01*$Y$2+Январь[[#This Row],[Расход топлива на работу спецоборудования, литр]]),3)+X12,) -> 0 | O12: =IF(Январь[[#This Row],[Дата]]="","",IFERROR(ROUND(Январь[[#This Row],[Расход топлива по норме, литр]]/VLOOKUP(Январь[Дата],S$2:W$4,5),0)+Y12,)) -> 0 | P12: =IFERROR(Январь[[#This Row],[Фактический расход топлива, литр]]-Январь[[#This Row],[Расход топлива по норме, литр]],"") -> 0 | R12: =Январь[[#This Row],[Дата]] -> 2018-01-03 | Z12: =Январь[[#This Row],[Дата]] -> 2018-01-03
G13: 350 | H13: 29170 | I13: 29170 | J13: =IF(W13="",Январь[[#This Row],[Показание счетчика моточасов спецоборудования на конец дня, м/ч]],Январь[[#This Row],[Показание счетчика моточасов спецоборудования на конец дня, м/ч]]+1)-Январь[[#This Row],[Показание счетчика моточасов спецоборудования на начало дня, м/ч]] -> 0 | L13: =IF(Январь[[#This Row],[Работа спецоборудования за день, м/ч]]="",Январь[[#This Row],[Остаток топлива в баке на начало дня, литр]],Январь[[#This Row],[Работа спецоборудования за день, м/ч]]*$Z$2) -> 0 | M13: =Январь[[#This Row],[Выдано топливо, литр]]+U13+Январь[[#This Row],[Остаток топлива в баке на начало дня, литр]] -> 350 | N13: =IFERROR(ROUND((Январь[[#This Row],[Пройдено за день, км]]*0.01*$Y$2+Январь[[#This Row],[Расход топлива на работу спецоборудования, литр]]),3)+X13,) -> 0 | O13: =IF(Январь[[#This Row],[Дата]]="","",IFERROR(ROUND(Январь[[#This Row],[Расход топлива по норме, литр]]/VLOOKUP(Январь[Дата],S$2:W$4,5),0)+Y13,)) ->  | P13: =IFERROR(Январь[[#This Row],[Фактический расход топлива, литр]]-Январь[[#This Row],[Расход топлива по норме, литр]],"") ->  | R13: =Январь[[#This Row],[Дата]] ->  | Z13: =Январь[[#This Row],[Дата]] -> 
A14: 2018-01-04 | G14: 350 | H14: 29170 | I14: 29170 | J14: =IF(W14="",Январь[[#This Row],[Показание счетчика моточасов спецоборудования на конец дня, м/ч]],Январь[[#This Row],[Показание счетчика моточасов спецоборудования на конец дня, м/ч]]+1)-Январь[[#This Row],[Показание счетчика моточасов спецоборудования на начало дня, м/ч]] -> 0 | L14: =IF(Январь[[#This Row],[Работа спецоборудования за день, м/ч]]="",Январь[[#This Row],[Остаток топлива в баке на начало дня, литр]],Январь[[#This Row],[Работа спецоборудования за день, м/ч]]*$Z$2) -> 0 | M14: =Январь[[#This Row],[Выдано топливо, литр]]+U14+Январь[[#This Row],[Остаток топлива в баке на начало дня, литр]] -> 350 | N14: =IFERROR(ROUND((Январь[[#This Row],[Пройдено за день, км]]*0.01*$Y$2+Январь[[#This Row],[Расход топлива на работу спецоборудования, литр]]),3)+X14,) -> 0 | O14: =IF(Январь[[#This Row],[Дата]]="","",IFERROR(ROUND(Январь[[#This Row],[Расход топлива по норме, литр]]/VLOOKUP(Январь[Дата],S$2:W$4,5),0)+Y14,)) -> 0 | P14: =IFERROR(Январь[[#This Row],[Фактический расход топлива, литр]]-Январь[[#This Row],[Расход топлива по норме, литр]],"") -> 0 | R14: =Январь[[#This Row],[Дата]] -> 2018-01-04 | Z14: =Январь[[#This Row],[Дата]] -> 2018-01-04
C15: =IFERROR(IF(INDIRECT(TEXT(A12,"ММММ")&"!A7:A37")="","",IF(S12="",D12,S12)),"") ->  | G15: 350 | H15: 29170 | I15: 29170 | J15: =IF(W15="",Январь[[#This Row],[Показание счетчика моточасов спецоборудования на конец дня, м/ч]],Январь[[#This Row],[Показание счетчика моточасов спецоборудования на конец дня, м/ч]]+1)-Январь[[#This Row],[Показание счетчика моточасов спецоборудования на начало дня, м/ч]] -> 0 | L15: =IF(Январь[[#This Row],[Работа спецоборудования за день, м/ч]]="",Январь[[#This Row],[Остаток топлива в баке на начало дня, литр]],Январь[[#This Row],[Работа спецоборудования за день, м/ч]]*$Z$2) -> 0 | M15: =Январь[[#This Row],[Выдано топливо, литр]]+U15+Январь[[#This Row],[Остаток топлива в баке на начало дня, литр]] -> 350 | N15: =IFERROR(ROUND((Январь[[#This Row],[Пройдено за день, км]]*0.01*$Y$2+Январь[[#This Row],[Расход топлива на работу спецоборудования, литр]]),3)+X15,) -> 0 | O15: =IF(Январь[[#This Row],[Дата]]="","",IFERROR(ROUND(Январь[[#This Row],[Расход топлива по норме, литр]]/VLOOKUP(Январь[Дата],S$2:W$4,5),0)+Y15,)) ->  | P15: =IFERROR(Январь[[#This Row],[Фактический расход топлива, литр]]-Январь[[#This Row],[Расход топлива по норме, литр]],"") ->  | R15: =Январь[[#This Row],[Дата]] ->  | Z15: =Январь[[#This Row],[Дата]] -> 
A16: 2018-01-05 | C16: =IFERROR(IF(INDIRECT(TEXT(A15,"ММММ")&"!A7:A37")="","",IF(S15="",D15,S15)),"") ->  | G16: 350 | H16: 29170 | I16: 29179 | J16: =IF(W16="",Январь[[#This Row],[Показание счетчика моточасов спецоборудования на конец дня, м/ч]],Январь[[#This Row],[Показание счетчика моточасов спецоборудования на конец дня, м/ч]]+1)-Январь[[#This Row],[Показание счетчика моточасов спецоборудования на начало дня, м/ч]] -> 9 | L16: =IF(Январь[[#This Row],[Работа спецоборудования за день, м/ч]]="",Январь[[#This Row],[Остаток топлива в баке на начало дня, литр]],Январь[[#This Row],[Работа спецоборудования за день, м/ч]]*$Z$2) -> 163.35 | M16: =Январь[[#This Row],[Выдано топливо, литр]]+U16+Январь[[#This Row],[Остаток топлива в баке на начало дня, литр]] -> 350 | N16: =IFERROR(ROUND((Январь[[#This Row],[Пройдено за день, км]]*0.01*$Y$2+Январь[[#This Row],[Расход топлива на работу спецоборудования, литр]]),3)+X16,) -> 163.35 | O16: =IF(Январь[[#This Row],[Дата]]="","",IFERROR(ROUND(Январь[[#This Row],[Расход топлива по норме, литр]]/VLOOKUP(Январь[Дата],S$2:W$4,5),0)+Y16,)) -> 207 | P16: =IFERROR(Январь[[#This Row],[Фактический расход топлива, литр]]-Январь[[#This Row],[Расход топлива по норме, литр]],"") -> 43.65 | R16: =Январь[[#This Row],[Дата]] -> 2018-01-05 | Z16: =Январь[[#This Row],[Дата]] -> 2018-01-05
G17: 350 | H17: 29179 | I17: 29189 | J17: =IF(W17="",Январь[[#This Row],[Показание счетчика моточасов спецоборудования на конец дня, м/ч]],Январь[[#This Row],[Показание счетчика моточасов спецоборудования на конец дня, м/ч]]+1)-Январь[[#This Row],[Показание счетчика моточасов спецоборудования на начало дня, м/ч]] -> 10 | L17: =IF(Январь[[#This Row],[Работа спецоборудования за день, м/ч]]="",Январь[[#This Row],[Остаток топлива в баке на начало дня, литр]],Январь[[#This Row],[Работа спецоборудования за день, м/ч]]*$Z$2) -> 181.5 | M17: =Январь[[#This Row],[Выдано топливо, литр]]+U17+Январь[[#This Row],[Остаток топлива в баке на начало дня, литр]] -> 350 | N17: =IFERROR(ROUND((Январь[[#This Row],[Пройдено за день, км]]*0.01*$Y$2+Январь[[#This Row],[Расход топлива на работу спецоборудования, литр]]),3)+X17,) -> 181.5 | O17: =IF(Январь[[#This Row],[Дата]]="","",IFERROR(ROUND(Январь[[#This Row],[Расход топлива по норме, литр]]/VLOOKUP(Январь[Дата],S$2:W$4,5),0)+Y17,)) ->  | P17: =IFERROR(Январь[[#This Row],[Фактический расход топлива, литр]]-Январь[[#This Row],[Расход топлива по норме, литр]],"") ->  | R17: =Январь[[#This Row],[Дата]] ->  | Z17: =Январь[[#This Row],[Дата]] -> 
A18: 2018-01-06 | G18: 350 | H18: 29189 | I18: 29189 | J18: =IF(W18="",Январь[[#This Row],[Показание счетчика моточасов спецоборудования на конец дня, м/ч]],Январь[[#This Row],[Показание счетчика моточасов спецоборудования на конец дня, м/ч]]+1)-Январь[[#This Row],[Показание счетчика моточасов спецоборудования на начало дня, м/ч]] -> 0 | L18: =IF(Январь[[#This Row],[Работа спецоборудования за день, м/ч]]="",Январь[[#This Row],[Остаток топлива в баке на начало дня, литр]],Январь[[#This Row],[Работа спецоборудования за день, м/ч]]*$Z$2) -> 0 | M18: =Январь[[#This Row],[Выдано топливо, литр]]+U18+Январь[[#This Row],[Остаток топлива в баке на начало дня, литр]] -> 500 | N18: =IFERROR(ROUND((Январь[[#This Row],[Пройдено за день, км]]*0.01*$Y$2+Январь[[#This Row],[Расход топлива на работу спецоборудования, литр]]),3)+X18,) -> 0 | O18: =IF(Январь[[#This Row],[Дата]]="","",IFERROR(ROUND(Январь[[#This Row],[Расход топлива по норме, литр]]/VLOOKUP(Январь[Дата],S$2:W$4,5),0)+Y18,)) -> 0 | P18: =IFERROR(Январь[[#This Row],[Фактический расход топлива, литр]]-Январь[[#This Row],[Расход топлива по норме, литр]],"") -> 0 | R18: =Январь[[#This Row],[Дата]] -> 2018-01-06 | U18: 150 | Z18: =Январь[[#This Row],[Дата]] -> 2018-01-06
C19: =IFERROR(IF(INDIRECT(TEXT(A17,"ММММ")&"!A7:A37")="","",IF(S17="",D17,S17)),"") ->  | G19: 500 | H19: 29189 | I19: 29189 | J19: =IF(W19="",Январь[[#This Row],[Показание счетчика моточасов спецоборудования на конец дня, м/ч]],Январь[[#This Row],[Показание счетчика моточасов спецоборудования на конец дня, м/ч]]+1)-Январь[[#This Row],[Показание счетчика моточасов спецоборудования на начало дня, м/ч]] -> 0 | L19: =IF(Январь[[#This Row],[Работа спецоборудования за день, м/ч]]="",Январь[[#This Row],[Остаток топлива в баке на начало дня, литр]],Январь[[#This Row],[Работа спецоборудования за день, м/ч]]*$Z$2) -> 0 | M19: =Январь[[#This Row],[Выдано топливо, литр]]+U19+Январь[[#This Row],[Остаток топлива в баке на начало дня, литр]] -> 500 | N19: =IFERROR(ROUND((Январь[[#This Row],[Пройдено за день, км]]*0.01*$Y$2+Январь[[#This Row],[Расход топлива на работу спецоборудования, литр]]),3)+X19,) -> 0 | O19: =IF(Январь[[#This Row],[Дата]]="","",IFERROR(ROUND(Январь[[#This Row],[Расход топлива по норме, литр]]/VLOOKUP(Январь[Дата],S$2:W$4,5),0)+Y19,)) ->  | P19: =IFERROR(Январь[[#This Row],[Фактический расход топлива, литр]]-Январь[[#This Row],[Расход топлива по норме, литр]],"") ->  | R19: =Январь[[#This Row],[Дата]] ->  | Z19: =Январь[[#This Row],[Дата]] -> 
A20: 2018-01-07 | G20: 500 | H20: 29189 | I20: 29189 | J20: =IF(W20="",Январь[[#This Row],[Показание счетчика моточасов спецоборудования на конец дня, м/ч]],Январь[[#This Row],[Показание счетчика моточасов спецоборудования на конец дня, м/ч]]+1)-Январь[[#This Row],[Показание счетчика моточасов спецоборудования на начало дня, м/ч]] -> 0 | L20: =IF(Январь[[#This Row],[Работа спецоборудования за день, м/ч]]="",Январь[[#This Row],[Остаток топлива в баке на начало дня, литр]],Январь[[#This Row],[Работа спецоборудования за день, м/ч]]*$Z$2) -> 0 | M20: =Январь[[#This Row],[Выдано топливо, литр]]+U20+Январь[[#This Row],[Остаток топлива в баке на начало дня, литр]] -> 500 | N20: =IFERROR(ROUND((Январь[[#This Row],[Пройдено за день, км]]*0.01*$Y$2+Январь[[#This Row],[Расход топлива на работу спецоборудования, литр]]),3)+X20,) -> 0 | O20: =IF(Январь[[#This Row],[Дата]]="","",IFERROR(ROUND(Январь[[#This Row],[Расход топлива по норме, литр]]/VLOOKUP(Январь[Дата],S$2:W$4,5),0)+Y20,)) -> 0 | P20: =IFERROR(Январь[[#This Row],[Фактический расход топлива, литр]]-Январь[[#This Row],[Расход топлива по норме, литр]],"") -> 0 | R20: =Январь[[#This Row],[Дата]] -> 2018-01-07 | Z20: =Январь[[#This Row],[Дата]] -> 2018-01-07
G21: 500 | H21: 29189 | I21: 29189 | J21: =IF(W21="",Январь[[#This Row],[Показание счетчика моточасов спецоборудования на конец дня, м/ч]],Январь[[#This Row],[Показание счетчика моточасов спецоборудования на конец дня, м/ч]]+1)-Январь[[#This Row],[Показание счетчика моточасов спецоборудования на начало дня, м/ч]] -> 0 | L21: =IF(Январь[[#This Row],[Работа спецоборудования за день, м/ч]]="",Январь[[#This Row],[Остаток топлива в баке на начало дня, литр]],Январь[[#This Row],[Работа спецоборудования за день, м/ч]]*$Z$2) -> 0 | M21: =Январь[[#This Row],[Выдано топливо, литр]]+U21+Январь[[#This Row],[Остаток топлива в баке на начало дня, литр]] -> 500 | N21: =IFERROR(ROUND((Январь[[#This Row],[Пройдено за день, км]]*0.01*$Y$2+Январь[[#This Row],[Расход топлива на работу спецоборудования, литр]]),3)+X21,) -> 0 | O21: =IF(Январь[[#This Row],[Дата]]="","",IFERROR(ROUND(Январь[[#This Row],[Расход топлива по норме, литр]]/VLOOKUP(Январь[Дата],S$2:W$4,5),0)+Y21,)) ->  | P21: =IFERROR(Январь[[#This Row],[Фактический расход топлива, литр]]-Январь[[#This Row],[Расход топлива по норме, литр]],"") ->  | R21: =Январь[[#This Row],[Дата]] ->  | Z21: =Январь[[#This Row],[Дата]] -> 
A22: 2018-01-08 | G22: 500 | H22: 29189 | I22: 29189 | J22: =IF(W22="",Январь[[#This Row],[Показание счетчика моточасов спецоборудования на конец дня, м/ч]],Январь[[#This Row],[Показание счетчика моточасов спецоборудования на конец дня, м/ч]]+1)-Январь[[#This Row],[Показание счетчика моточасов спецоборудования на начало дня, м/ч]] -> 0 | L22: =IF(Январь[[#This Row],[Работа спецоборудования за день, м/ч]]="",Январь[[#This Row],[Остаток топлива в баке на начало дня, литр]],Январь[[#This Row],[Работа спецоборудования за день, м/ч]]*$Z$2) -> 0 | M22: =Январь[[#This Row],[Выдано топливо, литр]]+U22+Январь[[#This Row],[Остаток топлива в баке на начало дня, литр]] -> 700 | N22: =IFERROR(ROUND((Январь[[#This Row],[Пройдено за день, км]]*0.01*$Y$2+Январь[[#This Row],[Расход топлива на работу спецоборудования, литр]]),3)+X22,) -> 0 | O22: =IF(Январь[[#This Row],[Дата]]="","",IFERROR(ROUND(Январь[[#This Row],[Расход топлива по норме, литр]]/VLOOKUP(Январь[Дата],S$2:W$4,5),0)+Y22,)) -> 0 | P22: =IFERROR(Январь[[#This Row],[Фактический расход топлива, литр]]-Январь[[#This Row],[Расход топлива по норме, литр]],"") -> 0 | R22: =Январь[[#This Row],[Дата]] -> 2018-01-08 | U22: 200 | Z22: =Январь[[#This Row],[Дата]] -> 2018-01-08
G23: 700 | H23: 29189 | I23: 29189 | J23: =IF(W23="",Январь[[#This Row],[Показание счетчика моточасов спецоборудования на конец дня, м/ч]],Январь[[#This Row],[Показание счетчика моточасов спецоборудования на конец дня, м/ч]]+1)-Январь[[#This Row],[Показание счетчика моточасов спецоборудования на начало дня, м/ч]] -> 0 | L23: =IF(Январь[[#This Row],[Работа спецоборудования за день, м/ч]]="",Январь[[#This Row],[Остаток топлива в баке на начало дня, литр]],Январь[[#This Row],[Работа спецоборудования за день, м/ч]]*$Z$2) -> 0 | M23: =Январь[[#This Row],[Выдано топливо, литр]]+U23+Январь[[#This Row],[Остаток топлива в баке на начало дня, литр]] -> 700 | N23: =IFERROR(ROUND((Январь[[#This Row],[Пройдено за день, км]]*0.01*$Y$2+Январь[[#This Row],[Расход топлива на работу спецоборудования, литр]]),3)+X23,) -> 0 | O23: =IF(Январь[[#This Row],[Дата]]="","",IFERROR(ROUND(Январь[[#This Row],[Расход топлива по норме, литр]]/VLOOKUP(Январь[Дата],S$2:W$4,5),0)+Y23,)) ->  | P23: =IFERROR(Январь[[#This Row],[Фактический расход топлива, литр]]-Январь[[#This Row],[Расход топлива по норме, литр]],"") ->  | R23: =Январь[[#This Row],[Дата]] ->  | Z23: =Январь[[#This Row],[Дата]] -> 
A24: 2018-01-09 | G24: 700 | H24: 29189 | I24: 29199 | J24: =IF(W24="",Январь[[#This Row],[Показание счетчика моточасов спецоборудования на конец дня, м/ч]],Январь[[#This Row],[Показание счетчика моточасов спецоборудования на конец дня, м/ч]]+1)-Январь[[#This Row],[Показание счетчика моточасов спецоборудования на начало дня, м/ч]] -> 10 | L24: =IF(Январь[[#This Row],[Работа спецоборудования за день, м/ч]]="",Январь[[#This Row],[Остаток топлива в баке на начало дня, литр]],Январь[[#This Row],[Работа спецоборудования за день, м/ч]]*$Z$2) -> 181.5 | M24: =Январь[[#This Row],[Выдано топливо, литр]]+U24+Январь[[#This Row],[Остаток топлива в баке на начало дня, литр]] -> 900 | N24: =IFERROR(ROUND((Январь[[#This Row],[Пройдено за день, км]]*0.01*$Y$2+Январь[[#This Row],[Расход топлива на работу спецоборудования, литр]]),3)+X24,) -> 181.5 | O24: =IF(Январь[[#This Row],[Дата]]="","",IFERROR(ROUND(Январь[[#This Row],[Расход топлива по норме, литр]]/VLOOKUP(Январь[Дата],S$2:W$4,5),0)+Y24,)) -> 230 | P24: =IFERROR(Январь[[#This Row],[Фактический расход топлива, литр]]-Январь[[#This Row],[Расход топлива по норме, литр]],"") -> 48.5 | R24: =Январь[[#This Row],[Дата]] -> 2018-01-09 | U24: 200 | Z24: =Январь[[#This Row],[Дата]] -> 2018-01-09
G25: 900 | H25: 29199 | I25: 29199 | J25: =IF(W25="",Январь[[#This Row],[Показание счетчика моточасов спецоборудования на конец дня, м/ч]],Январь[[#This Row],[Показание счетчика моточасов спецоборудования на конец дня, м/ч]]+1)-Январь[[#This Row],[Показание счетчика моточасов спецоборудования на начало дня, м/ч]] -> 0 | L25: =IF(Январь[[#This Row],[Работа спецоборудования за день, м/ч]]="",Январь[[#This Row],[Остаток топлива в баке на начало дня, литр]],Январь[[#This Row],[Работа спецоборудования за день, м/ч]]*$Z$2) -> 0 | M25: =Январь[[#This Row],[Выдано топливо, литр]]+U25+Январь[[#This Row],[Остаток топлива в баке на начало дня, литр]] -> 900 | N25: =IFERROR(ROUND((Январь[[#This Row],[Пройдено за день, км]]*0.01*$Y$2+Январь[[#This Row],[Расход топлива на работу спецоборудования, литр]]),3)+X25,) -> 0 | O25: =IF(Январь[[#This Row],[Дата]]="","",IFERROR(ROUND(Январь[[#This Row],[Расход топлива по норме, литр]]/VLOOKUP(Январь[Дата],S$2:W$4,5),0)+Y25,)) ->  | P25: =IFERROR(Январь[[#This Row],[Фактический расход топлива, литр]]-Январь[[#This Row],[Расход топлива по норме, литр]],"") ->  | R25: =Январь[[#This Row],[Дата]] ->  | Z25: =Январь[[#This Row],[Дата]] -> 
A26: 2018-01-10 | G26: 900 | H26: 29199 | I26: 29210 | J26: =IF(W26="",Январь[[#This Row],[Показание счетчика моточасов спецоборудования на конец дня, м/ч]],Январь[[#This Row],[Показание счетчика моточасов спецоборудования на конец дня, м/ч]]+1)-Январь[[#This Row],[Показание счетчика моточасов спецоборудования на начало дня, м/ч]] -> 11 | L26: =IF(Январь[[#This Row],[Работа спецоборудования за день, м/ч]]="",Январь[[#This Row],[Остаток топлива в баке на начало дня, литр]],Январь[[#This Row],[Работа спецоборудования за день, м/ч]]*$Z$2) -> 199.65 | M26: =Январь[[#This Row],[Выдано топливо, литр]]+U26+Январь[[#This Row],[Остаток топлива в баке на начало дня, литр]] -> 1200 | N26: =IFERROR(ROUND((Январь[[#This Row],[Пройдено за день, км]]*0.01*$Y$2+Январь[[#This Row],[Расход топлива на работу спецоборудования, литр]]),3)+X26,) -> 199.65 | O26: =IF(Январь[[#This Row],[Дата]]="","",IFERROR(ROUND(Январь[[#This Row],[Расход топлива по норме, литр]]/VLOOKUP(Январь[Дата],S$2:W$4,5),0)+Y26,)) -> 253 | P26: =IFERROR(Январь[[#This Row],[Фактический расход топлива, литр]]-Январь[[#This Row],[Расход топлива по норме, литр]],"") -> 53.35 | R26: =Январь[[#This Row],[Дата]] -> 2018-01-10 | U26: 300 | Z26: =Январь[[#This Row],[Дата]] -> 2018-01-10
C27: =IFERROR(IF(INDIRECT(TEXT(A25,"ММММ")&"!A7:A37")="","",IF(S25="",D25,S25)),"") ->  | G27: 1200 | H27: 29210 | I27: 29210 | J27: =IF(W27="",Январь[[#This Row],[Показание счетчика моточасов спецоборудования на конец дня, м/ч]],Январь[[#This Row],[Показание счетчика моточасов спецоборудования на конец дня, м/ч]]+1)-Январь[[#This Row],[Показание счетчика моточасов спецоборудования на начало дня, м/ч]] -> 0 | L27: =IF(Январь[[#This Row],[Работа спецоборудования за день, м/ч]]="",Январь[[#This Row],[Остаток топлива в баке на начало дня, литр]],Январь[[#This Row],[Работа спецоборудования за день, м/ч]]*$Z$2) -> 0 | M27: =Январь[[#This Row],[Выдано топливо, литр]]+U27+Январь[[#This Row],[Остаток топлива в баке на начало дня, литр]] -> 1200 | N27: =IFERROR(ROUND((Январь[[#This Row],[Пройдено за день, км]]*0.01*$Y$2+Январь[[#This Row],[Расход топлива на работу спецоборудования, литр]]),3)+X27,) -> 0 | O27: =IF(Январь[[#This Row],[Дата]]="","",IFERROR(ROUND(Январь[[#This Row],[Расход топлива по норме, литр]]/VLOOKUP(Январь[Дата],S$2:W$4,5),0)+Y27,)) ->  | P27: =IFERROR(Январь[[#This Row],[Фактический расход топлива, литр]]-Январь[[#This Row],[Расход топлива по норме, литр]],"") ->  | R27: =Январь[[#This Row],[Дата]] ->  | Z27: =Январь[[#This Row],[Дата]] -> 
A28: 2018-01-11 | G28: 1200 | H28: 29210 | I28: 29217 | J28: =IF(W28="",Январь[[#This Row],[Показание счетчика моточасов спецоборудования на конец дня, м/ч]],Январь[[#This Row],[Показание счетчика моточасов спецоборудования на конец дня, м/ч]]+1)-Январь[[#This Row],[Показание счетчика моточасов спецоборудования на начало дня, м/ч]] -> 7 | L28: =IF(Январь[[#This Row],[Работа спецоборудования за день, м/ч]]="",Январь[[#This Row],[Остаток топлива в баке на начало дня, литр]],Январь[[#This Row],[Работа спецоборудования за день, м/ч]]*$Z$2) -> 127.05 | M28: =Январь[[#This Row],[Выдано топливо, литр]]+U28+Январь[[#This Row],[Остаток топлива в баке на начало дня, литр]] -> 1200 | N28: =IFERROR(ROUND((Январь[[#This Row],[Пройдено за день, км]]*0.01*$Y$2+Январь[[#This Row],[Расход топлива на работу спецоборудования, литр]]),3)+X28,) -> 127.05 | O28: =IF(Январь[[#This Row],[Дата]]="","",IFERROR(ROUND(Январь[[#This Row],[Расход топлива по норме, литр]]/VLOOKUP(Январь[Дата],S$2:W$4,5),0)+Y28,)) -> 161 | P28: =IFERROR(Январь[[#This Row],[Фактический расход топлива, литр]]-Январь[[#This Row],[Расход топлива по норме, литр]],"") -> 33.95 | R28: =Январь[[#This Row],[Дата]] -> 2018-01-11 | Z28: =Январь[[#This Row],[Дата]] -> 2018-01-11
G29: 1200 | H29: 29217 | I29: 29217 | J29: =IF(W29="",Январь[[#This Row],[Показание счетчика моточасов спецоборудования на конец дня, м/ч]],Январь[[#This Row],[Показание счетчика моточасов спецоборудования на конец дня, м/ч]]+1)-Январь[[#This Row],[Показание счетчика моточасов спецоборудования на начало дня, м/ч]] -> 0 | L29: =IF(Январь[[#This Row],[Работа спецоборудования за день, м/ч]]="",Январь[[#This Row],[Остаток топлива в баке на начало дня, литр]],Январь[[#This Row],[Работа спецоборудования за день, м/ч]]*$Z$2) -> 0 | M29: =Январь[[#This Row],[Выдано топливо, литр]]+U29+Январь[[#This Row],[Остаток топлива в баке на начало дня, литр]] -> 1200 | N29: =IFERROR(ROUND((Январь[[#This Row],[Пройдено за день, км]]*0.01*$Y$2+Январь[[#This Row],[Расход топлива на работу спецоборудования, литр]]),3)+X29,) -> 0 | O29: =IF(Январь[[#This Row],[Дата]]="","",IFERROR(ROUND(Январь[[#This Row],[Расход топлива по норме, литр]]/VLOOKUP(Январь[Дата],S$2:W$4,5),0)+Y29,)) ->  | P29: =IFERROR(Январь[[#This Row],[Фактический расход топлива, литр]]-Январь[[#This Row],[Расход топлива по норме, литр]],"") ->  | R29: =Январь[[#This Row],[Дата]] ->  | Z29: =Январь[[#This Row],[Дата]] -> 
A30: 2018-01-12 | G30: 1200 | H30: 29217 | I30: 29227 | J30: =IF(W30="",Январь[[#This Row],[Показание счетчика моточасов спецоборудования на конец дня, м/ч]],Январь[[#This Row],[Показание счетчика моточасов спецоборудования на конец дня, м/ч]]+1)-Январь[[#This Row],[Показание счетчика моточасов спецоборудования на начало дня, м/ч]] -> 10 | L30: =IF(Январь[[#This Row],[Работа спецоборудования за день, м/ч]]="",Январь[[#This Row],[Остаток топлива в баке на начало дня, литр]],Январь[[#This Row],[Работа спецоборудования за день, м/ч]]*$Z$2) -> 181.5 | M30: =Январь[[#This Row],[Выдано топливо, литр]]+U30+Январь[[#This Row],[Остаток топлива в баке на начало дня, литр]] -> 1350 | N30: =IFERROR(ROUND((Январь[[#This Row],[Пройдено за день, км]]*0.01*$Y$2+Январь[[#This Row],[Расход топлива на работу спецоборудования, литр]]),3)+X30,) -> 181.5 | O30: =IF(Январь[[#This Row],[Дата]]="","",IFERROR(ROUND(Январь[[#This Row],[Расход топлива по норме, литр]]/VLOOKUP(Январь[Дата],S$2:W$4,5),0)+Y30,)) -> 230 | P30: =IFERROR(Январь[[#This Row],[Фактический расход топлива, литр]]-Январь[[#This Row],[Расход топлива по норме, литр]],"") -> 48.5 | R30: =Январь[[#This Row],[Дата]] -> 2018-01-12 | U30: 150 | Z30: =Январь[[#This Row],[Дата]] -> 2018-01-12
G31: 1350 | H31: 29227 | I31: 29227 | J31: =IF(W31="",Январь[[#This Row],[Показание счетчика моточасов спецоборудования на конец дня, м/ч]],Январь[[#This Row],[Показание счетчика моточасов спецоборудования на конец дня, м/ч]]+1)-Январь[[#This Row],[Показание счетчика моточасов спецоборудования на начало дня, м/ч]] -> 0 | L31: =IF(Январь[[#This Row],[Работа спецоборудования за день, м/ч]]="",Январь[[#This Row],[Остаток топлива в баке на начало дня, литр]],Январь[[#This Row],[Работа спецоборудования за день, м/ч]]*$Z$2) -> 0 | M31: =Январь[[#This Row],[Выдано топливо, литр]]+U31+Январь[[#This Row],[Остаток топлива в баке на начало дня, литр]] -> 1350 | N31: =IFERROR(ROUND((Январь[[#This Row],[Пройдено за день, км]]*0.01*$Y$2+Январь[[#This Row],[Расход топлива на работу спецоборудования, литр]]),3)+X31,) -> 0 | O31: =IF(Январь[[#This Row],[Дата]]="","",IFERROR(ROUND(Январь[[#This Row],[Расход топлива по норме, литр]]/VLOOKUP(Январь[Дата],S$2:W$4,5),0)+Y31,)) ->  | P31: =IFERROR(Январь[[#This Row],[Фактический расход топлива, литр]]-Январь[[#This Row],[Расход топлива по норме, литр]],"") ->  | R31: =Январь[[#This Row],[Дата]] ->  | Z31: =Январь[[#This Row],[Дата]] -> 
A32: 2018-01-13 | G32: 1350 | H32: 29227 | I32: 29233 | J32: =IF(W32="",Январь[[#This Row],[Показание счетчика моточасов спецоборудования на конец дня, м/ч]],Январь[[#This Row],[Показание счетчика моточасов спецоборудования на конец дня, м/ч]]+1)-Январь[[#This Row],[Показание счетчика моточасов спецоборудования на начало дня, м/ч]] -> 6 | L32: =IF(Январь[[#This Row],[Работа спецоборудования за день, м/ч]]="",Январь[[#This Row],[Остаток топлива в баке на начало дня, литр]],Январь[[#This Row],[Работа спецоборудования за день, м/ч]]*$Z$2) -> 108.9 | M32: =Январь[[#This Row],[Выдано топливо, литр]]+U32+Январь[[#This Row],[Остаток топлива в баке на начало дня, литр]] -> 1650 | N32: =IFERROR(ROUND((Январь[[#This Row],[Пройдено за день, км]]*0.01*$Y$2+Январь[[#This Row],[Расход топлива на работу спецоборудования, литр]]),3)+X32,) -> 108.9 | O32: =IF(Январь[[#This Row],[Дата]]="","",IFERROR(ROUND(Январь[[#This Row],[Расход топлива по норме, литр]]/VLOOKUP(Январь[Дата],S$2:W$4,5),0)+Y32,)) -> 138 | P32: =IFERROR(Январь[[#This Row],[Фактический расход топлива, литр]]-Январь[[#This Row],[Расход топлива по норме, литр]],"") -> 29.1 | R32: =Январь[[#This Row],[Дата]] -> 2018-01-13 | U32: 300 | Z32: =Январь[[#This Row],[Дата]] -> 2018-01-13
G33: 1650 | H33: 29233 | I33: 29233 | J33: =IF(W33="",Январь[[#This Row],[Показание счетчика моточасов спецоборудования на конец дня, м/ч]],Январь[[#This Row],[Показание счетчика моточасов спецоборудования на конец дня, м/ч]]+1)-Январь[[#This Row],[Показание счетчика моточасов спецоборудования на начало дня, м/ч]] -> 0 | L33: =IF(Январь[[#This Row],[Работа спецоборудования за день, м/ч]]="",Январь[[#This Row],[Остаток топлива в баке на начало дня, литр]],Январь[[#This Row],[Работа спецоборудования за день, м/ч]]*$Z$2) -> 0 | M33: =Январь[[#This Row],[Выдано топливо, литр]]+U33+Январь[[#This Row],[Остаток топлива в баке на начало дня, литр]] -> 1650 | N33: =IFERROR(ROUND((Январь[[#This Row],[Пройдено за день, км]]*0.01*$Y$2+Январь[[#This Row],[Расход топлива на работу спецоборудования, литр]]),3)+X33,) -> 0 | O33: =IF(Январь[[#This Row],[Дата]]="","",IFERROR(ROUND(Январь[[#This Row],[Расход топлива по норме, литр]]/VLOOKUP(Январь[Дата],S$2:W$4,5),0)+Y33,)) ->  | P33: =IFERROR(Январь[[#This Row],[Фактический расход топлива, литр]]-Январь[[#This Row],[Расход топлива по норме, литр]],"") ->  | R33: =Январь[[#This Row],[Дата]] ->  | Z33: =Январь[[#This Row],[Дата]] -> 
A34: 2018-01-14 | G34: 1650 | H34: 29233 | I34: 29243 | J34: =IF(W34="",Январь[[#This Row],[Показание счетчика моточасов спецоборудования на конец дня, м/ч]],Январь[[#This Row],[Показание счетчика моточасов спецоборудования на конец дня, м/ч]]+1)-Январь[[#This Row],[Показание счетчика моточасов спецоборудования на начало дня, м/ч]] -> 10 | L34: =IF(Январь[[#This Row],[Работа спецоборудования за день, м/ч]]="",Январь[[#This Row],[Остаток топлива в баке на начало дня, литр]],Январь[[#This Row],[Работа спецоборудования за день, м/ч]]*$Z$2) -> 181.5 | M34: =Январь[[#This Row],[Выдано топливо, литр]]+U34+Январь[[#This Row],[Остаток топлива в баке на начало дня, литр]] -> 1850 | N34: =IFERROR(ROUND((Январь[[#This Row],[Пройдено за день, км]]*0.01*$Y$2+Январь[[#This Row],[Расход топлива на работу спецоборудования, литр]]),3)+X34,) -> 181.5 | O34: =IF(Январь[[#This Row],[Дата]]="","",IFERROR(ROUND(Январь[[#This Row],[Расход топлива по норме, литр]]/VLOOKUP(Январь[Дата],S$2:W$4,5),0)+Y34,)) -> 230 | P34: =IFERROR(Январь[[#This Row],[Фактический расход топлива, литр]]-Январь[[#This Row],[Расход топлива по норме, литр]],"") -> 48.5 | R34: =Январь[[#This Row],[Дата]] -> 2018-01-14 | U34: 200 | Z34: =Январь[[#This Row],[Дата]] -> 2018-01-14
G35: 1850 | H35: 29243 | I35: 29243 | J35: =IF(W35="",Январь[[#This Row],[Показание счетчика моточасов спецоборудования на конец дня, м/ч]],Январь[[#This Row],[Показание счетчика моточасов спецоборудования на конец дня, м/ч]]+1)-Январь[[#This Row],[Показание счетчика моточасов спецоборудования на начало дня, м/ч]] -> 0 | L35: =IF(Январь[[#This Row],[Работа спецоборудования за день, м/ч]]="",Январь[[#This Row],[Остаток топлива в баке на начало дня, литр]],Январь[[#This Row],[Работа спецоборудования за день, м/ч]]*$Z$2) -> 0 | M35: =Январь[[#This Row],[Выдано топливо, литр]]+U35+Январь[[#This Row],[Остаток топлива в баке на начало дня, литр]] -> 1850 | N35: =IFERROR(ROUND((Январь[[#This Row],[Пройдено за день, км]]*0.01*$Y$2+Январь[[#This Row],[Расход топлива на работу спецоборудования, литр]]),3)+X35,) -> 0 | O35: =IF(Январь[[#This Row],[Дата]]="","",IFERROR(ROUND(Январь[[#This Row],[Расход топлива по норме, литр]]/VLOOKUP(Январь[Дата],S$2:W$4,5),0)+Y35,)) ->  | P35: =IFERROR(Январь[[#This Row],[Фактический расход топлива, литр]]-Январь[[#This Row],[Расход топлива по норме, литр]],"") ->  | R35: =Январь[[#This Row],[Дата]] ->  | Z35: =Январь[[#This Row],[Дата]] -> 
A36: 2018-01-15 | G36: 1850 | H36: 29243 | I36: 29251 | J36: =IF(W36="",Январь[[#This Row],[Показание счетчика моточасов спецоборудования на конец дня, м/ч]],Январь[[#This Row],[Показание счетчика моточасов спецоборудования на конец дня, м/ч]]+1)-Январь[[#This Row],[Показание счетчика моточасов спецоборудования на начало дня, м/ч]] -> 8 | L36: =IF(Январь[[#This Row],[Работа спецоборудования за день, м/ч]]="",Январь[[#This Row],[Остаток топлива в баке на начало дня, литр]],Январь[[#This Row],[Работа спецоборудования за день, м/ч]]*$Z$2) -> 145.2 | M36: =Январь[[#This Row],[Выдано топливо, литр]]+U36+Январь[[#This Row],[Остаток топлива в баке на начало дня, литр]] -> 2050 | N36: =IFERROR(ROUND((Январь[[#This Row],[Пройдено за день, км]]*0.01*$Y$2+Январь[[#This Row],[Расход топлива на работу спецоборудования, литр]]),3)+X36,) -> 145.2 | O36: =IF(Январь[[#This Row],[Дата]]="","",IFERROR(ROUND(Январь[[#This Row],[Расход топлива по норме, литр]]/VLOOKUP(Январь[Дата],S$2:W$4,5),0)+Y36,)) -> 184 | P36: =IFERROR(Январь[[#This Row],[Фактический расход топлива, литр]]-Январь[[#This Row],[Расход топлива по норме, литр]],"") -> 38.8 | R36: =Январь[[#This Row],[Дата]] -> 2018-01-15 | U36: 200 | Z36: =Январь[[#This Row],[Дата]] -> 2018-01-15
G37: 2050 | H37: 29251 | I37: 29251 | J37: =IF(W37="",Январь[[#This Row],[Показание счетчика моточасов спецоборудования на конец дня, м/ч]],Январь[[#This Row],[Показание счетчика моточасов спецоборудования на конец дня, м/ч]]+1)-Январь[[#This Row],[Показание счетчика моточасов спецоборудования на начало дня, м/ч]] -> 0 | L37: =IF(Январь[[#This Row],[Работа спецоборудования за день, м/ч]]="",Январь[[#This Row],[Остаток топлива в баке на начало дня, литр]],Январь[[#This Row],[Работа спецоборудования за день, м/ч]]*$Z$2) -> 0 | M37: =Январь[[#This Row],[Выдано топливо, литр]]+U37+Январь[[#This Row],[Остаток топлива в баке на начало дня, литр]] -> 2050 | N37: =IFERROR(ROUND((Январь[[#This Row],[Пройдено за день, км]]*0.01*$Y$2+Январь[[#This Row],[Расход топлива на работу спецоборудования, литр]]),3)+X37,) -> 0 | O37: =IF(Январь[[#This Row],[Дата]]="","",IFERROR(ROUND(Январь[[#This Row],[Расход топлива по норме, литр]]/VLOOKUP(Январь[Дата],S$2:W$4,5),0)+Y37,)) ->  | P37: =IFERROR(Январь[[#This Row],[Фактический расход топлива, литр]]-Январь[[#This Row],[Расход топлива по норме, литр]],"") ->  | R37: =Январь[[#This Row],[Дата]] ->  | Z37: =Январь[[#This Row],[Дата]] -> 
A38: 2018-01-16 | G38: 2050 | H38: 29251 | I38: 29261 | J38: =IF(W38="",Январь[[#This Row],[Показание счетчика моточасов спецоборудования на конец дня, м/ч]],Январь[[#This Row],[Показание счетчика моточасов спецоборудования на конец дня, м/ч]]+1)-Январь[[#This Row],[Показание счетчика моточасов спецоборудования на начало дня, м/ч]] -> 10 | L38: =IF(Январь[[#This Row],[Работа спецоборудования за день, м/ч]]="",Январь[[#This Row],[Остаток топлива в баке на начало дня, литр]],Январь[[#This Row],[Работа спецоборудования за день, м/ч]]*$Z$2) -> 181.5 | M38: =Январь[[#This Row],[Выдано топливо, литр]]+U38+Январь[[#This Row],[Остаток топлива в баке на начало дня, литр]] -> 2250 | N38: =IFERROR(ROUND((Январь[[#This Row],[Пройдено за день, км]]*0.01*$Y$2+Январь[[#This Row],[Расход топлива на работу спецоборудования, литр]]),3)+X38,) -> 181.5 | O38: =IF(Январь[[#This Row],[Дата]]="","",IFERROR(ROUND(Январь[[#This Row],[Расход топлива по норме, литр]]/VLOOKUP(Январь[Дата],S$2:W$4,5),0)+Y38,)) -> 230 | P38: =IFERROR(Январь[[#This Row],[Фактический расход топлива, литр]]-Январь[[#This Row],[Расход топлива по норме, литр]],"") -> 48.5 | R38: =Январь[[#This Row],[Дата]] -> 2018-01-16 | U38: 200 | Z38: =Январь[[#This Row],[Дата]] -> 2018-01-16
G39: 2250 | H39: 29261 | I39: 29261 | J39: =IF(W39="",Январь[[#This Row],[Показание счетчика моточасов спецоборудования на конец дня, м/ч]],Январь[[#This Row],[Показание счетчика моточасов спецоборудования на конец дня, м/ч]]+1)-Январь[[#This Row],[Показание счетчика моточасов спецоборудования на начало дня, м/ч]] -> 0 | L39: =IF(Январь[[#This Row],[Работа спецоборудования за день, м/ч]]="",Январь[[#This Row],[Остаток топлива в баке на начало дня, литр]],Январь[[#This Row],[Работа спецоборудования за день, м/ч]]*$Z$2) -> 0 | M39: =Январь[[#This Row],[Выдано топливо, литр]]+U39+Январь[[#This Row],[Остаток топлива в баке на начало дня, литр]] -> 2250 | N39: =IFERROR(ROUND((Январь[[#This Row],[Пройдено за день, км]]*0.01*$Y$2+Январь[[#This Row],[Расход топлива на работу спецоборудования, литр]]),3)+X39,) -> 0 | O39: =IF(Январь[[#This Row],[Дата]]="","",IFERROR(ROUND(Январь[[#This Row],[Расход топлива по норме, литр]]/VLOOKUP(Январь[Дата],S$2:W$4,5),0)+Y39,)) ->  | P39: =IFERROR(Январь[[#This Row],[Фактический расход топлива, литр]]-Январь[[#This Row],[Расход топлива по норме, литр]],"") ->  | R39: =Январь[[#This Row],[Дата]] ->  | Z39: =Январь[[#This Row],[Дата]] -> 
A40: 2018-01-17 | G40: 2250 | H40: 29261 | I40: 29271 | J40: =IF(W40="",Январь[[#This Row],[Показание счетчика моточасов спецоборудования на конец дня, м/ч]],Январь[[#This Row],[Показание счетчика моточасов спецоборудования на конец дня, м/ч]]+1)-Январь[[#This Row],[Показание счетчика моточасов спецоборудования на начало дня, м/ч]] -> 10 | L40: =IF(Январь[[#This Row],[Работа спецоборудования за день, м/ч]]="",Январь[[#This Row],[Остаток топлива в баке на начало дня, литр]],Январь[[#This Row],[Работа спецоборудования за день, м/ч]]*$Z$2) -> 181.5 | M40: =Январь[[#This Row],[Выдано топливо, литр]]+U40+Январь[[#This Row],[Остаток топлива в баке на начало дня, литр]] -> 2450 | N40: =IFERROR(ROUND((Январь[[#This Row],[Пройдено за день, км]]*0.01*$Y$2+Январь[[#This Row],[Расход топлива на работу спецоборудования, литр]]),3)+X40,) -> 181.5 | O40: =IF(Январь[[#This Row],[Дата]]="","",IFERROR(ROUND(Январь[[#This Row],[Расход топлива по норме, литр]]/VLOOKUP(Январь[Дата],S$2:W$4,5),0)+Y40,)) -> 230 | P40: =IFERROR(Январь[[#This Row],[Фактический расход топлива, литр]]-Январь[[#This Row],[Расход топлива по норме, литр]],"") -> 48.5 | R40: =Январь[[#This Row],[Дата]] -> 2018-01-17 | U40: 200 | Z40: =Январь[[#This Row],[Дата]] -> 2018-01-17
G41: 2450 | H41: 29271 | I41: 29271 | J41: =IF(W41="",Январь[[#This Row],[Показание счетчика моточасов спецоборудования на конец дня, м/ч]],Январь[[#This Row],[Показание счетчика моточасов спецоборудования на конец дня, м/ч]]+1)-Январь[[#This Row],[Показание счетчика моточасов спецоборудования на начало дня, м/ч]] -> 0 | L41: =IF(Январь[[#This Row],[Работа спецоборудования за день, м/ч]]="",Январь[[#This Row],[Остаток топлива в баке на начало дня, литр]],Январь[[#This Row],[Работа спецоборудования за день, м/ч]]*$Z$2) -> 0 | M41: =Январь[[#This Row],[Выдано топливо, литр]]+U41+Январь[[#This Row],[Остаток топлива в баке на начало дня, литр]] -> 2450 | N41: =IFERROR(ROUND((Январь[[#This Row],[Пройдено за день, км]]*0.01*$Y$2+Январь[[#This Row],[Расход топлива на работу спецоборудования, литр]]),3)+X41,) -> 0 | O41: =IF(Январь[[#This Row],[Дата]]="","",IFERROR(ROUND(Январь[[#This Row],[Расход топлива по норме, литр]]/VLOOKUP(Январь[Дата],S$2:W$4,5),0)+Y41,)) ->  | P41: =IFERROR(Январь[[#This Row],[Фактический расход топлива, литр]]-Январь[[#This Row],[Расход топлива по норме, литр]],"") ->  | R41: =Январь[[#This Row],[Дата]] ->  | Z41: =Январь[[#This Row],[Дата]] -> 
A42: 2018-01-18 | G42: 2450 | H42: 29271 | I42: 29280 | J42: =IF(W42="",Январь[[#This Row],[Показание счетчика моточасов спецоборудования на конец дня, м/ч]],Январь[[#This Row],[Показание счетчика моточасов спецоборудования на конец дня, м/ч]]+1)-Январь[[#This Row],[Показание счетчика моточасов спецоборудования на начало дня, м/ч]] -> 9 | L42: =IF(Январь[[#This Row],[Работа спецоборудования за день, м/ч]]="",Январь[[#This Row],[Остаток топлива в баке на начало дня, литр]],Январь[[#This Row],[Работа спецоборудования за день, м/ч]]*$Z$2) -> 163.35 | M42: =Январь[[#This Row],[Выдано топливо, литр]]+U42+Январь[[#This Row],[Остаток топлива в баке на начало дня, литр]] -> 2650 | N42: =IFERROR(ROUND((Январь[[#This Row],[Пройдено за день, км]]*0.01*$Y$2+Январь[[#This Row],[Расход топлива на работу спецоборудования, литр]]),3)+X42,) -> 163.35 | O42: =IF(Январь[[#This Row],[Дата]]="","",IFERROR(ROUND(Январь[[#This Row],[Расход топлива по норме, литр]]/VLOOKUP(Январь[Дата],S$2:W$4,5),0)+Y42,)) -> 207 | P42: =IFERROR(Январь[[#This Row],[Фактический расход топлива, литр]]-Январь[[#This Row],[Расход топлива по норме, литр]],"") -> 43.65 | R42: =Январь[[#This Row],[Дата]] -> 2018-01-18 | U42: 200 | Z42: =Январь[[#This Row],[Дата]] -> 2018-01-18
G43: 2650 | H43: 29280 | I43: 29280 | J43: =IF(W43="",Январь[[#This Row],[Показание счетчика моточасов спецоборудования на конец дня, м/ч]],Январь[[#This Row],[Показание счетчика моточасов спецоборудования на конец дня, м/ч]]+1)-Январь[[#This Row],[Показание счетчика моточасов спецоборудования на начало дня, м/ч]] -> 0 | L43: =IF(Январь[[#This Row],[Работа спецоборудования за день, м/ч]]="",Январь[[#This Row],[Остаток топлива в баке на начало дня, литр]],Январь[[#This Row],[Работа спецоборудования за день, м/ч]]*$Z$2) -> 0 | M43: =Январь[[#This Row],[Выдано топливо, литр]]+U43+Январь[[#This Row],[Остаток топлива в баке на начало дня, литр]] -> 2650 | N43: =IFERROR(ROUND((Январь[[#This Row],[Пройдено за день, км]]*0.01*$Y$2+Январь[[#This Row],[Расход топлива на работу спецоборудования, литр]]),3)+X43,) -> 0 | O43: =IF(Январь[[#This Row],[Дата]]="","",IFERROR(ROUND(Январь[[#This Row],[Расход топлива по норме, литр]]/VLOOKUP(Январь[Дата],S$2:W$4,5),0)+Y43,)) ->  | P43: =IFERROR(Январь[[#This Row],[Фактический расход топлива, литр]]-Январь[[#This Row],[Расход топлива по норме, литр]],"") ->  | R43: =Январь[[#This Row],[Дата]] ->  | Z43: =Январь[[#This Row],[Дата]] -> 
A44: 2018-01-19 | C44: =IFERROR(IF(INDIRECT(TEXT(A37,"ММММ")&"!A7:A37")="","",IF(S37="",D37,S37)),"") ->  | G44: 2650 | H44: 29280 | I44: 29286 | J44: =IF(W44="",Январь[[#This Row],[Показание счетчика моточасов спецоборудования на конец дня, м/ч]],Январь[[#This Row],[Показание счетчика моточасов спецоборудования на конец дня, м/ч]]+1)-Январь[[#This Row],[Показание счетчика моточасов спецоборудования на начало дня, м/ч]] -> 6 | L44: =IF(Январь[[#This Row],[Работа спецоборудования за день, м/ч]]="",Январь[[#This Row],[Остаток топлива в баке на начало дня, литр]],Январь[[#This Row],[Работа спецоборудования за день, м/ч]]*$Z$2) -> 108.9 | M44: =Январь[[#This Row],[Выдано топливо, литр]]+U44+Январь[[#This Row],[Остаток топлива в баке на начало дня, литр]] -> 2650 | N44: =IFERROR(ROUND((Январь[[#This Row],[Пройдено за день, км]]*0.01*$Y$2+Январь[[#This Row],[Расход топлива на работу спецоборудования, литр]]),3)+X44,) -> 108.9 | O44: =IF(Январь[[#This Row],[Дата]]="","",IFERROR(ROUND(Январь[[#This Row],[Расход топлива по норме, литр]]/VLOOKUP(Январь[Дата],S$2:W$4,5),0)+Y44,)) -> 0 | P44: =IFERROR(Январь[[#This Row],[Фактический расход топлива, литр]]-Январь[[#This Row],[Расход топлива по норме, литр]],"") -> -108.9 | R44: =Январь[[#This Row],[Дата]] -> 2018-01-19 | Z44: =Январь[[#This Row],[Дата]] -> 2018-01-19
G45: 2650 | H45: 29286 | I45: 29286 | J45: =IF(W45="",Январь[[#This Row],[Показание счетчика моточасов спецоборудования на конец дня, м/ч]],Январь[[#This Row],[Показание счетчика моточасов спецоборудования на конец дня, м/ч]]+1)-Январь[[#This Row],[Показание счетчика моточасов спецоборудования на начало дня, м/ч]] -> 0 | L45: =IF(Январь[[#This Row],[Работа спецоборудования за день, м/ч]]="",Январь[[#This Row],[Остаток топлива в баке на начало дня, литр]],Январь[[#This Row],[Работа спецоборудования за день, м/ч]]*$Z$2) -> 0 | M45: =Январь[[#This Row],[Выдано топливо, литр]]+U45+Январь[[#This Row],[Остаток топлива в баке на начало дня, литр]] -> 2650 | N45: =IFERROR(ROUND((Январь[[#This Row],[Пройдено за день, км]]*0.01*$Y$2+Январь[[#This Row],[Расход топлива на работу спецоборудования, литр]]),3)+X45,) -> 0 | O45: =IF(Январь[[#This Row],[Дата]]="","",IFERROR(ROUND(Январь[[#This Row],[Расход топлива по норме, литр]]/VLOOKUP(Январь[Дата],S$2:W$4,5),0)+Y45,)) ->  | P45: =IFERROR(Январь[[#This Row],[Фактический расход топлива, литр]]-Январь[[#This Row],[Расход топлива по норме, литр]],"") ->  | R45: =Январь[[#This Row],[Дата]] ->  | Z45: =Январь[[#This Row],[Дата]] -> 
A46: 2018-01-20 | G46: 2650 | H46: 29286 | I46: 29297 | J46: =IF(W46="",Январь[[#This Row],[Показание счетчика моточасов спецоборудования на конец дня, м/ч]],Январь[[#This Row],[Показание счетчика моточасов спецоборудования на конец дня, м/ч]]+1)-Январь[[#This Row],[Показание счетчика моточасов спецоборудования на начало дня, м/ч]] -> 11 | L46: =IF(Январь[[#This Row],[Работа спецоборудования за день, м/ч]]="",Январь[[#This Row],[Остаток топлива в баке на начало дня, литр]],Январь[[#This Row],[Работа спецоборудования за день, м/ч]]*$Z$2) -> 199.65 | M46: =Январь[[#This Row],[Выдано топливо, литр]]+U46+Январь[[#This Row],[Остаток топлива в баке на начало дня, литр]] -> 2900 | N46: =IFERROR(ROUND((Январь[[#This Row],[Пройдено за день, км]]*0.01*$Y$2+Январь[[#This Row],[Расход топлива на работу спецоборудования, литр]]),3)+X46,) -> 199.65 | O46: =IF(Январь[[#This Row],[Дата]]="","",IFERROR(ROUND(Январь[[#This Row],[Расход топлива по норме, литр]]/VLOOKUP(Январь[Дата],S$2:W$4,5),0)+Y46,)) -> 0 | P46: =IFERROR(Январь[[#This Row],[Фактический расход топлива, литр]]-Январь[[#This Row],[Расход топлива по норме, литр]],"") -> -199.65 | R46: =Январь[[#This Row],[Дата]] -> 2018-01-20 | U46: 250 | Z46: =Январь[[#This Row],[Дата]] -> 2018-01-20
G47: 2900 | H47: 29297 | I47: 29307 | J47: =IF(W47="",Январь[[#This Row],[Показание счетчика моточасов спецоборудования на конец дня, м/ч]],Январь[[#This Row],[Показание счетчика моточасов спецоборудования на конец дня, м/ч]]+1)-Январь[[#This Row],[Показание счетчика моточасов спецоборудования на начало дня, м/ч]] -> 10 | L47: =IF(Январь[[#This Row],[Работа спецоборудования за день, м/ч]]="",Январь[[#This Row],[Остаток топлива в баке на начало дня, литр]],Январь[[#This Row],[Работа спецоборудования за день, м/ч]]*$Z$2) -> 181.5 | M47: =Январь[[#This Row],[Выдано топливо, литр]]+U47+Январь[[#This Row],[Остаток топлива в баке на начало дня, литр]] -> 2900 | N47: =IFERROR(ROUND((Январь[[#This Row],[Пройдено за день, км]]*0.01*$Y$2+Январь[[#This Row],[Расход топлива на работу спецоборудования, литр]]),3)+X47,) -> 181.5 | O47: =IF(Январь[[#This Row],[Дата]]="","",IFERROR(ROUND(Январь[[#This Row],[Расход топлива по норме, литр]]/VLOOKUP(Январь[Дата],S$2:W$4,5),0)+Y47,)) ->  | P47: =IFERROR(Январь[[#This Row],[Фактический расход топлива, литр]]-Январь[[#This Row],[Расход топлива по норме, литр]],"") ->  | R47: =Январь[[#This Row],[Дата]] ->  | Z47: =Январь[[#This Row],[Дата]] -> 
A48: 2018-01-21 | G48: 2900 | H48: 29307 | I48: 29308 | J48: =IF(W48="",Январь[[#This Row],[Показание счетчика моточасов спецоборудования на конец дня, м/ч]],Январь[[#This Row],[Показание счетчика моточасов спецоборудования на конец дня, м/ч]]+1)-Январь[[#This Row],[Показание счетчика моточасов спецоборудования на начало дня, м/ч]] -> 1 | L48: =IF(Январь[[#This Row],[Работа спецоборудования за день, м/ч]]="",Январь[[#This Row],[Остаток топлива в баке на начало дня, литр]],Январь[[#This Row],[Работа спецоборудования за день, м/ч]]*$Z$2) -> 18.15 | M48: =Январь[[#This Row],[Выдано топливо, литр]]+U48+Январь[[#This Row],[Остаток топлива в баке на начало дня, литр]] -> 3150 | N48: =IFERROR(ROUND((Январь[[#This Row],[Пройдено за день, км]]*0.01*$Y$2+Январь[[#This Row],[Расход топлива на работу спецоборудования, литр]]),3)+X48,) -> 18.15 | O48: =IF(Январь[[#This Row],[Дата]]="","",IFERROR(ROUND(Январь[[#This Row],[Расход топлива по норме, литр]]/VLOOKUP(Январь[Дата],S$2:W$4,5),0)+Y48,)) -> 0 | P48: =IFERROR(Январь[[#This Row],[Фактический расход топлива, литр]]-Январь[[#This Row],[Расход топлива по норме, литр]],"") -> -18.15 | R48: =Январь[[#This Row],[Дата]] -> 2018-01-21 | U48: 250 | Z48: =Январь[[#This Row],[Дата]] -> 2018-01-21
G49: 3150 | H49: 29308 | I49: 29308 | J49: =IF(W49="",Январь[[#This Row],[Показание счетчика моточасов спецоборудования на конец дня, м/ч]],Январь[[#This Row],[Показание счетчика моточасов спецоборудования на конец дня, м/ч]]+1)-Январь[[#This Row],[Показание счетчика моточасов спецоборудования на начало дня, м/ч]] -> 0 | L49: =IF(Январь[[#This Row],[Работа спецоборудования за день, м/ч]]="",Январь[[#This Row],[Остаток топлива в баке на начало дня, литр]],Январь[[#This Row],[Работа спецоборудования за день, м/ч]]*$Z$2) -> 0 | M49: =Январь[[#This Row],[Выдано топливо, литр]]+U49+Январь[[#This Row],[Остаток топлива в баке на начало дня, литр]] -> 3150 | N49: =IFERROR(ROUND((Январь[[#This Row],[Пройдено за день, км]]*0.01*$Y$2+Январь[[#This Row],[Расход топлива на работу спецоборудования, литр]]),3)+X49,) -> 0 | O49: =IF(Январь[[#This Row],[Дата]]="","",IFERROR(ROUND(Январь[[#This Row],[Расход топлива по норме, литр]]/VLOOKUP(Январь[Дата],S$2:W$4,5),0)+Y49,)) ->  | P49: =IFERROR(Январь[[#This Row],[Фактический расход топлива, литр]]-Январь[[#This Row],[Расход топлива по норме, литр]],"") ->  | R49: =Январь[[#This Row],[Дата]] ->  | Z49: =Январь[[#This Row],[Дата]] -> 
A50: 2018-01-22 | G50: 3150 | H50: 29308 | I50: 29321 | J50: =IF(W50="",Январь[[#This Row],[Показание счетчика моточасов спецоборудования на конец дня, м/ч]],Январь[[#This Row],[Показание счетчика моточасов спецоборудования на конец дня, м/ч]]+1)-Январь[[#This Row],[Показание счетчика моточасов спецоборудования на начало дня, м/ч]] -> 13 | L50: =IF(Январь[[#This Row],[Работа спецоборудования за день, м/ч]]="",Январь[[#This Row],[Остаток топлива в баке на начало дня, литр]],Январь[[#This Row],[Работа спецоборудования за день, м/ч]]*$Z$2) -> 235.95 | M50: =Январь[[#This Row],[Выдано топливо, литр]]+U50+Январь[[#This Row],[Остаток топлива в баке на начало дня, литр]] -> 3300 | N50: =IFERROR(ROUND((Январь[[#This Row],[Пройдено за день, км]]*0.01*$Y$2+Январь[[#This Row],[Расход топлива на работу спецоборудования, литр]]),3)+X50,) -> 235.95 | O50: =IF(Январь[[#This Row],[Дата]]="","",IFERROR(ROUND(Январь[[#This Row],[Расход топлива по норме, литр]]/VLOOKUP(Январь[Дата],S$2:W$4,5),0)+Y50,)) -> 0 | P50: =IFERROR(Январь[[#This Row],[Фактический расход топлива, литр]]-Январь[[#This Row],[Расход топлива по норме, литр]],"") -> -235.95 | R50: =Январь[[#This Row],[Дата]] -> 2018-01-22 | U50: 150 | Z50: =Январь[[#This Row],[Дата]] -> 2018-01-22
G51: 3300 | H51: 29321 | I51: 29321 | J51: =IF(W51="",Январь[[#This Row],[Показание счетчика моточасов спецоборудования на конец дня, м/ч]],Январь[[#This Row],[Показание счетчика моточасов спецоборудования на конец дня, м/ч]]+1)-Январь[[#This Row],[Показание счетчика моточасов спецоборудования на начало дня, м/ч]] -> 0 | L51: =IF(Январь[[#This Row],[Работа спецоборудования за день, м/ч]]="",Январь[[#This Row],[Остаток топлива в баке на начало дня, литр]],Январь[[#This Row],[Работа спецоборудования за день, м/ч]]*$Z$2) -> 0 | M51: =Январь[[#This Row],[Выдано топливо, литр]]+U51+Январь[[#This Row],[Остаток топлива в баке на начало дня, литр]] -> 3300 | N51: =IFERROR(ROUND((Январь[[#This Row],[Пройдено за день, км]]*0.01*$Y$2+Январь[[#This Row],[Расход топлива на работу спецоборудования, литр]]),3)+X51,) -> 0 | O51: =IF(Январь[[#This Row],[Дата]]="","",IFERROR(ROUND(Январь[[#This Row],[Расход топлива по норме, литр]]/VLOOKUP(Январь[Дата],S$2:W$4,5),0)+Y51,)) ->  | P51: =IFERROR(Январь[[#This Row],[Фактический расход топлива, литр]]-Январь[[#This Row],[Расход топлива по норме, литр]],"") ->  | R51: =Январь[[#This Row],[Дата]] ->  | Z51: =Январь[[#This Row],[Дата]] -> 
A52: 2018-01-23 | G52: 3300 | H52: 29321 | I52: 29332 | J52: =IF(W52="",Январь[[#This Row],[Показание счетчика моточасов спецоборудования на конец дня, м/ч]],Январь[[#This Row],[Показание счетчика моточасов спецоборудования на конец дня, м/ч]]+1)-Январь[[#This Row],[Показание счетчика моточасов спецоборудования на начало дня, м/ч]] -> 11 | L52: =IF(Январь[[#This Row],[Работа спецоборудования за день, м/ч]]="",Январь[[#This Row],[Остаток топлива в баке на начало дня, литр]],Январь[[#This Row],[Работа спецоборудования за день, м/ч]]*$Z$2) -> 199.65 | M52: =Январь[[#This Row],[Выдано топливо, литр]]+U52+Январь[[#This Row],[Остаток топлива в баке на начало дня, литр]] -> 3610 | N52: =IFERROR(ROUND((Январь[[#This Row],[Пройдено за день, км]]*0.01*$Y$2+Январь[[#This Row],[Расход топлива на работу спецоборудования, литр]]),3)+X52,) -> 199.65 | O52: =IF(Январь[[#This Row],[Дата]]="","",IFERROR(ROUND(Январь[[#This Row],[Расход топлива по норме, литр]]/VLOOKUP(Январь[Дата],S$2:W$4,5),0)+Y52,)) -> 0 | P52: =IFERROR(Январь[[#This Row],[Фактический расход топлива, литр]]-Январь[[#This Row],[Расход топлива по норме, литр]],"") -> -199.65 | R52: =Январь[[#This Row],[Дата]] -> 2018-01-23 | U52: 310 | Z52: =Январь[[#This Row],[Дата]] -> 2018-01-23
G53: 3610 | H53: 29332 | I53: 29332 | J53: =IF(W53="",Январь[[#This Row],[Показание счетчика моточасов спецоборудования на конец дня, м/ч]],Январь[[#This Row],[Показание счетчика моточасов спецоборудования на конец дня, м/ч]]+1)-Январь[[#This Row],[Показание счетчика моточасов спецоборудования на начало дня, м/ч]] -> 0 | L53: =IF(Январь[[#This Row],[Работа спецоборудования за день, м/ч]]="",Январь[[#This Row],[Остаток топлива в баке на начало дня, литр]],Январь[[#This Row],[Работа спецоборудования за день, м/ч]]*$Z$2) -> 0 | M53: =Январь[[#This Row],[Выдано топливо, литр]]+U53+Январь[[#This Row],[Остаток топлива в баке на начало дня, литр]] -> 3610 | N53: =IFERROR(ROUND((Январь[[#This Row],[Пройдено за день, км]]*0.01*$Y$2+Январь[[#This Row],[Расход топлива на работу спецоборудования, литр]]),3)+X53,) -> 0 | O53: =IF(Январь[[#This Row],[Дата]]="","",IFERROR(ROUND(Январь[[#This Row],[Расход топлива по норме, литр]]/VLOOKUP(Январь[Дата],S$2:W$4,5),0)+Y53,)) ->  | P53: =IFERROR(Январь[[#This Row],[Фактический расход топлива, литр]]-Январь[[#This Row],[Расход топлива по норме, литр]],"") ->  | R53: =Январь[[#This Row],[Дата]] ->  | Z53: =Январь[[#This Row],[Дата]] -> 
A54: 2018-01-24 | G54: 3610 | H54: 29332 | I54: 29343 | J54: =IF(W54="",Январь[[#This Row],[Показание счетчика моточасов спецоборудования на конец дня, м/ч]],Январь[[#This Row],[Показание счетчика моточасов спецоборудования на конец дня, м/ч]]+1)-Январь[[#This Row],[Показание счетчика моточасов спецоборудования на начало дня, м/ч]] -> 11 | L54: =IF(Январь[[#This Row],[Работа спецоборудования за день, м/ч]]="",Январь[[#This Row],[Остаток топлива в баке на начало дня, литр]],Январь[[#This Row],[Работа спецоборудования за день, м/ч]]*$Z$2) -> 199.65 | M54: =Январь[[#This Row],[Выдано топливо, литр]]+U54+Январь[[#This Row],[Остаток топлива в баке на начало дня, литр]] -> 3610 | N54: =IFERROR(ROUND((Январь[[#This Row],[Пройдено за день, км]]*0.01*$Y$2+Январь[[#This Row],[Расход топлива на работу спецоборудования, литр]]),3)+X54,) -> 199.65 | O54: =IF(Январь[[#This Row],[Дата]]="","",IFERROR(ROUND(Январь[[#This Row],[Расход топлива по норме, литр]]/VLOOKUP(Январь[Дата],S$2:W$4,5),0)+Y54,)) -> 0 | P54: =IFERROR(Январь[[#This Row],[Фактический расход топлива, литр]]-Январь[[#This Row],[Расход топлива по норме, литр]],"") -> -199.65 | R54: =Январь[[#This Row],[Дата]] -> 2018-01-24 | Z54: =Январь[[#This Row],[Дата]] -> 2018-01-24
G55: 3610 | H55: 29343 | I55: 29343 | J55: =IF(W55="",Январь[[#This Row],[Показание счетчика моточасов спецоборудования на конец дня, м/ч]],Январь[[#This Row],[Показание счетчика моточасов спецоборудования на конец дня, м/ч]]+1)-Январь[[#This Row],[Показание счетчика моточасов спецоборудования на начало дня, м/ч]] -> 0 | L55: =IF(Январь[[#This Row],[Работа спецоборудования за день, м/ч]]="",Январь[[#This Row],[Остаток топлива в баке на начало дня, литр]],Январь[[#This Row],[Работа спецоборудования за день, м/ч]]*$Z$2) -> 0 | M55: =Январь[[#This Row],[Выдано топливо, литр]]+U55+Январь[[#This Row],[Остаток топлива в баке на начало дня, литр]] -> 3610 | N55: =IFERROR(ROUND((Январь[[#This Row],[Пройдено за день, км]]*0.01*$Y$2+Январь[[#This Row],[Расход топлива на работу спецоборудования, литр]]),3)+X55,) -> 0 | O55: =IF(Январь[[#This Row],[Дата]]="","",IFERROR(ROUND(Январь[[#This Row],[Расход топлива по норме, литр]]/VLOOKUP(Январь[Дата],S$2:W$4,5),0)+Y55,)) ->  | P55: =IFERROR(Январь[[#This Row],[Фактический расход топлива, литр]]-Январь[[#This Row],[Расход топлива по норме, литр]],"") ->  | R55: =Январь[[#This Row],[Дата]] ->  | Z55: =Январь[[#This Row],[Дата]] -> 
A56: 2018-01-25 | C56: =IFERROR(IF(INDIRECT(TEXT(A44,"ММММ")&"!A7:A37")="","",IF(S44="",D44,S44)),"") ->  | G56: 3610 | H56: 29343 | I56: 29353 | J56: =IF(W56="",Январь[[#This Row],[Показание счетчика моточасов спецоборудования на конец дня, м/ч]],Январь[[#This Row],[Показание счетчика моточасов спецоборудования на конец дня, м/ч]]+1)-Январь[[#This Row],[Показание счетчика моточасов спецоборудования на начало дня, м/ч]] -> 10 | L56: =IF(Январь[[#This Row],[Работа спецоборудования за день, м/ч]]="",Январь[[#This Row],[Остаток топлива в баке на начало дня, литр]],Январь[[#This Row],[Работа спецоборудования за день, м/ч]]*$Z$2) -> 181.5 | M56: =Январь[[#This Row],[Выдано топливо, литр]]+U56+Январь[[#This Row],[Остаток топлива в баке на начало дня, литр]] -> 3850 | N56: =IFERROR(ROUND((Январь[[#This Row],[Пройдено за день, км]]*0.01*$Y$2+Январь[[#This Row],[Расход топлива на работу спецоборудования, литр]]),3)+X56,) -> 181.5 | O56: =IF(Январь[[#This Row],[Дата]]="","",IFERROR(ROUND(Январь[[#This Row],[Расход топлива по норме, литр]]/VLOOKUP(Январь[Дата],S$2:W$4,5),0)+Y56,)) -> 0 | P56: =IFERROR(Январь[[#This Row],[Фактический расход топлива, литр]]-Январь[[#This Row],[Расход топлива по норме, литр]],"") -> -181.5 | R56: =Январь[[#This Row],[Дата]] -> 2018-01-25 | U56: 240 | Z56: =Январь[[#This Row],[Дата]] -> 2018-01-25
G57: 3850 | H57: 29353 | I57: 29353 | J57: =IF(W57="",Январь[[#This Row],[Показание счетчика моточасов спецоборудования на конец дня, м/ч]],Январь[[#This Row],[Показание счетчика моточасов спецоборудования на конец дня, м/ч]]+1)-Январь[[#This Row],[Показание счетчика моточасов спецоборудования на начало дня, м/ч]] -> 0 | L57: =IF(Январь[[#This Row],[Работа спецоборудования за день, м/ч]]="",Январь[[#This Row],[Остаток топлива в баке на начало дня, литр]],Январь[[#This Row],[Работа спецоборудования за день, м/ч]]*$Z$2) -> 0 | M57: =Январь[[#This Row],[Выдано топливо, литр]]+U57+Январь[[#This Row],[Остаток топлива в баке на начало дня, литр]] -> 3850 | N57: =IFERROR(ROUND((Январь[[#This Row],[Пройдено за день, км]]*0.01*$Y$2+Январь[[#This Row],[Расход топлива на работу спецоборудования, литр]]),3)+X57,) -> 0 | O57: =IF(Январь[[#This Row],[Дата]]="","",IFERROR(ROUND(Январь[[#This Row],[Расход топлива по норме, литр]]/VLOOKUP(Январь[Дата],S$2:W$4,5),0)+Y57,)) ->  | P57: =IFERROR(Январь[[#This Row],[Фактический расход топлива, литр]]-Январь[[#This Row],[Расход топлива по норме, литр]],"") ->  | R57: =Январь[[#This Row],[Дата]] ->  | Z57: =Январь[[#This Row],[Дата]] -> 
A58: 2018-01-26 | G58: 3850 | H58: 29353 | I58: 29361 | J58: =IF(W58="",Январь[[#This Row],[Показание счетчика моточасов спецоборудования на конец дня, м/ч]],Январь[[#This Row],[Показание счетчика моточасов спецоборудования на конец дня, м/ч]]+1)-Январь[[#This Row],[Показание счетчика моточасов спецоборудования на начало дня, м/ч]] -> 8 | L58: =IF(Январь[[#This Row],[Работа спецоборудования за день, м/ч]]="",Январь[[#This Row],[Остаток топлива в баке на начало дня, литр]],Январь[[#This Row],[Работа спецоборудования за день, м/ч]]*$Z$2) -> 145.2 | M58: =Январь[[#This Row],[Выдано топливо, литр]]+U58+Январь[[#This Row],[Остаток топлива в баке на начало дня, литр]] -> 3850 | N58: =IFERROR(ROUND((Январь[[#This Row],[Пройдено за день, км]]*0.01*$Y$2+Январь[[#This Row],[Расход топлива на работу спецоборудования, литр]]),3)+X58,) -> 145.2 | O58: =IF(Январь[[#This Row],[Дата]]="","",IFERROR(ROUND(Январь[[#This Row],[Расход топлива по норме, литр]]/VLOOKUP(Январь[Дата],S$2:W$4,5),0)+Y58,)) -> 0 | P58: =IFERROR(Январь[[#This Row],[Фактический расход топлива, литр]]-Январь[[#This Row],[Расход топлива по норме, литр]],"") -> -145.2 | R58: =Январь[[#This Row],[Дата]] -> 2018-01-26 | Z58: =Январь[[#This Row],[Дата]] -> 2018-01-26
G59: 3850 | H59: 29361 | I59: 29361 | J59: =IF(W59="",Январь[[#This Row],[Показание счетчика моточасов спецоборудования на конец дня, м/ч]],Январь[[#This Row],[Показание счетчика моточасов спецоборудования на конец дня, м/ч]]+1)-Январь[[#This Row],[Показание счетчика моточасов спецоборудования на начало дня, м/ч]] -> 0 | L59: =IF(Январь[[#This Row],[Работа спецоборудования за день, м/ч]]="",Январь[[#This Row],[Остаток топлива в баке на начало дня, литр]],Январь[[#This Row],[Работа спецоборудования за день, м/ч]]*$Z$2) -> 0 | M59: =Январь[[#This Row],[Выдано топливо, литр]]+U59+Январь[[#This Row],[Остаток топлива в баке на начало дня, литр]] -> 3850 | N59: =IFERROR(ROUND((Январь[[#This Row],[Пройдено за день, км]]*0.01*$Y$2+Январь[[#This Row],[Расход топлива на работу спецоборудования, литр]]),3)+X59,) -> 0 | O59: =IF(Январь[[#This Row],[Дата]]="","",IFERROR(ROUND(Январь[[#This Row],[Расход топлива по норме, литр]]/VLOOKUP(Январь[Дата],S$2:W$4,5),0)+Y59,)) ->  | P59: =IFERROR(Январь[[#This Row],[Фактический расход топлива, литр]]-Январь[[#This Row],[Расход топлива по норме, литр]],"") ->  | R59: =Январь[[#This Row],[Дата]] ->  | Z59: =Январь[[#This Row],[Дата]] -> 
A60: 2018-01-27 | G60: 3850 | H60: 29361 | I60: 29372 | J60: =IF(W60="",Январь[[#This Row],[Показание счетчика моточасов спецоборудования на конец дня, м/ч]],Январь[[#This Row],[Показание счетчика моточасов спецоборудования на конец дня, м/ч]]+1)-Январь[[#This Row],[Показание счетчика моточасов спецоборудования на начало дня, м/ч]] -> 11 | L60: =IF(Январь[[#This Row],[Работа спецоборудования за день, м/ч]]="",Январь[[#This Row],[Остаток топлива в баке на начало дня, литр]],Январь[[#This Row],[Работа спецоборудования за день, м/ч]]*$Z$2) -> 199.65 | M60: =Январь[[#This Row],[Выдано топливо, литр]]+U60+Январь[[#This Row],[Остаток топлива в баке на начало дня, литр]] -> 4120 | N60: =IFERROR(ROUND((Январь[[#This Row],[Пройдено за день, км]]*0.01*$Y$2+Январь[[#This Row],[Расход топлива на работу спецоборудования, литр]]),3)+X60,) -> 199.65 | O60: =IF(Январь[[#This Row],[Дата]]="","",IFERROR(ROUND(Январь[[#This Row],[Расход топлива по норме, литр]]/VLOOKUP(Январь[Дата],S$2:W$4,5),0)+Y60,)) -> 0 | P60: =IFERROR(Январь[[#This Row],[Фактический расход топлива, литр]]-Январь[[#This Row],[Расход топлива по норме, литр]],"") -> -199.65 | R60: =Январь[[#This Row],[Дата]] -> 2018-01-27 | U60: 270 | Z60: =Январь[[#This Row],[Дата]] -> 2018-01-27
G61: 4120 | H61: 29372 | I61: 29372 | J61: =IF(W61="",Январь[[#This Row],[Показание счетчика моточасов спецоборудования на конец дня, м/ч]],Январь[[#This Row],[Показание счетчика моточасов спецоборудования на конец дня, м/ч]]+1)-Январь[[#This Row],[Показание счетчика моточасов спецоборудования на начало дня, м/ч]] -> 0 | L61: =IF(Январь[[#This Row],[Работа спецоборудования за день, м/ч]]="",Январь[[#This Row],[Остаток топлива в баке на начало дня, литр]],Январь[[#This Row],[Работа спецоборудования за день, м/ч]]*$Z$2) -> 0 | M61: =Январь[[#This Row],[Выдано топливо, литр]]+U61+Январь[[#This Row],[Остаток топлива в баке на начало дня, литр]] -> 4120 | N61: =IFERROR(ROUND((Январь[[#This Row],[Пройдено за день, км]]*0.01*$Y$2+Январь[[#This Row],[Расход топлива на работу спецоборудования, литр]]),3)+X61,) -> 0 | O61: =IF(Январь[[#This Row],[Дата]]="","",IFERROR(ROUND(Январь[[#This Row],[Расход топлива по норме, литр]]/VLOOKUP(Январь[Дата],S$2:W$4,5),0)+Y61,)) ->  | P61: =IFERROR(Январь[[#This Row],[Фактический расход топлива, литр]]-Январь[[#This Row],[Расход топлива по норме, литр]],"") ->  | R61: =Январь[[#This Row],[Дата]] ->  | Z61: =Январь[[#This Row],[Дата]] -> 
A62: 2018-01-28 | G62: 4120 | H62: 29372 | I62: 29382 | J62: =IF(W62="",Январь[[#This Row],[Показание счетчика моточасов спецоборудования на конец дня, м/ч]],Январь[[#This Row],[Показание счетчика моточасов спецоборудования на конец дня, м/ч]]+1)-Январь[[#This Row],[Показание счетчика моточасов спецоборудования на начало дня, м/ч]] -> 10 | L62: =IF(Январь[[#This Row],[Работа спецоборудования за день, м/ч]]="",Январь[[#This Row],[Остаток топлива в баке на начало дня, литр]],Январь[[#This Row],[Работа спецоборудования за день, м/ч]]*$Z$2) -> 181.5 | M62: =Январь[[#This Row],[Выдано топливо, литр]]+U62+Январь[[#This Row],[Остаток топлива в баке на начало дня, литр]] -> 4370 | N62: =IFERROR(ROUND((Январь[[#This Row],[Пройдено за день, км]]*0.01*$Y$2+Январь[[#This Row],[Расход топлива на работу спецоборудования, литр]]),3)+X62,) -> 181.5 | O62: =IF(Январь[[#This Row],[Дата]]="","",IFERROR(ROUND(Январь[[#This Row],[Расход топлива по норме, литр]]/VLOOKUP(Январь[Дата],S$2:W$4,5),0)+Y62,)) -> 0 | P62: =IFERROR(Январь[[#This Row],[Фактический расход топлива, литр]]-Январь[[#This Row],[Расход топлива по норме, литр]],"") -> -181.5 | R62: =Январь[[#This Row],[Дата]] -> 2018-01-28 | U62: 250 | Z62: =Январь[[#This Row],[Дата]] -> 2018-01-28
G63: 4370 | H63: 29382 | I63: 29382 | J63: =IF(W63="",Январь[[#This Row],[Показание счетчика моточасов спецоборудования на конец дня, м/ч]],Январь[[#This Row],[Показание счетчика моточасов спецоборудования на конец дня, м/ч]]+1)-Январь[[#This Row],[Показание счетчика моточасов спецоборудования на начало дня, м/ч]] -> 0 | L63: =IF(Январь[[#This Row],[Работа спецоборудования за день, м/ч]]="",Январь[[#This Row],[Остаток топлива в баке на начало дня, литр]],Январь[[#This Row],[Работа спецоборудования за день, м/ч]]*$Z$2) -> 0 | M63: =Январь[[#This Row],[Выдано топливо, литр]]+U63+Январь[[#This Row],[Остаток топлива в баке на начало дня, литр]] -> 4370 | N63: =IFERROR(ROUND((Январь[[#This Row],[Пройдено за день, км]]*0.01*$Y$2+Январь[[#This Row],[Расход топлива на работу спецоборудования, литр]]),3)+X63,) -> 0 | O63: =IF(Январь[[#This Row],[Дата]]="","",IFERROR(ROUND(Январь[[#This Row],[Расход топлива по норме, литр]]/VLOOKUP(Январь[Дата],S$2:W$4,5),0)+Y63,)) ->  | P63: =IFERROR(Январь[[#This Row],[Фактический расход топлива, литр]]-Январь[[#This Row],[Расход топлива по норме, литр]],"") ->  | R63: =Январь[[#This Row],[Дата]] ->  | Z63: =Январь[[#This Row],[Дата]] -> 
A64: 2018-01-29 | G64: 4370 | H64: 29382 | I64: 29393 | J64: =IF(W64="",Январь[[#This Row],[Показание счетчика моточасов спецоборудования на конец дня, м/ч]],Январь[[#This Row],[Показание счетчика моточасов спецоборудования на конец дня, м/ч]]+1)-Январь[[#This Row],[Показание счетчика моточасов спецоборудования на начало дня, м/ч]] -> 11 | L64: =IF(Январь[[#This Row],[Работа спецоборудования за день, м/ч]]="",Январь[[#This Row],[Остаток топлива в баке на начало дня, литр]],Январь[[#This Row],[Работа спецоборудования за день, м/ч]]*$Z$2) -> 199.65 | M64: =Январь[[#This Row],[Выдано топливо, литр]]+U64+Январь[[#This Row],[Остаток топлива в баке на начало дня, литр]] -> 4600 | N64: =IFERROR(ROUND((Январь[[#This Row],[Пройдено за день, км]]*0.01*$Y$2+Январь[[#This Row],[Расход топлива на работу спецоборудования, литр]]),3)+X64,) -> 199.65 | O64: =IF(Январь[[#This Row],[Дата]]="","",IFERROR(ROUND(Январь[[#This Row],[Расход топлива по норме, литр]]/VLOOKUP(Январь[Дата],S$2:W$4,5),0)+Y64,)) -> 0 | P64: =IFERROR(Январь[[#This Row],[Фактический расход топлива, литр]]-Январь[[#This Row],[Расход топлива по норме, литр]],"") -> -199.65 | R64: =Январь[[#This Row],[Дата]] -> 2018-01-29 | U64: 230 | Z64: =Январь[[#This Row],[Дата]] -> 2018-01-29
G65: 4600 | H65: 29393 | I65: 29393 | J65: =IF(W65="",Январь[[#This Row],[Показание счетчика моточасов спецоборудования на конец дня, м/ч]],Январь[[#This Row],[Показание счетчика моточасов спецоборудования на конец дня, м/ч]]+1)-Январь[[#This Row],[Показание счетчика моточасов спецоборудования на начало дня, м/ч]] -> 0 | L65: =IF(Январь[[#This Row],[Работа спецоборудования за день, м/ч]]="",Январь[[#This Row],[Остаток топлива в баке на начало дня, литр]],Январь[[#This Row],[Работа спецоборудования за день, м/ч]]*$Z$2) -> 0 | M65: =Январь[[#This Row],[Выдано топливо, литр]]+U65+Январь[[#This Row],[Остаток топлива в баке на начало дня, литр]] -> 4600 | N65: =IFERROR(ROUND((Январь[[#This Row],[Пройдено за день, км]]*0.01*$Y$2+Январь[[#This Row],[Расход топлива на работу спецоборудования, литр]]),3)+X65,) -> 0 | O65: =IF(Январь[[#This Row],[Дата]]="","",IFERROR(ROUND(Январь[[#This Row],[Расход топлива по норме, литр]]/VLOOKUP(Январь[Дата],S$2:W$4,5),0)+Y65,)) ->  | P65: =IFERROR(Январь[[#This Row],[Фактический расход топлива, литр]]-Январь[[#This Row],[Расход топлива по норме, литр]],"") ->  | R65: =Январь[[#This Row],[Дата]] ->  | Z65: =Январь[[#This Row],[Дата]] -> 
A66: 2018-01-30 | G66: 4600 | H66: 29393 | I66: 29404 | J66: =IF(W66="",Январь[[#This Row],[Показание счетчика моточасов спецоборудования на конец дня, м/ч]],Январь[[#This Row],[Показание счетчика моточасов спецоборудования на конец дня, м/ч]]+1)-Январь[[#This Row],[Показание счетчика моточасов спецоборудования на начало дня, м/ч]] -> 11 | L66: =IF(Январь[[#This Row],[Работа спецоборудования за день, м/ч]]="",Январь[[#This Row],[Остаток топлива в баке на начало дня, литр]],Январь[[#This Row],[Работа спецоборудования за день, м/ч]]*$Z$2) -> 199.65 | M66: =Январь[[#This Row],[Выдано топливо, литр]]+U66+Январь[[#This Row],[Остаток топлива в баке на начало дня, литр]] -> 4800 | N66: =IFERROR(ROUND((Январь[[#This Row],[Пройдено за день, км]]*0.01*$Y$2+Январь[[#This Row],[Расход топлива на работу спецоборудования, литр]]),3)+X66,) -> 199.65 | O66: =IF(Январь[[#This Row],[Дата]]="","",IFERROR(ROUND(Январь[[#This Row],[Расход топлива по норме, литр]]/VLOOKUP(Январь[Дата],S$2:W$4,5),0)+Y66,)) -> 0 | P66: =IFERROR(Январь[[#This Row],[Фактический расход топлива, литр]]-Январь[[#This Row],[Расход топлива по норме, литр]],"") -> -199.65 | R66: =Январь[[#This Row],[Дата]] -> 2018-01-30 | U66: 200 | Z66: =Январь[[#This Row],[Дата]] -> 2018-01-30
C67: =IFERROR(IF(INDIRECT(TEXT(A58,"ММММ")&"!A7:A37")="","",IF(S58="",D58,S58)),"") ->  | G67: 4800 | H67: 29404 | I67: 29404 | J67: =IF(W67="",Январь[[#This Row],[Показание счетчика моточасов спецоборудования на конец дня, м/ч]],Январь[[#This Row],[Показание счетчика моточасов спецоборудования на конец дня, м/ч]]+1)-Январь[[#This Row],[Показание счетчика моточасов спецоборудования на начало дня, м/ч]] -> 0 | L67: =IF(Январь[[#This Row],[Работа спецоборудования за день, м/ч]]="",Январь[[#This Row],[Остаток топлива в баке на начало дня, литр]],Январь[[#This Row],[Работа спецоборудования за день, м/ч]]*$Z$2) -> 0 | M67: =Январь[[#This Row],[Выдано топливо, литр]]+U67+Январь[[#This Row],[Остаток топлива в баке на начало дня, литр]] -> 4800 | N67: =IFERROR(ROUND((Январь[[#This Row],[Пройдено за день, км]]*0.01*$Y$2+Январь[[#This Row],[Расход топлива на работу спецоборудования, литр]]),3)+X67,) -> 0 | O67: =IF(Январь[[#This Row],[Дата]]="","",IFERROR(ROUND(Январь[[#This Row],[Расход топлива по норме, литр]]/VLOOKUP(Январь[Дата],S$2:W$4,5),0)+Y67,)) ->  | P67: =IFERROR(Январь[[#This Row],[Фактический расход топлива, литр]]-Январь[[#This Row],[Расход топлива по норме, литр]],"") ->  | R67: =Январь[[#This Row],[Дата]] ->  | Z67: =Январь[[#This Row],[Дата]] -> 
A68: 2018-01-31 | C68: =IFERROR(IF(INDIRECT(TEXT(#REF!,"ММММ")&"!A7:A37")="","",IF(#REF!="",#REF!,#REF!)),"") ->  | G68: 4800 | H68: 29404 | I68: 29409 | J68: =IF(W68="",Январь[[#This Row],[Показание счетчика моточасов спецоборудования на конец дня, м/ч]],Январь[[#This Row],[Показание счетчика моточасов спецоборудования на конец дня, м/ч]]+1)-Январь[[#This Row],[Показание счетчика моточасов спецоборудования на начало дня, м/ч]] -> 5 | L68: =IF(Январь[[#This Row],[Работа спецоборудования за день, м/ч]]="",Январь[[#This Row],[Остаток топлива в баке на начало дня, литр]],Январь[[#This Row],[Работа спецоборудования за день, м/ч]]*$Z$2) -> 90.75 | M68: =Январь[[#This Row],[Выдано топливо, литр]]+U68+Январь[[#This Row],[Остаток топлива в баке на начало дня, литр]] -> 4980 | N68: =IFERROR(ROUND((Январь[[#This Row],[Пройдено за день, км]]*0.01*$Y$2+Январь[[#This Row],[Расход топлива на работу спецоборудования, литр]]),3)+X68,) -> 90.75 | O68: =IF(Январь[[#This Row],[Дата]]="","",IFERROR(ROUND(Январь[[#This Row],[Расход топлива по норме, литр]]/VLOOKUP(Январь[Дата],S$2:W$4,5),0)+Y68,)) -> 0 | P68: =IFERROR(Январь[[#This Row],[Фактический расход топлива, литр]]-Январь[[#This Row],[Расход топлива по норме, литр]],"") -> -90.75 | R68: =Январь[[#This Row],[Дата]] -> 2018-01-31 | U68: 180 | Z68: =Январь[[#This Row],[Дата]] -> 2018-01-31
A69: =IF(ISEVEN(ROW(A63)),IFERROR(--(ROW(A63)/2&P$1&I$4),""),"") ->  | G69: 4980 | H69: 29409 | I69: 29416 | J69: =IF(W70="",Январь[[#This Row],[Показание счетчика моточасов спецоборудования на конец дня, м/ч]],Январь[[#This Row],[Показание счетчика моточасов спецоборудования на конец дня, м/ч]]+1)-Январь[[#This Row],[Показание счетчика моточасов спецоборудования на начало дня, м/ч]] -> 8 | L69: =IF(Январь[[#This Row],[Работа спецоборудования за день, м/ч]]="",Январь[[#This Row],[Остаток топлива в баке на начало дня, литр]],Январь[[#This Row],[Работа спецоборудования за день, м/ч]]*$Z$2) -> 145.2 | M69: =Январь[[#This Row],[Выдано топливо, литр]]+U70+Январь[[#This Row],[Остаток топлива в баке на начало дня, литр]] -> 7280 | N69: =IFERROR(ROUND((Январь[[#This Row],[Пройдено за день, км]]*0.01*$Y$2+Январь[[#This Row],[Расход топлива на работу спецоборудования, литр]]),3)+X70,) -> 145.2 | O69: =IF(Январь[[#This Row],[Дата]]="","",IFERROR(ROUND(Январь[[#This Row],[Расход топлива по норме, литр]]/VLOOKUP(Январь[Дата],S$2:W$4,5),0)+Y69,)) ->  | P69: =IFERROR(Январь[[#This Row],[Фактический расход топлива, литр]]-Январь[[#This Row],[Расход топлива по норме, литр]],"") ->  | R69: =Январь[[#This Row],[Дата]] ->  | Z69: =Январь[[#This Row],[Дата]] -> 
A70: Итог | E70: =SUBTOTAL(109,Январь[Пройдено за день, км]) -> 0 | F70: =SUBTOTAL(109,Январь[Выдано топливо, литр]) -> 0 | J70: =SUBTOTAL(109,Январь[Работа спецоборудования за день, м/ч]) -> 247 | K70: =SUBTOTAL(109,Январь[Количество ходок]) -> 0 | L70: =SUBTOTAL(109,Январь[Расход топлива на работу спецоборудования, литр]) -> 4483.05 | N70: =SUBTOTAL(109,Январь[Расход топлива по норме, литр]) -> 4483.05 | O70: =SUBTOTAL(109,Январь[Фактический расход топлива, литр]) -> 2300 | P70: =SUBTOTAL(109,Январь[Отклонение от нормы (Перерасход(+), экономия(-)), литр]) -> -1674.85 | R70: 1-я пол. | S70: =SUMIFS(S$7:S$69,INDIRECT("Январь[Дата]"),">="&$S$2,INDIRECT("Январь[Дата]"),"<="&$T$2)+IF(MONTH($T$2)<>MONTH($S$2),INDIRECT(TEXT($A$7-1,"ММММ")&"!F38")-SUM(INDIRECT(TEXT($A$7-1,"ММММ")&"!V1:V2"))) -> 0 | T70: 0 | U70: 2300 | V70: 0 | W70: 0 | X70: 0 | Y70: 0 | Z70: 1-я пол.
K71: =SUMIFS(K7:K69,A7:A69,">="&$S$2,A7:A69,"<="&$T$2) -> 0 | R71: 2-я пол. | S71: =SUMIFS(S$7:S$69,INDIRECT("Январь[Дата]"),">="&$S$3,INDIRECT("Январь[Дата]"),"<="&$T$3)+IF(MONTH($T$3)<>MONTH($S$3),INDIRECT(TEXT($A$7-1,"ММММ")&"!F38")-SUM(INDIRECT(TEXT($A$7-1,"ММММ")&"!V1:V2"))) ->  | Z71: 2-я пол.
K72: =SUMIFS(K7:K69,A7:A69,">="&$S$3,A7:A69,"<="&$T$3) -> 0

Sheet Февраль
P1: Февраль | X1: Экономия | Y1: Базовая норма расхода на 100 км | Z1: Базовая норма расхода на 1 мото/час
A2: Общество с ограниченной ответственностью "Втормет Царицыно" | R2: 1-я пол. | S2: =INDIRECT(TEXT(A7-1,"ММММ")&"!T3")+1 ->  | T2: 2018-02-15 | U2: =ТС!E5 -> 350 | V2: =SUMIFS(Февраль[Выдано топливо, литр],Февраль[Дата],">="&$S$2,Февраль[Дата],"<="&$T$2)+IF(MONTH(T2)<>MONTH(S2),INDIRECT(TEXT(A7-1,"ММММ")&"!F38")-SUM(INDIRECT(TEXT(A7-1,"ММММ")&"!V1:V2")))+SUMIFS($U$7:$U$37,Февраль[Дата],">="&$S$2,Февраль[Дата],"<="&$T$2)+IF(MONTH(T2)<>MONTH(S2),INDIRECT(TEXT(A7-1,"ММММ")&"!F38")-SUM(INDIRECT(TEXT(A7-1,"ММММ")&"!V1:V2"))) ->  | W2: =IF(V2=0,0,(SUMIFS(N7:N37,A7:A37,">="&S2,A7:A37,"<="&T2)+SUMIFS(INDIRECT(TEXT(A7-1,"ММММ")&"!N7:N37"),INDIRECT(TEXT(A7-1,"ММММ")&"!A7:A37"),">="&S2))/(V2-U2+IF(MONTH(T2)=MONTH(S2),G7,INDEX(INDIRECT(TEXT(A7-1,"ММММ")&"!G7:G37"),DAY(S2))))) ->  | X2: =SUMIFS(Февраль[Отклонение от нормы (Перерасход(+), экономия(-)), литр],Февраль[Дата],">="&$S$2,Февраль[Дата],"<="&$T$2) -> 0 | Y2: =IF(Y4="Зима",VLOOKUP(Z4,Расчет[[Номер гос.регистрации / Заводской номер]:[Итога норма а/м "ЛЕТО"]],8,FALSE),VLOOKUP(Z4,Расчет[[Номер гос.регистрации / Заводской номер]:[Итога норма а/м "ЛЕТО"]],9,FALSE)) -> 0 | Z2: =IF(Y4="Зима",VLOOKUP(Z4,Расчет[[Номер гос.регистрации / Заводской номер]:[Итога норма а/м "ЛЕТО"]],13,FALSE),VLOOKUP(Z4,Расчет[[Номер гос.регистрации / Заводской номер]:[Итога норма а/м "ЛЕТО"]],14,FALSE)) -> 18.15
A3: Отчет водителя ломовоза с манипулятором | R3: 2-я пол. | S3: =T2+1 -> 2018-02-16 | T3: =INDEX(Февраль[Дата],COUNT(Февраль[Дата]))-T1 -> 2018-02-28 | U3: =ТС!E6 -> 350 | V3: =SUMIFS(Февраль[Выдано топливо, литр],Февраль[Дата],">="&$S$3,Февраль[Дата],"<="&$T$3)+IF(MONTH(T3)<>MONTH(S3),INDIRECT(TEXT(A7-1,"ММММ")&"!F38")-SUM(INDIRECT(TEXT(A7-1,"ММММ")&"!V1:V2")))+SUMIFS($U$7:$U$37,Февраль[Дата],">="&$S$3,Февраль[Дата],"<="&$T$3)+IF(MONTH(T3)<>MONTH(S3),INDIRECT(TEXT(A7-1,"ММММ")&"!F38")-SUM(INDIRECT(TEXT(A7-1,"ММММ")&"!V1:V2"))) ->  | W3: =IF(V3=0,0,(SUMIFS(N7:N37,A7:A37,">="&S3,A7:A37,"<="&T3)+SUMIFS(INDIRECT(TEXT(A7-1,"ММММ")&"!N7:N37"),INDIRECT(TEXT(A7-1,"ММММ")&"!A7:A37"),">="&S3))/(V3-U3+IF(MONTH(T3)=MONTH(S3),G7,INDEX(INDIRECT(TEXT(A7-1,"ММММ")&"!G7:G37"),DAY(S3))))) ->  | X3: =SUMIFS(Февраль[Отклонение от нормы (Перерасход(+), экономия(-)), литр],Февраль[Дата],">="&$S$3,Февраль[Дата],"<="&$T$3) -> -2559.15
H4: за | I4: 2018 | O4: =Январь!O4 -> Фукс 350 c | S4: =IF(INDEX(Февраль[Дата],COUNT(Февраль[Дата]))=T3,"",T3+1) ->  | W4: =IFERROR(IF(S4="","",INDIRECT(TEXT(A7+40,"ММММ")&"!W2")),) ->  | Y4: Зима | Z4: Норма 1
A6: Дата | B6: ФИО водителя | C6: Показание одометра машины на начало дня, км | D6: Показание одометра машины на конец дня, км | E6: Пройдено за день, км | F6: Выдано топливо, литр | G6: Остаток топлива в баке на начало дня, литр | H6: Показание счетчика моточасов спецоборудования на начало дня, м/ч | I6: Показание счетчика моточасов спецоборудования на конец дня, м/ч | J6: Работа спецоборудования за день, м/ч | K6: Количество ходок | L6: Расход топлива на работу спецоборудования, литр | M6: Остаток топлива в баке на конец дня, литр | N6: Расход топлива по норме, литр | O6: Фактический расход топлива, литр | P6: Отклонение от нормы (Перерасход(+), экономия(-)), литр | R6: Дата | S6: Обнуление одометра, км | T6: Пройдено за день, км | U6: Выдано топливо, литр | V6: Обнуление счетчика моточасов спецоборудования, м/ч | W6: Работа спецоборудования за день, м/ч | X6: Расход топлива по норме, литр | Y6: Фактический расход топлива, литр | Z6: Дата
A7: =IFERROR(DATEVALUE((COUNT($A$6:A6)+1)&$P$1&$I$4),"") -> 2018-02-01 | B7: Шумов С.А. | C7: =INDEX(Январь!D7:D69,COUNT(Январь!D7:D69)) -> 0 | E7: =IFERROR(Февраль[[#This Row],[Показание одометра машины на конец дня, км]]-Февраль[[#This Row],[Показание одометра машины на начало дня, км]]+T7,"") -> 0 | F7: =IF(Февраль[[#This Row],[Дата]]="","",SUMPRODUCT([1]Февраль!$E$4:$E$153*([1]Февраль!$F$4:$F$153=$O$4)*([1]Февраль!$D$4:$D$153=Январь[[#This Row],[Дата]]))) ->  | G7: =U2 -> 350 | H7: =INDEX(Январь!I7:I68,COUNT(Январь!I7:I68)) -> 29409 | I7: 29425 | J7: =IFERROR(IF(W7="",Февраль[[#This Row],[Показание счетчика моточасов спецоборудования на конец дня, м/ч]],Февраль[[#This Row],[Показание счетчика моточасов спецоборудования на конец дня, м/ч]]+1)-Февраль[[#This Row],[Показание счетчика моточасов спецоборудования на начало дня, м/ч]],"") -> 16 | L7: =IF(Февраль[[#This Row],[Работа спецоборудования за день, м/ч]]="","",Февраль[[#This Row],[Работа спецоборудования за день, м/ч]]*$Z$2) -> 290.4 | M7: =IFERROR(IF(VLOOKUP(Февраль[Дата],S$2:U$3,3),IFERROR(IF(U7="",Февраль[[#This Row],[Выдано топливо, литр]],Февраль[[#This Row],[Выдано топливо, литр]]+U7)+Февраль[[#This Row],[Остаток топлива в баке на начало дня, литр]]-Февраль[[#This Row],[Фактический расход топлива, литр]],""),""),"") ->  | N7: =IFERROR(ROUND((Февраль[[#This Row],[Пройдено за день, км]]*0.01*$Y$2+Февраль[[#This Row],[Расход топлива на работу спецоборудования, литр]]),3)+X7,"") -> 290.4 | O7: =IF(Февраль[[#This Row],[Дата]]="","",IFERROR(ROUND(Февраль[[#This Row],[Расход топлива по норме, литр]]/VLOOKUP(Февраль[Дата],S$2:W$4,5),0)+Y7,)) -> 0 | P7: =IFERROR(Февраль[[#This Row],[Фактический расход топлива, литр]]-Февраль[[#This Row],[Расход топлива по норме, литр]],"") -> -290.4 | R7: =Февраль[[#This Row],[Дата]] -> 2018-02-01 | Z7: =Февраль[[#This Row],[Дата]] -> 2018-02-01
A8: =IFERROR(DATEVALUE((COUNT($A$6:A7)+1)&$P$1&$I$4),"") -> 2018-02-02 | B8: Шумов С.А. | C8: =IFERROR(IF(INDIRECT(TEXT(A7-1,"ММММ")&"!A7:A37")="","",IF(S7="",D7,S7)),"") -> 0 | E8: =IFERROR(Февраль[[#This Row],[Показание одометра машины на конец дня, км]]-Февраль[[#This Row],[Показание одометра машины на начало дня, км]]+T8,"") -> 0 | F8: =IF(Февраль[[#This Row],[Дата]]="","",SUMPRODUCT([1]Февраль!$E$4:$E$153*([1]Февраль!$F$4:$F$153=$O$4)*([1]Февраль!$D$4:$D$153=Январь[[#This Row],[Дата]]))) ->  | G8: =IF(Февраль[[#This Row],[Дата]]="","",M7) ->  | H8: =IFERROR(IF(INDIRECT(TEXT(A7-1,"ММММ")&"!A7:A37")="","",IF(V7="",I7,V7)),"") -> 29425 | I8: 29434 | J8: =IFERROR(IF(W8="",Февраль[[#This Row],[Показание счетчика моточасов спецоборудования на конец дня, м/ч]],Февраль[[#This Row],[Показание счетчика моточасов спецоборудования на конец дня, м/ч]]+1)-Февраль[[#This Row],[Показание счетчика моточасов спецоборудования на начало дня, м/ч]],"") -> 9 | L8: =IF(Февраль[[#This Row],[Работа спецоборудования за день, м/ч]]="","",Февраль[[#This Row],[Работа спецоборудования за день, м/ч]]*$Z$2) -> 163.35 | M8: =IFERROR(IF(VLOOKUP(Февраль[Дата],S$2:U$3,3),IFERROR(IF(U8="",Февраль[[#This Row],[Выдано топливо, литр]],Февраль[[#This Row],[Выдано топливо, литр]]+U8)+Февраль[[#This Row],[Остаток топлива в баке на начало дня, литр]]-Февраль[[#This Row],[Фактический расход топлива, литр]],""),""),"") ->  | N8: =IFERROR(ROUND((Февраль[[#This Row],[Пройдено за день, км]]*0.01*$Y$2+Февраль[[#This Row],[Расход топлива на работу спецоборудования, литр]]),3)+X8,"") -> 163.35 | O8: =IF(Февраль[[#This Row],[Дата]]="","",IFERROR(ROUND(Февраль[[#This Row],[Расход топлива по норме, литр]]/VLOOKUP(Февраль[Дата],S$2:W$4,5),0)+Y8,)) -> 0 | P8: =IFERROR(Февраль[[#This Row],[Фактический расход топлива, литр]]-Февраль[[#This Row],[Расход топлива по норме, литр]],"") -> -163.35 | R8: =Февраль[[#This Row],[Дата]] -> 2018-02-02 | Z8: =Февраль[[#This Row],[Дата]] -> 2018-02-02
A9: =IFERROR(DATEVALUE((COUNT($A$6:A8)+1)&$P$1&$I$4),"") -> 2018-02-03 | B9: Шумов С.А. | C9: =IFERROR(IF(INDIRECT(TEXT(A8-1,"ММММ")&"!A7:A37")="","",IF(S8="",D8,S8)),"") -> 0 | E9: =IFERROR(Февраль[[#This Row],[Показание одометра машины на конец дня, км]]-Февраль[[#This Row],[Показание одометра машины на начало дня, км]]+T9,"") -> 0 | F9: =IF(Февраль[[#This Row],[Дата]]="","",SUMPRODUCT([1]Февраль!$E$4:$E$153*([1]Февраль!$F$4:$F$153=$O$4)*([1]Февраль!$D$4:$D$153=Январь[[#This Row],[Дата]]))) ->  | G9: =IF(Февраль[[#This Row],[Дата]]="","",M8) ->  | H9: =IFERROR(IF(INDIRECT(TEXT(A8-1,"ММММ")&"!A7:A37")="","",IF(V8="",I8,V8)),"") -> 29434 | I9: 29441 | J9: =IFERROR(IF(W9="",Февраль[[#This Row],[Показание счетчика моточасов спецоборудования на конец дня, м/ч]],Февраль[[#This Row],[Показание счетчика моточасов спецоборудования на конец дня, м/ч]]+1)-Февраль[[#This Row],[Показание счетчика моточасов спецоборудования на начало дня, м/ч]],"") -> 7 | L9: =IF(Февраль[[#This Row],[Работа спецоборудования за день, м/ч]]="","",Февраль[[#This Row],[Работа спецоборудования за день, м/ч]]*$Z$2) -> 127.05 | M9: =IFERROR(IF(VLOOKUP(Февраль[Дата],S$2:U$3,3),IFERROR(IF(U9="",Февраль[[#This Row],[Выдано топливо, литр]],Февраль[[#This Row],[Выдано топливо, литр]]+U9)+Февраль[[#This Row],[Остаток топлива в баке на начало дня, литр]]-Февраль[[#This Row],[Фактический расход топлива, литр]],""),""),"") ->  | N9: =IFERROR(ROUND((Февраль[[#This Row],[Пройдено за день, км]]*0.01*$Y$2+Февраль[[#This Row],[Расход топлива на работу спецоборудования, литр]]),3)+X9,"") -> 127.05 | O9: =IF(Февраль[[#This Row],[Дата]]="","",IFERROR(ROUND(Февраль[[#This Row],[Расход топлива по норме, литр]]/VLOOKUP(Февраль[Дата],S$2:W$4,5),0)+Y9,)) -> 0 | P9: =IFERROR(Февраль[[#This Row],[Фактический расход топлива, литр]]-Февраль[[#This Row],[Расход топлива по норме, литр]],"") -> -127.05 | R9: =Февраль[[#This Row],[Дата]] -> 2018-02-03 | U9: 300 | Z9: =Февраль[[#This Row],[Дата]] -> 2018-02-03
A10: =IFERROR(DATEVALUE((COUNT($A$6:A9)+1)&$P$1&$I$4),"") -> 2018-02-04 | B10: Шумов С.А. | C10: 0 | E10: =IFERROR(Февраль[[#This Row],[Показание одометра машины на конец дня, км]]-Февраль[[#This Row],[Показание одометра машины на начало дня, км]]+T10,"") -> 0 | F10: =IF(Февраль[[#This Row],[Дата]]="","",SUMPRODUCT([1]Февраль!$E$4:$E$153*([1]Февраль!$F$4:$F$153=$O$4)*([1]Февраль!$D$4:$D$153=Январь[[#This Row],[Дата]]))) ->  | G10: =IF(Февраль[[#This Row],[Дата]]="","",M9) ->  | H10: 29441 | I10: 29447 | J10: =IFERROR(IF(W10="",Февраль[[#This Row],[Показание счетчика моточасов спецоборудования на конец дня, м/ч]],Февраль[[#This Row],[Показание счетчика моточасов спецоборудования на конец дня, м/ч]]+1)-Февраль[[#This Row],[Показание счетчика моточасов спецоборудования на начало дня, м/ч]],"") -> 6 | L10: =IF(Февраль[[#This Row],[Работа спецоборудования за день, м/ч]]="","",Февраль[[#This Row],[Работа спецоборудования за день, м/ч]]*$Z$2) -> 108.9 | M10: =IFERROR(IF(VLOOKUP(Февраль[Дата],S$2:U$3,3),IFERROR(IF(U10="",Февраль[[#This Row],[Выдано топливо, литр]],Февраль[[#This Row],[Выдано топливо, литр]]+U10)+Февраль[[#This Row],[Остаток топлива в баке на начало дня, литр]]-Февраль[[#This Row],[Фактический расход топлива, литр]],""),""),"") ->  | N10: =IFERROR(ROUND((Февраль[[#This Row],[Пройдено за день, км]]*0.01*$Y$2+Февраль[[#This Row],[Расход топлива на работу спецоборудования, литр]]),3)+X10,"") -> 108.9 | O10: =IF(Февраль[[#This Row],[Дата]]="","",IFERROR(ROUND(Февраль[[#This Row],[Расход топлива по норме, литр]]/VLOOKUP(Февраль[Дата],S$2:W$4,5),0)+Y10,)) -> 0 | P10: =IFERROR(Февраль[[#This Row],[Фактический расход топлива, литр]]-Февраль[[#This Row],[Расход топлива по норме, литр]],"") -> -108.9 | R10: =Февраль[[#This Row],[Дата]] -> 2018-02-04 | Z10: =Февраль[[#This Row],[Дата]] -> 2018-02-04
A11: =IFERROR(DATEVALUE((COUNT($A$6:A10)+1)&$P$1&$I$4),"") -> 2018-02-05 | B11: Шумов С.А. | C11: 0 | E11: =IFERROR(Февраль[[#This Row],[Показание одометра машины на конец дня, км]]-Февраль[[#This Row],[Показание одометра машины на начало дня, км]]+T11,"") -> 0 | F11: =IF(Февраль[[#This Row],[Дата]]="","",SUMPRODUCT([1]Февраль!$E$4:$E$153*([1]Февраль!$F$4:$F$153=$O$4)*([1]Февраль!$D$4:$D$153=Январь[[#This Row],[Дата]]))) ->  | G11: =IF(Февраль[[#This Row],[Дата]]="","",M10) ->  | H11: 29447 | I11: 29456 | J11: =IFERROR(IF(W11="",Февраль[[#This Row],[Показание счетчика моточасов спецоборудования на конец дня, м/ч]],Февраль[[#This Row],[Показание счетчика моточасов спецоборудования на конец дня, м/ч]]+1)-Февраль[[#This Row],[Показание счетчика моточасов спецоборудования на начало дня, м/ч]],"") -> 9 | L11: =IF(Февраль[[#This Row],[Работа спецоборудования за день, м/ч]]="","",Февраль[[#This Row],[Работа спецоборудования за день, м/ч]]*$Z$2) -> 163.35 | M11: =IFERROR(IF(VLOOKUP(Февраль[Дата],S$2:U$3,3),IFERROR(IF(U11="",Февраль[[#This Row],[Выдано топливо, литр]],Февраль[[#This Row],[Выдано топливо, литр]]+U11)+Февраль[[#This Row],[Остаток топлива в баке на начало дня, литр]]-Февраль[[#This Row],[Фактический расход топлива, литр]],""),""),"") ->  | N11: =IFERROR(ROUND((Февраль[[#This Row],[Пройдено за день, км]]*0.01*$Y$2+Февраль[[#This Row],[Расход топлива на работу спецоборудования, литр]]),3)+X11,"") -> 163.35 | O11: =IF(Февраль[[#This Row],[Дата]]="","",IFERROR(ROUND(Февраль[[#This Row],[Расход топлива по норме, литр]]/VLOOKUP(Февраль[Дата],S$2:W$4,5),0)+Y11,)) -> 0 | P11: =IFERROR(Февраль[[#This Row],[Фактический расход топлива, литр]]-Февраль[[#This Row],[Расход топлива по норме, литр]],"") -> -163.35 | R11: =Февраль[[#This Row],[Дата]] -> 2018-02-05 | Z11: =Февраль[[#This Row],[Дата]] -> 2018-02-05
A12: =IFERROR(DATEVALUE((COUNT($A$6:A11)+1)&$P$1&$I$4),"") -> 2018-02-06 | B12: Шумов С.А. | C12: 0 | E12: =IFERROR(Февраль[[#This Row],[Показание одометра машины на конец дня, км]]-Февраль[[#This Row],[Показание одометра машины на начало дня, км]]+T12,"") -> 0 | F12: =IF(Февраль[[#This Row],[Дата]]="","",SUMPRODUCT([1]Февраль!$E$4:$E$153*([1]Февраль!$F$4:$F$153=$O$4)*([1]Февраль!$D$4:$D$153=Январь[[#This Row],[Дата]]))) ->  | G12: =IF(Февраль[[#This Row],[Дата]]="","",M11) ->  | H12: 29456 | I12: 29463 | J12: =IFERROR(IF(W12="",Февраль[[#This Row],[Показание счетчика моточасов спецоборудования на конец дня, м/ч]],Февраль[[#This Row],[Показание счетчика моточасов спецоборудования на конец дня, м/ч]]+1)-Февраль[[#This Row],[Показание счетчика моточасов спецоборудования на начало дня, м/ч]],"") -> 7 | L12: =IF(Февраль[[#This Row],[Работа спецоборудования за день, м/ч]]="","",Февраль[[#This Row],[Работа спецоборудования за день, м/ч]]*$Z$2) -> 127.05 | M12: =IFERROR(IF(VLOOKUP(Февраль[Дата],S$2:U$3,3),IFERROR(IF(U12="",Февраль[[#This Row],[Выдано топливо, литр]],Февраль[[#This Row],[Выдано топливо, литр]]+U12)+Февраль[[#This Row],[Остаток топлива в баке на начало дня, литр]]-Февраль[[#This Row],[Фактический расход топлива, литр]],""),""),"") ->  | N12: =IFERROR(ROUND((Февраль[[#This Row],[Пройдено за день, км]]*0.01*$Y$2+Февраль[[#This Row],[Расход топлива на работу спецоборудования, литр]]),3)+X12,"") -> 127.05 | O12: =IF(Февраль[[#This Row],[Дата]]="","",IFERROR(ROUND(Февраль[[#This Row],[Расход топлива по норме, литр]]/VLOOKUP(Февраль[Дата],S$2:W$4,5),0)+Y12,)) -> 0 | P12: =IFERROR(Февраль[[#This Row],[Фактический расход топлива, литр]]-Февраль[[#This Row],[Расход топлива по норме, литр]],"") -> -127.05 | R12: =Февраль[[#This Row],[Дата]] -> 2018-02-06 | U12: 270 | Z12: =Февраль[[#This Row],[Дата]] -> 2018-02-06
A13: =IFERROR(DATEVALUE((COUNT($A$6:A12)+1)&$P$1&$I$4),"") -> 2018-02-07 | B13: Шумов С.А. | C13: 0 | E13: =IFERROR(Февраль[[#This Row],[Показание одометра машины на конец дня, км]]-Февраль[[#This Row],[Показание одометра машины на начало дня, км]]+T13,"") -> 0 | F13: =IF(Февраль[[#This Row],[Дата]]="","",SUMPRODUCT([1]Февраль!$E$4:$E$153*([1]Февраль!$F$4:$F$153=$O$4)*([1]Февраль!$D$4:$D$153=Январь[[#This Row],[Дата]]))) ->  | G13: =IF(Февраль[[#This Row],[Дата]]="","",M12) ->  | H13: 29463 | I13: 29475 | J13: =IFERROR(IF(W13="",Февраль[[#This Row],[Показание счетчика моточасов спецоборудования на конец дня, м/ч]],Февраль[[#This Row],[Показание счетчика моточасов спецоборудования на конец дня, м/ч]]+1)-Февраль[[#This Row],[Показание счетчика моточасов спецоборудования на начало дня, м/ч]],"") -> 12 | L13: =IF(Февраль[[#This Row],[Работа спецоборудования за день, м/ч]]="","",Февраль[[#This Row],[Работа спецоборудования за день, м/ч]]*$Z$2) -> 217.8 | M13: =IFERROR(IF(VLOOKUP(Февраль[Дата],S$2:U$3,3),IFERROR(IF(U13="",Февраль[[#This Row],[Выдано топливо, литр]],Февраль[[#This Row],[Выдано топливо, литр]]+U13)+Февраль[[#This Row],[Остаток топлива в баке на начало дня, литр]]-Февраль[[#This Row],[Фактический расход топлива, литр]],""),""),"") ->  | N13: =IFERROR(ROUND((Февраль[[#This Row],[Пройдено за день, км]]*0.01*$Y$2+Февраль[[#This Row],[Расход топлива на работу спецоборудования, литр]]),3)+X13,"") -> 217.8 | O13: =IF(Февраль[[#This Row],[Дата]]="","",IFERROR(ROUND(Февраль[[#This Row],[Расход топлива по норме, литр]]/VLOOKUP(Февраль[Дата],S$2:W$4,5),0)+Y13,)) -> 0 | P13: =IFERROR(Февраль[[#This Row],[Фактический расход топлива, литр]]-Февраль[[#This Row],[Расход топлива по норме, литр]],"") -> -217.8 | R13: =Февраль[[#This Row],[Дата]] -> 2018-02-07 | Z13: =Февраль[[#This Row],[Дата]] -> 2018-02-07
A14: =IFERROR(DATEVALUE((COUNT($A$6:A13)+1)&$P$1&$I$4),"") -> 2018-02-08 | B14: Шумов С.А. | C14: 0 | E14: =IFERROR(Февраль[[#This Row],[Показание одометра машины на конец дня, км]]-Февраль[[#This Row],[Показание одометра машины на начало дня, км]]+T14,"") -> 0 | F14: =IF(Февраль[[#This Row],[Дата]]="","",SUMPRODUCT([1]Февраль!$E$4:$E$153*([1]Февраль!$F$4:$F$153=$O$4)*([1]Февраль!$D$4:$D$153=Январь[[#This Row],[Дата]]))) ->  | G14: =IF(Февраль[[#This Row],[Дата]]="","",M13) ->  | H14: 29475 | I14: 29483 | J14: =IFERROR(IF(W14="",Февраль[[#This Row],[Показание счетчика моточасов спецоборудования на конец дня, м/ч]],Февраль[[#This Row],[Показание счетчика моточасов спецоборудования на конец дня, м/ч]]+1)-Февраль[[#This Row],[Показание счетчика моточасов спецоборудования на начало дня, м/ч]],"") -> 8 | L14: =IF(Февраль[[#This Row],[Работа спецоборудования за день, м/ч]]="","",Февраль[[#This Row],[Работа спецоборудования за день, м/ч]]*$Z$2) -> 145.2 | M14: =IFERROR(IF(VLOOKUP(Февраль[Дата],S$2:U$3,3),IFERROR(IF(U14="",Февраль[[#This Row],[Выдано топливо, литр]],Февраль[[#This Row],[Выдано топливо, литр]]+U14)+Февраль[[#This Row],[Остаток топлива в баке на начало дня, литр]]-Февраль[[#This Row],[Фактический расход топлива, литр]],""),""),"") ->  | N14: =IFERROR(ROUND((Февраль[[#This Row],[Пройдено за день, км]]*0.01*$Y$2+Февраль[[#This Row],[Расход топлива на работу спецоборудования, литр]]),3)+X14,"") -> 145.2 | O14: =IF(Февраль[[#This Row],[Дата]]="","",IFERROR(ROUND(Февраль[[#This Row],[Расход топлива по норме, литр]]/VLOOKUP(Февраль[Дата],S$2:W$4,5),0)+Y14,)) -> 0 | P14: =IFERROR(Февраль[[#This Row],[Фактический расход топлива, литр]]-Февраль[[#This Row],[Расход топлива по норме, литр]],"") -> -145.2 | R14: =Февраль[[#This Row],[Дата]] -> 2018-02-08 | Z14: =Февраль[[#This Row],[Дата]] -> 2018-02-08
A15: =IFERROR(DATEVALUE((COUNT($A$6:A14)+1)&$P$1&$I$4),"") -> 2018-02-09 | B15: Шумов С.А. | C15: 0 | E15: =IFERROR(Февраль[[#This Row],[Показание одометра машины на конец дня, км]]-Февраль[[#This Row],[Показание одометра машины на начало дня, км]]+T15,"") -> 0 | F15: =IF(Февраль[[#This Row],[Дата]]="","",SUMPRODUCT([1]Февраль!$E$4:$E$153*([1]Февраль!$F$4:$F$153=$O$4)*([1]Февраль!$D$4:$D$153=Январь[[#This Row],[Дата]]))) ->  | G15: =IF(Февраль[[#This Row],[Дата]]="","",M14) ->  | H15: 29483 | I15: 29488 | J15: =IFERROR(IF(W15="",Февраль[[#This Row],[Показание счетчика моточасов спецоборудования на конец дня, м/ч]],Февраль[[#This Row],[Показание счетчика моточасов спецоборудования на конец дня, м/ч]]+1)-Февраль[[#This Row],[Показание счетчика моточасов спецоборудования на начало дня, м/ч]],"") -> 5 | L15: =IF(Февраль[[#This Row],[Работа спецоборудования за день, м/ч]]="","",Февраль[[#This Row],[Работа спецоборудования за день, м/ч]]*$Z$2) -> 90.75 | M15: =IFERROR(IF(VLOOKUP(Февраль[Дата],S$2:U$3,3),IFERROR(IF(U15="",Февраль[[#This Row],[Выдано топливо, литр]],Февраль[[#This Row],[Выдано топливо, литр]]+U15)+Февраль[[#This Row],[Остаток топлива в баке на начало дня, литр]]-Февраль[[#This Row],[Фактический расход топлива, литр]],""),""),"") ->  | N15: =IFERROR(ROUND((Февраль[[#This Row],[Пройдено за день, км]]*0.01*$Y$2+Февраль[[#This Row],[Расход топлива на работу спецоборудования, литр]]),3)+X15,"") -> 90.75 | O15: =IF(Февраль[[#This Row],[Дата]]="","",IFERROR(ROUND(Февраль[[#This Row],[Расход топлива по норме, литр]]/VLOOKUP(Февраль[Дата],S$2:W$4,5),0)+Y15,)) -> 0 | P15: =IFERROR(Февраль[[#This Row],[Фактический расход топлива, литр]]-Февраль[[#This Row],[Расход топлива по норме, литр]],"") -> -90.75 | R15: =Февраль[[#This Row],[Дата]] -> 2018-02-09 | Z15: =Февраль[[#This Row],[Дата]] -> 2018-02-09
A16: =IFERROR(DATEVALUE((COUNT($A$6:A15)+1)&$P$1&$I$4),"") -> 2018-02-10 | B16: Шумов С.А. | C16: 0 | E16: =IFERROR(Февраль[[#This Row],[Показание одометра машины на конец дня, км]]-Февраль[[#This Row],[Показание одометра машины на начало дня, км]]+T16,"") -> 0 | F16: =IF(Февраль[[#This Row],[Дата]]="","",SUMPRODUCT([1]Февраль!$E$4:$E$153*([1]Февраль!$F$4:$F$153=$O$4)*([1]Февраль!$D$4:$D$153=Январь[[#This Row],[Дата]]))) ->  | G16: =IF(Февраль[[#This Row],[Дата]]="","",M15) ->  | H16: 29488 | I16: 29496 | J16: =IFERROR(IF(W16="",Февраль[[#This Row],[Показание счетчика моточасов спецоборудования на конец дня, м/ч]],Февраль[[#This Row],[Показание счетчика моточасов спецоборудования на конец дня, м/ч]]+1)-Февраль[[#This Row],[Показание счетчика моточасов спецоборудования на начало дня, м/ч]],"") -> 8 | L16: =IF(Февраль[[#This Row],[Работа спецоборудования за день, м/ч]]="","",Февраль[[#This Row],[Работа спецоборудования за день, м/ч]]*$Z$2) -> 145.2 | M16: =IFERROR(IF(VLOOKUP(Февраль[Дата],S$2:U$3,3),IFERROR(IF(U16="",Февраль[[#This Row],[Выдано топливо, литр]],Февраль[[#This Row],[Выдано топливо, литр]]+U16)+Февраль[[#This Row],[Остаток топлива в баке на начало дня, литр]]-Февраль[[#This Row],[Фактический расход топлива, литр]],""),""),"") ->  | N16: =IFERROR(ROUND((Февраль[[#This Row],[Пройдено за день, км]]*0.01*$Y$2+Февраль[[#This Row],[Расход топлива на работу спецоборудования, литр]]),3)+X16,"") -> 145.2 | O16: =IF(Февраль[[#This Row],[Дата]]="","",IFERROR(ROUND(Февраль[[#This Row],[Расход топлива по норме, литр]]/VLOOKUP(Февраль[Дата],S$2:W$4,5),0)+Y16,)) -> 0 | P16: =IFERROR(Февраль[[#This Row],[Фактический расход топлива, литр]]-Февраль[[#This Row],[Расход топлива по норме, литр]],"") -> -145.2 | R16: =Февраль[[#This Row],[Дата]] -> 2018-02-10 | U16: 150 | Z16: =Февраль[[#This Row],[Дата]] -> 2018-02-10
A17: =IFERROR(DATEVALUE((COUNT($A$6:A16)+1)&$P$1&$I$4),"") -> 2018-02-11 | B17: Шумов С.А. | C17: 0 | E17: =IFERROR(Февраль[[#This Row],[Показание одометра машины на конец дня, км]]-Февраль[[#This Row],[Показание одометра машины на начало дня, км]]+T17,"") -> 0 | F17: =IF(Февраль[[#This Row],[Дата]]="","",SUMPRODUCT([1]Февраль!$E$4:$E$153*([1]Февраль!$F$4:$F$153=$O$4)*([1]Февраль!$D$4:$D$153=Январь[[#This Row],[Дата]]))) ->  | G17: =IF(Февраль[[#This Row],[Дата]]="","",M16) ->  | H17: 29496 | I17: 29506 | J17: =IFERROR(IF(W17="",Февраль[[#This Row],[Показание счетчика моточасов спецоборудования на конец дня, м/ч]],Февраль[[#This Row],[Показание счетчика моточасов спецоборудования на конец дня, м/ч]]+1)-Февраль[[#This Row],[Показание счетчика моточасов спецоборудования на начало дня, м/ч]],"") -> 10 | L17: =IF(Февраль[[#This Row],[Работа спецоборудования за день, м/ч]]="","",Февраль[[#This Row],[Работа спецоборудования за день, м/ч]]*$Z$2) -> 181.5 | M17: =IFERROR(IF(VLOOKUP(Февраль[Дата],S$2:U$3,3),IFERROR(IF(U17="",Февраль[[#This Row],[Выдано топливо, литр]],Февраль[[#This Row],[Выдано топливо, литр]]+U17)+Февраль[[#This Row],[Остаток топлива в баке на начало дня, литр]]-Февраль[[#This Row],[Фактический расход топлива, литр]],""),""),"") ->  | N17: =IFERROR(ROUND((Февраль[[#This Row],[Пройдено за день, км]]*0.01*$Y$2+Февраль[[#This Row],[Расход топлива на работу спецоборудования, литр]]),3)+X17,"") -> 181.5 | O17: =IF(Февраль[[#This Row],[Дата]]="","",IFERROR(ROUND(Февраль[[#This Row],[Расход топлива по норме, литр]]/VLOOKUP(Февраль[Дата],S$2:W$4,5),0)+Y17,)) -> 0 | P17: =IFERROR(Февраль[[#This Row],[Фактический расход топлива, литр]]-Февраль[[#This Row],[Расход топлива по норме, литр]],"") -> -181.5 | R17: =Февраль[[#This Row],[Дата]] -> 2018-02-11 | U17: 190 | Z17: =Февраль[[#This Row],[Дата]] -> 2018-02-11
A18: =IFERROR(DATEVALUE((COUNT($A$6:A17)+1)&$P$1&$I$4),"") -> 2018-02-12 | B18: Шумов С.А. | C18: 0 | E18: =IFERROR(Февраль[[#This Row],[Показание одометра машины на конец дня, км]]-Февраль[[#This Row],[Показание одометра машины на начало дня, км]]+T18,"") -> 0 | F18: =IF(Февраль[[#This Row],[Дата]]="","",SUMPRODUCT([1]Февраль!$E$4:$E$153*([1]Февраль!$F$4:$F$153=$O$4)*([1]Февраль!$D$4:$D$153=Январь[[#This Row],[Дата]]))) ->  | G18: =IF(Февраль[[#This Row],[Дата]]="","",M17) ->  | H18: 29506 | I18: 29511 | J18: =IFERROR(IF(W18="",Февраль[[#This Row],[Показание счетчика моточасов спецоборудования на конец дня, м/ч]],Февраль[[#This Row],[Показание счетчика моточасов спецоборудования на конец дня, м/ч]]+1)-Февраль[[#This Row],[Показание счетчика моточасов спецоборудования на начало дня, м/ч]],"") -> 5 | L18: =IF(Февраль[[#This Row],[Работа спецоборудования за день, м/ч]]="","",Февраль[[#This Row],[Работа спецоборудования за день, м/ч]]*$Z$2) -> 90.75 | M18: =IFERROR(IF(VLOOKUP(Февраль[Дата],S$2:U$3,3),IFERROR(IF(U18="",Февраль[[#This Row],[Выдано топливо, литр]],Февраль[[#This Row],[Выдано топливо, литр]]+U18)+Февраль[[#This Row],[Остаток топлива в баке на начало дня, литр]]-Февраль[[#This Row],[Фактический расход топлива, литр]],""),""),"") ->  | N18: =IFERROR(ROUND((Февраль[[#This Row],[Пройдено за день, км]]*0.01*$Y$2+Февраль[[#This Row],[Расход топлива на работу спецоборудования, литр]]),3)+X18,"") -> 90.75 | O18: =IF(Февраль[[#This Row],[Дата]]="","",IFERROR(ROUND(Февраль[[#This Row],[Расход топлива по норме, литр]]/VLOOKUP(Февраль[Дата],S$2:W$4,5),0)+Y18,)) -> 0 | P18: =IFERROR(Февраль[[#This Row],[Фактический расход топлива, литр]]-Февраль[[#This Row],[Расход топлива по норме, литр]],"") -> -90.75 | R18: =Февраль[[#This Row],[Дата]] -> 2018-02-12 | U18: 170 | Z18: =Февраль[[#This Row],[Дата]] -> 2018-02-12
A19: =IFERROR(DATEVALUE((COUNT($A$6:A18)+1)&$P$1&$I$4),"") -> 2018-02-13 | B19: Шумов С.А. | C19: 0 | E19: =IFERROR(Февраль[[#This Row],[Показание одометра машины на конец дня, км]]-Февраль[[#This Row],[Показание одометра машины на начало дня, км]]+T19,"") -> 0 | F19: =IF(Февраль[[#This Row],[Дата]]="","",SUMPRODUCT([1]Февраль!$E$4:$E$153*([1]Февраль!$F$4:$F$153=$O$4)*([1]Февраль!$D$4:$D$153=Январь[[#This Row],[Дата]]))) ->  | G19: =IF(Февраль[[#This Row],[Дата]]="","",M18) ->  | H19: 29511 | I19: 29516 | J19: =IFERROR(IF(W19="",Февраль[[#This Row],[Показание счетчика моточасов спецоборудования на конец дня, м/ч]],Февраль[[#This Row],[Показание счетчика моточасов спецоборудования на конец дня, м/ч]]+1)-Февраль[[#This Row],[Показание счетчика моточасов спецоборудования на начало дня, м/ч]],"") -> 5 | L19: =IF(Февраль[[#This Row],[Работа спецоборудования за день, м/ч]]="","",Февраль[[#This Row],[Работа спецоборудования за день, м/ч]]*$Z$2) -> 90.75 | M19: =IFERROR(IF(VLOOKUP(Февраль[Дата],S$2:U$3,3),IFERROR(IF(U19="",Февраль[[#This Row],[Выдано топливо, литр]],Февраль[[#This Row],[Выдано топливо, литр]]+U19)+Февраль[[#This Row],[Остаток топлива в баке на начало дня, литр]]-Февраль[[#This Row],[Фактический расход топлива, литр]],""),""),"") ->  | N19: =IFERROR(ROUND((Февраль[[#This Row],[Пройдено за день, км]]*0.01*$Y$2+Февраль[[#This Row],[Расход топлива на работу спецоборудования, литр]]),3)+X19,"") -> 90.75 | O19: =IF(Февраль[[#This Row],[Дата]]="","",IFERROR(ROUND(Февраль[[#This Row],[Расход топлива по норме, литр]]/VLOOKUP(Февраль[Дата],S$2:W$4,5),0)+Y19,)) -> 0 | P19: =IFERROR(Февраль[[#This Row],[Фактический расход топлива, литр]]-Февраль[[#This Row],[Расход топлива по норме, литр]],"") -> -90.75 | R19: =Февраль[[#This Row],[Дата]] -> 2018-02-13 | Z19: =Февраль[[#This Row],[Дата]] -> 2018-02-13
A20: =IFERROR(DATEVALUE((COUNT($A$6:A19)+1)&$P$1&$I$4),"") -> 2018-02-14 | B20: Шумов С.А. | C20: 0 | E20: =IFERROR(Февраль[[#This Row],[Показание одометра машины на конец дня, км]]-Февраль[[#This Row],[Показание одометра машины на начало дня, км]]+T20,"") -> 0 | F20: =IF(Февраль[[#This Row],[Дата]]="","",SUMPRODUCT([1]Февраль!$E$4:$E$153*([1]Февраль!$F$4:$F$153=$O$4)*([1]Февраль!$D$4:$D$153=Январь[[#This Row],[Дата]]))) ->  | G20: =IF(Февраль[[#This Row],[Дата]]="","",M19) ->  | H20: 29516 | I20: 29523 | J20: =IFERROR(IF(W20="",Февраль[[#This Row],[Показание счетчика моточасов спецоборудования на конец дня, м/ч]],Февраль[[#This Row],[Показание счетчика моточасов спецоборудования на конец дня, м/ч]]+1)-Февраль[[#This Row],[Показание счетчика моточасов спецоборудования на начало дня, м/ч]],"") -> 7 | L20: =IF(Февраль[[#This Row],[Работа спецоборудования за день, м/ч]]="","",Февраль[[#This Row],[Работа спецоборудования за день, м/ч]]*$Z$2) -> 127.05 | M20: =IFERROR(IF(VLOOKUP(Февраль[Дата],S$2:U$3,3),IFERROR(IF(U20="",Февраль[[#This Row],[Выдано топливо, литр]],Февраль[[#This Row],[Выдано топливо, литр]]+U20)+Февраль[[#This Row],[Остаток топлива в баке на начало дня, литр]]-Февраль[[#This Row],[Фактический расход топлива, литр]],""),""),"") ->  | N20: =IFERROR(ROUND((Февраль[[#This Row],[Пройдено за день, км]]*0.01*$Y$2+Февраль[[#This Row],[Расход топлива на работу спецоборудования, литр]]),3)+X20,"") -> 127.05 | O20: =IF(Февраль[[#This Row],[Дата]]="","",IFERROR(ROUND(Февраль[[#This Row],[Расход топлива по норме, литр]]/VLOOKUP(Февраль[Дата],S$2:W$4,5),0)+Y20,)) -> 0 | P20: =IFERROR(Февраль[[#This Row],[Фактический расход топлива, литр]]-Февраль[[#This Row],[Расход топлива по норме, литр]],"") -> -127.05 | R20: =Февраль[[#This Row],[Дата]] -> 2018-02-14 | Z20: =Февраль[[#This Row],[Дата]] -> 2018-02-14
A21: =IFERROR(DATEVALUE((COUNT($A$6:A20)+1)&$P$1&$I$4),"") -> 2018-02-15 | B21: Шумов С.А. | C21: 0 | E21: =IFERROR(Февраль[[#This Row],[Показание одометра машины на конец дня, км]]-Февраль[[#This Row],[Показание одометра машины на начало дня, км]]+T21,"") -> 0 | F21: =IF(Февраль[[#This Row],[Дата]]="","",SUMPRODUCT([1]Февраль!$E$4:$E$153*([1]Февраль!$F$4:$F$153=$O$4)*([1]Февраль!$D$4:$D$153=Январь[[#This Row],[Дата]]))) ->  | G21: =IF(Февраль[[#This Row],[Дата]]="","",M20) ->  | H21: 29523 | I21: 29527 | J21: =IFERROR(IF(W21="",Февраль[[#This Row],[Показание счетчика моточасов спецоборудования на конец дня, м/ч]],Февраль[[#This Row],[Показание счетчика моточасов спецоборудования на конец дня, м/ч]]+1)-Февраль[[#This Row],[Показание счетчика моточасов спецоборудования на начало дня, м/ч]],"") -> 4 | L21: =IF(Февраль[[#This Row],[Работа спецоборудования за день, м/ч]]="","",Февраль[[#This Row],[Работа спецоборудования за день, м/ч]]*$Z$2) -> 72.6 | M21: =IFERROR(IF(VLOOKUP(Февраль[Дата],S$2:U$3,3),IFERROR(IF(U21="",Февраль[[#This Row],[Выдано топливо, литр]],Февраль[[#This Row],[Выдано топливо, литр]]+U21)+Февраль[[#This Row],[Остаток топлива в баке на начало дня, литр]]-Февраль[[#This Row],[Фактический расход топлива, литр]],""),""),"") ->  | N21: =IFERROR(ROUND((Февраль[[#This Row],[Пройдено за день, км]]*0.01*$Y$2+Февраль[[#This Row],[Расход топлива на работу спецоборудования, литр]]),3)+X21,"") -> 72.6 | O21: =IF(Февраль[[#This Row],[Дата]]="","",IFERROR(ROUND(Февраль[[#This Row],[Расход топлива по норме, литр]]/VLOOKUP(Февраль[Дата],S$2:W$4,5),0)+Y21,)) -> 0 | P21: =IFERROR(Февраль[[#This Row],[Фактический расход топлива, литр]]-Февраль[[#This Row],[Расход топлива по норме, литр]],"") -> -72.6 | R21: =Февраль[[#This Row],[Дата]] -> 2018-02-15 | Y21: -2 | Z21: =Февраль[[#This Row],[Дата]] -> 2018-02-15
A22: =IFERROR(DATEVALUE((COUNT($A$6:A21)+1)&$P$1&$I$4),"") -> 2018-02-16 | B22: Григоренко А.И. | C22: 0 | E22: =IFERROR(Февраль[[#This Row],[Показание одометра машины на конец дня, км]]-Февраль[[#This Row],[Показание одометра машины на начало дня, км]]+T22,"") -> 0 | F22: =IF(Февраль[[#This Row],[Дата]]="","",SUMPRODUCT([1]Февраль!$E$4:$E$153*([1]Февраль!$F$4:$F$153=$O$4)*([1]Февраль!$D$4:$D$153=Январь[[#This Row],[Дата]]))) ->  | G22: =IF(Февраль[[#This Row],[Дата]]="","",M21) ->  | H22: 29527 | I22: 29538 | J22: =IFERROR(IF(W22="",Февраль[[#This Row],[Показание счетчика моточасов спецоборудования на конец дня, м/ч]],Февраль[[#This Row],[Показание счетчика моточасов спецоборудования на конец дня, м/ч]]+1)-Февраль[[#This Row],[Показание счетчика моточасов спецоборудования на начало дня, м/ч]],"") -> 11 | L22: =IF(Февраль[[#This Row],[Работа спецоборудования за день, м/ч]]="","",Февраль[[#This Row],[Работа спецоборудования за день, м/ч]]*$Z$2) -> 199.65 | M22: =IFERROR(IF(VLOOKUP(Февраль[Дата],S$2:U$3,3),IFERROR(IF(U22="",Февраль[[#This Row],[Выдано топливо, литр]],Февраль[[#This Row],[Выдано топливо, литр]]+U22)+Февраль[[#This Row],[Остаток топлива в баке на начало дня, литр]]-Февраль[[#This Row],[Фактический расход топлива, литр]],""),""),"") ->  | N22: =IFERROR(ROUND((Февраль[[#This Row],[Пройдено за день, км]]*0.01*$Y$2+Февраль[[#This Row],[Расход топлива на работу спецоборудования, литр]]),3)+X22,"") -> 199.65 | O22: =IF(Февраль[[#This Row],[Дата]]="","",IFERROR(ROUND(Февраль[[#This Row],[Расход топлива по норме, литр]]/VLOOKUP(Февраль[Дата],S$2:W$4,5),0)+Y22,)) -> 0 | P22: =IFERROR(Февраль[[#This Row],[Фактический расход топлива, литр]]-Февраль[[#This Row],[Расход топлива по норме, литр]],"") -> -199.65 | R22: =Февраль[[#This Row],[Дата]] -> 2018-02-16 | Z22: =Февраль[[#This Row],[Дата]] -> 2018-02-16
A23: =IFERROR(DATEVALUE((COUNT($A$6:A22)+1)&$P$1&$I$4),"") -> 2018-02-17 | B23: Григоренко А.И. | C23: 0 | E23: =IFERROR(Февраль[[#This Row],[Показание одометра машины на конец дня, км]]-Февраль[[#This Row],[Показание одометра машины на начало дня, км]]+T23,"") -> 0 | F23: =IF(Февраль[[#This Row],[Дата]]="","",SUMPRODUCT([1]Февраль!$E$4:$E$153*([1]Февраль!$F$4:$F$153=$O$4)*([1]Февраль!$D$4:$D$153=Январь[[#This Row],[Дата]]))) ->  | G23: =IF(Февраль[[#This Row],[Дата]]="","",M22) ->  | H23: 29538 | I23: 29548 | J23: =IFERROR(IF(W23="",Февраль[[#This Row],[Показание счетчика моточасов спецоборудования на конец дня, м/ч]],Февраль[[#This Row],[Показание счетчика моточасов спецоборудования на конец дня, м/ч]]+1)-Февраль[[#This Row],[Показание счетчика моточасов спецоборудования на начало дня, м/ч]],"") -> 10 | L23: =IF(Февраль[[#This Row],[Работа спецоборудования за день, м/ч]]="","",Февраль[[#This Row],[Работа спецоборудования за день, м/ч]]*$Z$2) -> 181.5 | M23: =IFERROR(IF(VLOOKUP(Февраль[Дата],S$2:U$3,3),IFERROR(IF(U23="",Февраль[[#This Row],[Выдано топливо, литр]],Февраль[[#This Row],[Выдано топливо, литр]]+U23)+Февраль[[#This Row],[Остаток топлива в баке на начало дня, литр]]-Февраль[[#This Row],[Фактический расход топлива, литр]],""),""),"") ->  | N23: =IFERROR(ROUND((Февраль[[#This Row],[Пройдено за день, км]]*0.01*$Y$2+Февраль[[#This Row],[Расход топлива на работу спецоборудования, литр]]),3)+X23,"") -> 181.5 | O23: =IF(Февраль[[#This Row],[Дата]]="","",IFERROR(ROUND(Февраль[[#This Row],[Расход топлива по норме, литр]]/VLOOKUP(Февраль[Дата],S$2:W$4,5),0)+Y23,)) -> 0 | P23: =IFERROR(Февраль[[#This Row],[Фактический расход топлива, литр]]-Февраль[[#This Row],[Расход топлива по норме, литр]],"") -> -181.5 | R23: =Февраль[[#This Row],[Дата]] -> 2018-02-17 | U23: 340 | Y23: 6 | Z23: =Февраль[[#This Row],[Дата]] -> 2018-02-17
A24: =IFERROR(DATEVALUE((COUNT($A$6:A23)+1)&$P$1&$I$4),"") -> 2018-02-18 | B24: Григоренко А.И. | C24: 0 | E24: =IFERROR(Февраль[[#This Row],[Показание одометра машины на конец дня, км]]-Февраль[[#This Row],[Показание одометра машины на начало дня, км]]+T24,"") -> 0 | F24: =IF(Февраль[[#This Row],[Дата]]="","",SUMPRODUCT([1]Февраль!$E$4:$E$153*([1]Февраль!$F$4:$F$153=$O$4)*([1]Февраль!$D$4:$D$153=Январь[[#This Row],[Дата]]))) ->  | G24: =IF(Февраль[[#This Row],[Дата]]="","",M23) ->  | H24: 29548 | I24: 29559 | J24: =IFERROR(IF(W24="",Февраль[[#This Row],[Показание счетчика моточасов спецоборудования на конец дня, м/ч]],Февраль[[#This Row],[Показание счетчика моточасов спецоборудования на конец дня, м/ч]]+1)-Февраль[[#This Row],[Показание счетчика моточасов спецоборудования на начало дня, м/ч]],"") -> 11 | L24: =IF(Февраль[[#This Row],[Работа спецоборудования за день, м/ч]]="","",Февраль[[#This Row],[Работа спецоборудования за день, м/ч]]*$Z$2) -> 199.65 | M24: =IFERROR(IF(VLOOKUP(Февраль[Дата],S$2:U$3,3),IFERROR(IF(U24="",Февраль[[#This Row],[Выдано топливо, литр]],Февраль[[#This Row],[Выдано топливо, литр]]+U24)+Февраль[[#This Row],[Остаток топлива в баке на начало дня, литр]]-Февраль[[#This Row],[Фактический расход топлива, литр]],""),""),"") ->  | N24: =IFERROR(ROUND((Февраль[[#This Row],[Пройдено за день, км]]*0.01*$Y$2+Февраль[[#This Row],[Расход топлива на работу спецоборудования, литр]]),3)+X24,"") -> 199.65 | O24: =IF(Февраль[[#This Row],[Дата]]="","",IFERROR(ROUND(Февраль[[#This Row],[Расход топлива по норме, литр]]/VLOOKUP(Февраль[Дата],S$2:W$4,5),0)+Y24,)) -> 0 | P24: =IFERROR(Февраль[[#This Row],[Фактический расход топлива, литр]]-Февраль[[#This Row],[Расход топлива по норме, литр]],"") -> -199.65 | R24: =Февраль[[#This Row],[Дата]] -> 2018-02-18 | Z24: =Февраль[[#This Row],[Дата]] -> 2018-02-18
A25: =IFERROR(DATEVALUE((COUNT($A$6:A24)+1)&$P$1&$I$4),"") -> 2018-02-19 | B25: Григоренко А.И. | C25: 0 | E25: =IFERROR(Февраль[[#This Row],[Показание одометра машины на конец дня, км]]-Февраль[[#This Row],[Показание одометра машины на начало дня, км]]+T25,"") -> 0 | F25: =IF(Февраль[[#This Row],[Дата]]="","",SUMPRODUCT([1]Февраль!$E$4:$E$153*([1]Февраль!$F$4:$F$153=$O$4)*([1]Февраль!$D$4:$D$153=Январь[[#This Row],[Дата]]))) ->  | G25: =IF(Февраль[[#This Row],[Дата]]="","",M24) ->  | H25: 29559 | I25: 29561 | J25: =IFERROR(IF(W25="",Февраль[[#This Row],[Показание счетчика моточасов спецоборудования на конец дня, м/ч]],Февраль[[#This Row],[Показание счетчика моточасов спецоборудования на конец дня, м/ч]]+1)-Февраль[[#This Row],[Показание счетчика моточасов спецоборудования на начало дня, м/ч]],"") -> 2 | L25: =IF(Февраль[[#This Row],[Работа спецоборудования за день, м/ч]]="","",Февраль[[#This Row],[Работа спецоборудования за день, м/ч]]*$Z$2) -> 36.3 | M25: =IFERROR(IF(VLOOKUP(Февраль[Дата],S$2:U$3,3),IFERROR(IF(U25="",Февраль[[#This Row],[Выдано топливо, литр]],Февраль[[#This Row],[Выдано топливо, литр]]+U25)+Февраль[[#This Row],[Остаток топлива в баке на начало дня, литр]]-Февраль[[#This Row],[Фактический расход топлива, литр]],""),""),"") ->  | N25: =IFERROR(ROUND((Февраль[[#This Row],[Пройдено за день, км]]*0.01*$Y$2+Февраль[[#This Row],[Расход топлива на работу спецоборудования, литр]]),3)+X25,"") -> 36.3 | O25: =IF(Февраль[[#This Row],[Дата]]="","",IFERROR(ROUND(Февраль[[#This Row],[Расход топлива по норме, литр]]/VLOOKUP(Февраль[Дата],S$2:W$4,5),0)+Y25,)) -> 0 | P25: =IFERROR(Февраль[[#This Row],[Фактический расход топлива, литр]]-Февраль[[#This Row],[Расход топлива по норме, литр]],"") -> -36.3 | R25: =Февраль[[#This Row],[Дата]] -> 2018-02-19 | U25: 210 | Z25: =Февраль[[#This Row],[Дата]] -> 2018-02-19
A26: =IFERROR(DATEVALUE((COUNT($A$6:A25)+1)&$P$1&$I$4),"") -> 2018-02-20 | B26: Григоренко А.И. | C26: 0 | E26: =IFERROR(Февраль[[#This Row],[Показание одометра машины на конец дня, км]]-Февраль[[#This Row],[Показание одометра машины на начало дня, км]]+T26,"") -> 0 | F26: =IF(Февраль[[#This Row],[Дата]]="","",SUMPRODUCT([1]Февраль!$E$4:$E$153*([1]Февраль!$F$4:$F$153=$O$4)*([1]Февраль!$D$4:$D$153=Январь[[#This Row],[Дата]]))) ->  | G26: =IF(Февраль[[#This Row],[Дата]]="","",M25) ->  | H26: 29561 | I26: 29561 | J26: =IFERROR(IF(W26="",Февраль[[#This Row],[Показание счетчика моточасов спецоборудования на конец дня, м/ч]],Февраль[[#This Row],[Показание счетчика моточасов спецоборудования на конец дня, м/ч]]+1)-Февраль[[#This Row],[Показание счетчика моточасов спецоборудования на начало дня, м/ч]],"") -> 0 | L26: =IF(Февраль[[#This Row],[Работа спецоборудования за день, м/ч]]="","",Февраль[[#This Row],[Работа спецоборудования за день, м/ч]]*$Z$2) -> 0 | M26: =IFERROR(IF(VLOOKUP(Февраль[Дата],S$2:U$3,3),IFERROR(IF(U26="",Февраль[[#This Row],[Выдано топливо, литр]],Февраль[[#This Row],[Выдано топливо, литр]]+U26)+Февраль[[#This Row],[Остаток топлива в баке на начало дня, литр]]-Февраль[[#This Row],[Фактический расход топлива, литр]],""),""),"") ->  | N26: =IFERROR(ROUND((Февраль[[#This Row],[Пройдено за день, км]]*0.01*$Y$2+Февраль[[#This Row],[Расход топлива на работу спецоборудования, литр]]),3)+X26,"") -> 0 | O26: =IF(Февраль[[#This Row],[Дата]]="","",IFERROR(ROUND(Февраль[[#This Row],[Расход топлива по норме, литр]]/VLOOKUP(Февраль[Дата],S$2:W$4,5),0)+Y26,)) -> 0 | P26: =IFERROR(Февраль[[#This Row],[Фактический расход топлива, литр]]-Февраль[[#This Row],[Расход топлива по норме, литр]],"") -> 0 | R26: =Февраль[[#This Row],[Дата]] -> 2018-02-20 | Z26: =Февраль[[#This Row],[Дата]] -> 2018-02-20
A27: =IFERROR(DATEVALUE((COUNT($A$6:A26)+1)&$P$1&$I$4),"") -> 2018-02-21 | B27: Григоренко А.И. | C27: 0 | E27: =IFERROR(Февраль[[#This Row],[Показание одометра машины на конец дня, км]]-Февраль[[#This Row],[Показание одометра машины на начало дня, км]]+T27,"") -> 0 | F27: =IF(Февраль[[#This Row],[Дата]]="","",SUMPRODUCT([1]Февраль!$E$4:$E$153*([1]Февраль!$F$4:$F$153=$O$4)*([1]Февраль!$D$4:$D$153=Январь[[#This Row],[Дата]]))) ->  | G27: =IF(Февраль[[#This Row],[Дата]]="","",M26) ->  | H27: 29561 | I27: 29570 | J27: =IFERROR(IF(W27="",Февраль[[#This Row],[Показание счетчика моточасов спецоборудования на конец дня, м/ч]],Февраль[[#This Row],[Показание счетчика моточасов спецоборудования на конец дня, м/ч]]+1)-Февраль[[#This Row],[Показание счетчика моточасов спецоборудования на начало дня, м/ч]],"") -> 9 | L27: =IF(Февраль[[#This Row],[Работа спецоборудования за день, м/ч]]="","",Февраль[[#This Row],[Работа спецоборудования за день, м/ч]]*$Z$2) -> 163.35 | M27: =IFERROR(IF(VLOOKUP(Февраль[Дата],S$2:U$3,3),IFERROR(IF(U27="",Февраль[[#This Row],[Выдано топливо, литр]],Февраль[[#This Row],[Выдано топливо, литр]]+U27)+Февраль[[#This Row],[Остаток топлива в баке на начало дня, литр]]-Февраль[[#This Row],[Фактический расход топлива, литр]],""),""),"") ->  | N27: =IFERROR(ROUND((Февраль[[#This Row],[Пройдено за день, км]]*0.01*$Y$2+Февраль[[#This Row],[Расход топлива на работу спецоборудования, литр]]),3)+X27,"") -> 163.35 | O27: =IF(Февраль[[#This Row],[Дата]]="","",IFERROR(ROUND(Февраль[[#This Row],[Расход топлива по норме, литр]]/VLOOKUP(Февраль[Дата],S$2:W$4,5),0)+Y27,)) -> 0 | P27: =IFERROR(Февраль[[#This Row],[Фактический расход топлива, литр]]-Февраль[[#This Row],[Расход топлива по норме, литр]],"") -> -163.35 | R27: =Февраль[[#This Row],[Дата]] -> 2018-02-21 | Z27: =Февраль[[#This Row],[Дата]] -> 2018-02-21
A28: =IFERROR(DATEVALUE((COUNT($A$6:A27)+1)&$P$1&$I$4),"") -> 2018-02-22 | B28: Григоренко А.И. | C28: 0 | E28: =IFERROR(Февраль[[#This Row],[Показание одометра машины на конец дня, км]]-Февраль[[#This Row],[Показание одометра машины на начало дня, км]]+T28,"") -> 0 | F28: =IF(Февраль[[#This Row],[Дата]]="","",SUMPRODUCT([1]Февраль!$E$4:$E$153*([1]Февраль!$F$4:$F$153=$O$4)*([1]Февраль!$D$4:$D$153=Январь[[#This Row],[Дата]]))) ->  | G28: =IF(Февраль[[#This Row],[Дата]]="","",M27) ->  | H28: 29570 | I28: 29581 | J28: =IFERROR(IF(W28="",Февраль[[#This Row],[Показание счетчика моточасов спецоборудования на конец дня, м/ч]],Февраль[[#This Row],[Показание счетчика моточасов спецоборудования на конец дня, м/ч]]+1)-Февраль[[#This Row],[Показание счетчика моточасов спецоборудования на начало дня, м/ч]],"") -> 11 | L28: =IF(Февраль[[#This Row],[Работа спецоборудования за день, м/ч]]="","",Февраль[[#This Row],[Работа спецоборудования за день, м/ч]]*$Z$2) -> 199.65 | M28: =IFERROR(IF(VLOOKUP(Февраль[Дата],S$2:U$3,3),IFERROR(IF(U28="",Февраль[[#This Row],[Выдано топливо, литр]],Февраль[[#This Row],[Выдано топливо, литр]]+U28)+Февраль[[#This Row],[Остаток топлива в баке на начало дня, литр]]-Февраль[[#This Row],[Фактический расход топлива, литр]],""),""),"") ->  | N28: =IFERROR(ROUND((Февраль[[#This Row],[Пройдено за день, км]]*0.01*$Y$2+Февраль[[#This Row],[Расход топлива на работу спецоборудования, литр]]),3)+X28,"") -> 199.65 | O28: =IF(Февраль[[#This Row],[Дата]]="","",IFERROR(ROUND(Февраль[[#This Row],[Расход топлива по норме, литр]]/VLOOKUP(Февраль[Дата],S$2:W$4,5),0)+Y28,)) -> 0 | P28: =IFERROR(Февраль[[#This Row],[Фактический расход топлива, литр]]-Февраль[[#This Row],[Расход топлива по норме, литр]],"") -> -199.65 | R28: =Февраль[[#This Row],[Дата]] -> 2018-02-22 | U28: 190 | Z28: =Февраль[[#This Row],[Дата]] -> 2018-02-22
A29: =IFERROR(DATEVALUE((COUNT($A$6:A28)+1)&$P$1&$I$4),"") -> 2018-02-23 | B29: Григоренко А.И. | C29: 0 | E29: =IFERROR(Февраль[[#This Row],[Показание одометра машины на конец дня, км]]-Февраль[[#This Row],[Показание одометра машины на начало дня, км]]+T29,"") -> 0 | F29: =IF(Февраль[[#This Row],[Дата]]="","",SUMPRODUCT([1]Февраль!$E$4:$E$153*([1]Февраль!$F$4:$F$153=$O$4)*([1]Февраль!$D$4:$D$153=Январь[[#This Row],[Дата]]))) ->  | G29: =IF(Февраль[[#This Row],[Дата]]="","",M28) ->  | H29: 29581 | I29: 29592 | J29: =IFERROR(IF(W29="",Февраль[[#This Row],[Показание счетчика моточасов спецоборудования на конец дня, м/ч]],Февраль[[#This Row],[Показание счетчика моточасов спецоборудования на конец дня, м/ч]]+1)-Февраль[[#This Row],[Показание счетчика моточасов спецоборудования на начало дня, м/ч]],"") -> 11 | L29: =IF(Февраль[[#This Row],[Работа спецоборудования за день, м/ч]]="","",Февраль[[#This Row],[Работа спецоборудования за день, м/ч]]*$Z$2) -> 199.65 | M29: =IFERROR(IF(VLOOKUP(Февраль[Дата],S$2:U$3,3),IFERROR(IF(U29="",Февраль[[#This Row],[Выдано топливо, литр]],Февраль[[#This Row],[Выдано топливо, литр]]+U29)+Февраль[[#This Row],[Остаток топлива в баке на начало дня, литр]]-Февраль[[#This Row],[Фактический расход топлива, литр]],""),""),"") ->  | N29: =IFERROR(ROUND((Февраль[[#This Row],[Пройдено за день, км]]*0.01*$Y$2+Февраль[[#This Row],[Расход топлива на работу спецоборудования, литр]]),3)+X29,"") -> 199.65 | O29: =IF(Февраль[[#This Row],[Дата]]="","",IFERROR(ROUND(Февраль[[#This Row],[Расход топлива по норме, литр]]/VLOOKUP(Февраль[Дата],S$2:W$4,5),0)+Y29,)) -> 0 | P29: =IFERROR(Февраль[[#This Row],[Фактический расход топлива, литр]]-Февраль[[#This Row],[Расход топлива по норме, литр]],"") -> -199.65 | R29: =Февраль[[#This Row],[Дата]] -> 2018-02-23 | Z29: =Февраль[[#This Row],[Дата]] -> 2018-02-23
A30: =IFERROR(DATEVALUE((COUNT($A$6:A29)+1)&$P$1&$I$4),"") -> 2018-02-24 | B30: Григоренко А.И. | C30: 0 | E30: =IFERROR(Февраль[[#This Row],[Показание одометра машины на конец дня, км]]-Февраль[[#This Row],[Показание одометра машины на начало дня, км]]+T30,"") -> 0 | F30: =IF(Февраль[[#This Row],[Дата]]="","",SUMPRODUCT([1]Февраль!$E$4:$E$153*([1]Февраль!$F$4:$F$153=$O$4)*([1]Февраль!$D$4:$D$153=Январь[[#This Row],[Дата]]))) ->  | G30: =IF(Февраль[[#This Row],[Дата]]="","",M29) ->  | H30: 29592 | I30: 29604 | J30: =IFERROR(IF(W30="",Февраль[[#This Row],[Показание счетчика моточасов спецоборудования на конец дня, м/ч]],Февраль[[#This Row],[Показание счетчика моточасов спецоборудования на конец дня, м/ч]]+1)-Февраль[[#This Row],[Показание счетчика моточасов спецоборудования на начало дня, м/ч]],"") -> 12 | L30: =IF(Февраль[[#This Row],[Работа спецоборудования за день, м/ч]]="","",Февраль[[#This Row],[Работа спецоборудования за день, м/ч]]*$Z$2) -> 217.8 | M30: =IFERROR(IF(VLOOKUP(Февраль[Дата],S$2:U$3,3),IFERROR(IF(U30="",Февраль[[#This Row],[Выдано топливо, литр]],Февраль[[#This Row],[Выдано топливо, литр]]+U30)+Февраль[[#This Row],[Остаток топлива в баке на начало дня, литр]]-Февраль[[#This Row],[Фактический расход топлива, литр]],""),""),"") ->  | N30: =IFERROR(ROUND((Февраль[[#This Row],[Пройдено за день, км]]*0.01*$Y$2+Февраль[[#This Row],[Расход топлива на работу спецоборудования, литр]]),3)+X30,"") -> 217.8 | O30: =IF(Февраль[[#This Row],[Дата]]="","",IFERROR(ROUND(Февраль[[#This Row],[Расход топлива по норме, литр]]/VLOOKUP(Февраль[Дата],S$2:W$4,5),0)+Y30,)) -> 0 | P30: =IFERROR(Февраль[[#This Row],[Фактический расход топлива, литр]]-Февраль[[#This Row],[Расход топлива по норме, литр]],"") -> -217.8 | R30: =Февраль[[#This Row],[Дата]] -> 2018-02-24 | U30: 240 | Z30: =Февраль[[#This Row],[Дата]] -> 2018-02-24
A31: =IFERROR(DATEVALUE((COUNT($A$6:A30)+1)&$P$1&$I$4),"") -> 2018-02-25 | B31: Григоренко А.И. | C31: 0 | E31: =IFERROR(Февраль[[#This Row],[Показание одометра машины на конец дня, км]]-Февраль[[#This Row],[Показание одометра машины на начало дня, км]]+T31,"") -> 0 | F31: =IF(Февраль[[#This Row],[Дата]]="","",SUMPRODUCT([1]Февраль!$E$4:$E$153*([1]Февраль!$F$4:$F$153=$O$4)*([1]Февраль!$D$4:$D$153=Январь[[#This Row],[Дата]]))) ->  | G31: =IF(Февраль[[#This Row],[Дата]]="","",M30) ->  | H31: 29604 | I31: 29621 | J31: =IFERROR(IF(W31="",Февраль[[#This Row],[Показание счетчика моточасов спецоборудования на конец дня, м/ч]],Февраль[[#This Row],[Показание счетчика моточасов спецоборудования на конец дня, м/ч]]+1)-Февраль[[#This Row],[Показание счетчика моточасов спецоборудования на начало дня, м/ч]],"") -> 17 | L31: =IF(Февраль[[#This Row],[Работа спецоборудования за день, м/ч]]="","",Февраль[[#This Row],[Работа спецоборудования за день, м/ч]]*$Z$2) -> 308.55 | M31: =IFERROR(IF(VLOOKUP(Февраль[Дата],S$2:U$3,3),IFERROR(IF(U31="",Февраль[[#This Row],[Выдано топливо, литр]],Февраль[[#This Row],[Выдано топливо, литр]]+U31)+Февраль[[#This Row],[Остаток топлива в баке на начало дня, литр]]-Февраль[[#This Row],[Фактический расход топлива, литр]],""),""),"") ->  | N31: =IFERROR(ROUND((Февраль[[#This Row],[Пройдено за день, км]]*0.01*$Y$2+Февраль[[#This Row],[Расход топлива на работу спецоборудования, литр]]),3)+X31,"") -> 308.55 | O31: =IF(Февраль[[#This Row],[Дата]]="","",IFERROR(ROUND(Февраль[[#This Row],[Расход топлива по норме, литр]]/VLOOKUP(Февраль[Дата],S$2:W$4,5),0)+Y31,)) -> 0 | P31: =IFERROR(Февраль[[#This Row],[Фактический расход топлива, литр]]-Февраль[[#This Row],[Расход топлива по норме, литр]],"") -> -308.55 | R31: =Февраль[[#This Row],[Дата]] -> 2018-02-25 | U31: 230 | Z31: =Февраль[[#This Row],[Дата]] -> 2018-02-25
A32: =IFERROR(DATEVALUE((COUNT($A$6:A31)+1)&$P$1&$I$4),"") -> 2018-02-26 | B32: Григоренко А.И. | C32: 0 | E32: =IFERROR(Февраль[[#This Row],[Показание одометра машины на конец дня, км]]-Февраль[[#This Row],[Показание одометра машины на начало дня, км]]+T32,"") -> 0 | F32: =IF(Февраль[[#This Row],[Дата]]="","",SUMPRODUCT([1]Февраль!$E$4:$E$153*([1]Февраль!$F$4:$F$153=$O$4)*([1]Февраль!$D$4:$D$153=Январь[[#This Row],[Дата]]))) ->  | G32: =IF(Февраль[[#This Row],[Дата]]="","",M31) ->  | H32: 29621 | I32: 29633 | J32: =IFERROR(IF(W32="",Февраль[[#This Row],[Показание счетчика моточасов спецоборудования на конец дня, м/ч]],Февраль[[#This Row],[Показание счетчика моточасов спецоборудования на конец дня, м/ч]]+1)-Февраль[[#This Row],[Показание счетчика моточасов спецоборудования на начало дня, м/ч]],"") -> 12 | L32: =IF(Февраль[[#This Row],[Работа спецоборудования за день, м/ч]]="","",Февраль[[#This Row],[Работа спецоборудования за день, м/ч]]*$Z$2) -> 217.8 | M32: =IFERROR(IF(VLOOKUP(Февраль[Дата],S$2:U$3,3),IFERROR(IF(U32="",Февраль[[#This Row],[Выдано топливо, литр]],Февраль[[#This Row],[Выдано топливо, литр]]+U32)+Февраль[[#This Row],[Остаток топлива в баке на начало дня, литр]]-Февраль[[#This Row],[Фактический расход топлива, литр]],""),""),"") ->  | N32: =IFERROR(ROUND((Февраль[[#This Row],[Пройдено за день, км]]*0.01*$Y$2+Февраль[[#This Row],[Расход топлива на работу спецоборудования, литр]]),3)+X32,"") -> 217.8 | O32: =IF(Февраль[[#This Row],[Дата]]="","",IFERROR(ROUND(Февраль[[#This Row],[Расход топлива по норме, литр]]/VLOOKUP(Февраль[Дата],S$2:W$4,5),0)+Y32,)) -> 0 | P32: =IFERROR(Февраль[[#This Row],[Фактический расход топлива, литр]]-Февраль[[#This Row],[Расход топлива по норме, литр]],"") -> -217.8 | R32: =Февраль[[#This Row],[Дата]] -> 2018-02-26 | U32: 290 | Z32: =Февраль[[#This Row],[Дата]] -> 2018-02-26
A33: =IFERROR(DATEVALUE((COUNT($A$6:A32)+1)&$P$1&$I$4),"") -> 2018-02-27 | B33: Григоренко А.И. | C33: 0 | E33: =IFERROR(Февраль[[#This Row],[Показание одометра машины на конец дня, км]]-Февраль[[#This Row],[Показание одометра машины на начало дня, км]]+T33,"") -> 0 | F33: =IF(Февраль[[#This Row],[Дата]]="","",SUMPRODUCT([1]Февраль!$E$4:$E$153*([1]Февраль!$F$4:$F$153=$O$4)*([1]Февраль!$D$4:$D$153=Январь[[#This Row],[Дата]]))) ->  | G33: =IF(Февраль[[#This Row],[Дата]]="","",M32) ->  | H33: 29633 | I33: 29648 | J33: =IFERROR(IF(W33="",Февраль[[#This Row],[Показание счетчика моточасов спецоборудования на конец дня, м/ч]],Февраль[[#This Row],[Показание счетчика моточасов спецоборудования на конец дня, м/ч]]+1)-Февраль[[#This Row],[Показание счетчика моточасов спецоборудования на начало дня, м/ч]],"") -> 15 | L33: =IF(Февраль[[#This Row],[Работа спецоборудования за день, м/ч]]="","",Февраль[[#This Row],[Работа спецоборудования за день, м/ч]]*$Z$2) -> 272.25 | M33: =IFERROR(IF(VLOOKUP(Февраль[Дата],S$2:U$3,3),IFERROR(IF(U33="",Февраль[[#This Row],[Выдано топливо, литр]],Февраль[[#This Row],[Выдано топливо, литр]]+U33)+Февраль[[#This Row],[Остаток топлива в баке на начало дня, литр]]-Февраль[[#This Row],[Фактический расход топлива, литр]],""),""),"") ->  | N33: =IFERROR(ROUND((Февраль[[#This Row],[Пройдено за день, км]]*0.01*$Y$2+Февраль[[#This Row],[Расход топлива на работу спецоборудования, литр]]),3)+X33,"") -> 272.25 | O33: =IF(Февраль[[#This Row],[Дата]]="","",IFERROR(ROUND(Февраль[[#This Row],[Расход топлива по норме, литр]]/VLOOKUP(Февраль[Дата],S$2:W$4,5),0)+Y33,)) -> 0 | P33: =IFERROR(Февраль[[#This Row],[Фактический расход топлива, литр]]-Февраль[[#This Row],[Расход топлива по норме, литр]],"") -> -272.25 | R33: =Февраль[[#This Row],[Дата]] -> 2018-02-27 | U33: 210 | Z33: =Февраль[[#This Row],[Дата]] -> 2018-02-27
A34: =IFERROR(DATEVALUE((COUNT($A$6:A33)+1)&$P$1&$I$4),"") -> 2018-02-28 | B34: Григоренко А.И. | C34: 0 | E34: =IFERROR(Февраль[[#This Row],[Показание одометра машины на конец дня, км]]-Февраль[[#This Row],[Показание одометра машины на начало дня, км]]+T34,"") -> 0 | F34: =IF(Февраль[[#This Row],[Дата]]="","",SUMPRODUCT([1]Февраль!$E$4:$E$153*([1]Февраль!$F$4:$F$153=$O$4)*([1]Февраль!$D$4:$D$153=Январь[[#This Row],[Дата]]))) ->  | G34: =IF(Февраль[[#This Row],[Дата]]="","",M33) ->  | H34: 29648 | I34: 29668 | J34: =IFERROR(IF(W34="",Февраль[[#This Row],[Показание счетчика моточасов спецоборудования на конец дня, м/ч]],Февраль[[#This Row],[Показание счетчика моточасов спецоборудования на конец дня, м/ч]]+1)-Февраль[[#This Row],[Показание счетчика моточасов спецоборудования на начало дня, м/ч]],"") -> 20 | L34: =IF(Февраль[[#This Row],[Работа спецоборудования за день, м/ч]]="","",Февраль[[#This Row],[Работа спецоборудования за день, м/ч]]*$Z$2) -> 363 | M34: =IFERROR(IF(VLOOKUP(Февраль[Дата],S$2:U$3,3),IFERROR(IF(U34="",Февраль[[#This Row],[Выдано топливо, литр]],Февраль[[#This Row],[Выдано топливо, литр]]+U34)+Февраль[[#This Row],[Остаток топлива в баке на начало дня, литр]]-Февраль[[#This Row],[Фактический расход топлива, литр]],""),""),"") ->  | N34: =IFERROR(ROUND((Февраль[[#This Row],[Пройдено за день, км]]*0.01*$Y$2+Февраль[[#This Row],[Расход топлива на работу спецоборудования, литр]]),3)+X34,"") -> 363 | O34: =IF(Февраль[[#This Row],[Дата]]="","",IFERROR(ROUND(Февраль[[#This Row],[Расход топлива по норме, литр]]/VLOOKUP(Февраль[Дата],S$2:W$4,5),0)+Y34,)) -> 0 | P34: =IFERROR(Февраль[[#This Row],[Фактический расход топлива, литр]]-Февраль[[#This Row],[Расход топлива по норме, литр]],"") -> -363 | R34: =Февраль[[#This Row],[Дата]] -> 2018-02-28 | U34: 270 | Z34: =Февраль[[#This Row],[Дата]] -> 2018-02-28
A35: =IFERROR(DATEVALUE((COUNT($A$6:A34)+1)&$P$1&$I$4),"") ->  | E35: =IFERROR(Февраль[[#This Row],[Показание одометра машины на конец дня, км]]-Февраль[[#This Row],[Показание одометра машины на начало дня, км]]+T35,"") ->  | F35: =IF(Февраль[[#This Row],[Дата]]="","",SUMPRODUCT([1]Февраль!$E$4:$E$153*([1]Февраль!$F$4:$F$153=$O$4)*([1]Февраль!$D$4:$D$153=Январь[[#This Row],[Дата]]))) ->  | G35: =IF(Февраль[[#This Row],[Дата]]="","",M34) ->  | J35: =IFERROR(IF(W35="",Февраль[[#This Row],[Показание счетчика моточасов спецоборудования на конец дня, м/ч]],Февраль[[#This Row],[Показание счетчика моточасов спецоборудования на конец дня, м/ч]]+1)-Февраль[[#This Row],[Показание счетчика моточасов спецоборудования на начало дня, м/ч]],"") ->  | L35: =IF(Февраль[[#This Row],[Работа спецоборудования за день, м/ч]]="","",Февраль[[#This Row],[Работа спецоборудования за день, м/ч]]*$Z$2) ->  | M35: =IFERROR(IF(VLOOKUP(Февраль[Дата],S$2:U$3,3),IFERROR(IF(U35="",Февраль[[#This Row],[Выдано топливо, литр]],Февраль[[#This Row],[Выдано топливо, литр]]+U35)+Февраль[[#This Row],[Остаток топлива в баке на начало дня, литр]]-Февраль[[#This Row],[Фактический расход топлива, литр]],""),""),"") ->  | N35: =IFERROR(ROUND((Февраль[[#This Row],[Пройдено за день, км]]*0.01*$Y$2+Февраль[[#This Row],[Расход топлива на работу спецоборудования, литр]]),3)+X35,"") ->  | O35: =IF(Февраль[[#This Row],[Дата]]="","",IFERROR(ROUND(Февраль[[#This Row],[Расход топлива по норме, литр]]/VLOOKUP(Февраль[Дата],S$2:W$4,5),0)+Y35,)) ->  | P35: =IFERROR(Февраль[[#This Row],[Фактический расход топлива, литр]]-Февраль[[#This Row],[Расход топлива по норме, литр]],"") ->  | R35: =Февраль[[#This Row],[Дата]] ->  | Z35: =Февраль[[#This Row],[Дата]] -> 
A36: =IFERROR(DATEVALUE((COUNT($A$6:A35)+1)&$P$1&$I$4),"") ->  | E36: =IFERROR(Февраль[[#This Row],[Показание одометра машины на конец дня, км]]-Февраль[[#This Row],[Показание одометра машины на начало дня, км]]+T36,"") ->  | F36: =IF(Февраль[[#This Row],[Дата]]="","",SUMPRODUCT([1]Февраль!$E$4:$E$153*([1]Февраль!$F$4:$F$153=$O$4)*([1]Февраль!$D$4:$D$153=Январь[[#This Row],[Дата]]))) ->  | G36: =IF(Февраль[[#This Row],[Дата]]="","",M35) ->  | J36: =IFERROR(IF(W36="",Февраль[[#This Row],[Показание счетчика моточасов спецоборудования на конец дня, м/ч]],Февраль[[#This Row],[Показание счетчика моточасов спецоборудования на конец дня, м/ч]]+1)-Февраль[[#This Row],[Показание счетчика моточасов спецоборудования на начало дня, м/ч]],"") ->  | L36: =IF(Февраль[[#This Row],[Работа спецоборудования за день, м/ч]]="","",Февраль[[#This Row],[Работа спецоборудования за день, м/ч]]*$Z$2) ->  | M36: =IFERROR(IF(VLOOKUP(Февраль[Дата],S$2:U$3,3),IFERROR(IF(U36="",Февраль[[#This Row],[Выдано топливо, литр]],Февраль[[#This Row],[Выдано топливо, литр]]+U36)+Февраль[[#This Row],[Остаток топлива в баке на начало дня, литр]]-Февраль[[#This Row],[Фактический расход топлива, литр]],""),""),"") ->  | N36: =IFERROR(ROUND((Февраль[[#This Row],[Пройдено за день, км]]*0.01*$Y$2+Февраль[[#This Row],[Расход топлива на работу спецоборудования, литр]]),3)+X36,"") ->  | O36: =IF(Февраль[[#This Row],[Дата]]="","",IFERROR(ROUND(Февраль[[#This Row],[Расход топлива по норме, литр]]/VLOOKUP(Февраль[Дата],S$2:W$4,5),0)+Y36,)) ->  | P36: =IFERROR(Февраль[[#This Row],[Фактический расход топлива, литр]]-Февраль[[#This Row],[Расход топлива по норме, литр]],"") ->  | R36: =Февраль[[#This Row],[Дата]] ->  | Z36: =Февраль[[#This Row],[Дата]] -> 
A37: =IFERROR(DATEVALUE((COUNT($A$6:A36)+1)&$P$1&$I$4),"") ->  | E37: =IFERROR(Февраль[[#This Row],[Показание одометра машины на конец дня, км]]-Февраль[[#This Row],[Показание одометра машины на начало дня, км]]+T37,"") ->  | F37: =IF(Февраль[[#This Row],[Дата]]="","",SUMPRODUCT([1]Февраль!$E$4:$E$153*([1]Февраль!$F$4:$F$153=$O$4)*([1]Февраль!$D$4:$D$153=Январь[[#This Row],[Дата]]))) ->  | G37: =IF(Февраль[[#This Row],[Дата]]="","",M36) ->  | J37: =IFERROR(IF(W37="",Февраль[[#This Row],[Показание счетчика моточасов спецоборудования на конец дня, м/ч]],Февраль[[#This Row],[Показание счетчика моточасов спецоборудования на конец дня, м/ч]]+1)-Февраль[[#This Row],[Показание счетчика моточасов спецоборудования на начало дня, м/ч]],"") ->  | L37: =IF(Февраль[[#This Row],[Работа спецоборудования за день, м/ч]]="","",Февраль[[#This Row],[Работа спецоборудования за день, м/ч]]*$Z$2) ->  | M37: =IFERROR(IF(VLOOKUP(Февраль[Дата],S$2:U$3,3),IFERROR(IF(U37="",Февраль[[#This Row],[Выдано топливо, литр]],Февраль[[#This Row],[Выдано топливо, литр]]+U37)+Февраль[[#This Row],[Остаток топлива в баке на начало дня, литр]]-Февраль[[#This Row],[Фактический расход топлива, литр]],""),""),"") ->  | N37: =IFERROR(ROUND((Февраль[[#This Row],[Пройдено за день, км]]*0.01*$Y$2+Февраль[[#This Row],[Расход топлива на работу спецоборудования, литр]]),3)+X37,"") ->  | O37: =IF(Февраль[[#This Row],[Дата]]="","",IFERROR(ROUND(Февраль[[#This Row],[Расход топлива по норме, литр]]/VLOOKUP(Февраль[Дата],S$2:W$4,5),0)+Y37,)) ->  | P37: =IFERROR(Февраль[[#This Row],[Фактический расход топлива, литр]]-Февраль[[#This Row],[Расход топлива по норме, литр]],"") ->  | R37: =Февраль[[#This Row],[Дата]] ->  | Z37: =Февраль[[#This Row],[Дата]] -> 
A38: Итог | E38: =SUBTOTAL(109,Февраль[Пройдено за день, км]) -> 0 | F38: =SUBTOTAL(109,Февраль[Выдано топливо, литр]) ->  | J38: =SUBTOTAL(109,Февраль[Работа спецоборудования за день, м/ч]) -> 259 | K38: =SUBTOTAL(109,Февраль[Количество ходок]) -> 0 | L38: =SUBTOTAL(109,Февраль[Расход топлива на работу спецоборудования, литр]) -> 4700.85 | N38: =SUBTOTAL(109,Февраль[Расход топлива по норме, литр]) -> 4700.85 | O38: =SUBTOTAL(109,Февраль[Фактический расход топлива, литр]) -> 0 | P38: =SUBTOTAL(109,Февраль[Отклонение от нормы (Перерасход(+), экономия(-)), литр]) -> -4700.85 | R38: 1-я пол. | S38: =SUMIFS(S$7:S$37,INDIRECT("Февраль[Дата]"),">="&$S$2,INDIRECT("Февраль[Дата]"),"<="&$T$2)+IF(MONTH($T$2)<>MONTH($S$2),INDIRECT(TEXT($A$7-1,"ММММ")&"!F38")-SUM(INDIRECT(TEXT($A$7-1,"ММММ")&"!V1:V2"))) ->  | T38: =SUMIFS(T$7:T$37,INDIRECT("Февраль[Дата]"),">="&$S$2,INDIRECT("Февраль[Дата]"),"<="&$T$2)+IF(MONTH($T$2)<>MONTH($S$2),INDIRECT(TEXT($A$7-1,"ММММ")&"!F38")-SUM(INDIRECT(TEXT($A$7-1,"ММММ")&"!V1:V2"))) ->  | Z38: 1-я пол.
K39: =SUMIFS(K7:K37,A7:A37,">="&$S$2,A7:A37,"<="&$T$2) -> 0 | R39: 2-я пол. | S39: =SUMIFS(S$7:S$37,INDIRECT("Февраль[Дата]"),">="&$S$3,INDIRECT("Февраль[Дата]"),"<="&$T$3)+IF(MONTH($T$3)<>MONTH($S$3),INDIRECT(TEXT($A$7-1,"ММММ")&"!F38")-SUM(INDIRECT(TEXT($A$7-1,"ММММ")&"!V1:V2"))) -> 0 | T39: =SUMIFS(T$7:T$37,INDIRECT("Февраль[Дата]"),">="&$S$3,INDIRECT("Февраль[Дата]"),"<="&$T$3)+IF(MONTH($T$3)<>MONTH($S$3),INDIRECT(TEXT($A$7-1,"ММММ")&"!F38")-SUM(INDIRECT(TEXT($A$7-1,"ММММ")&"!V1:V2"))) -> 0 | U39: 1980 | V39: 0 | W39: 0 | X39: 0 | Y39: 6 | Z39: 2-я пол.
K40: =SUMIFS(K7:K37,A7:A37,">="&$S$3,A7:A37,"<="&$T$3) -> 0

Sheet ТС
G1: Зима : | H1: 01.11 - 31.03 | L1: Зима : | M1: 01.11 - 31.03 | P1: Расчет максимальной нормы расхода ДТ (литр/100км)
G2: Лето: | H2: 01.04 - 30.10 | L2: Лето: | M2: 01.04 - 30.10
G3: доп.коэфф-т к норме | L3: доп.коэфф-т к норме
A4: № п/п | B4: Номер гос.регистрации / Заводской номер | C4: Километраж, км | D4: Спецоборудование, м/ч | E4: Топливо, л | F4: Базовая норма расхода на 100 км | G4: Зима | H4: Лето | I4: Итога норма а/м ЗИМА | J4: Итога норма а/м ЛЕТО | K4: Базовая норма расхода на 1 мото/час | L4: "Зима" | M4: "Лето" | N4: Итога норма а/м "ЗИМА" | O4: Итога норма а/м "ЛЕТО" | P4: Норма на 100 км, литров | Q4: движение с манипулятором | R4: Тоннаж | S4: Литры | T4: На движение с грузом | U4: Тоннаж1 | V4: К-т загрузки | W4: ИТОГ | X4: 25% за работу в городе с населением свыше 3 млн. человек | Y4: 10 % за работу зимой
A5: 1 | B5: Норма 1 | D5: 29170 | E5: 350 | G5: 10 | H5: 0 | I5: =F5*(100+G5)% -> 0 | J5: =F5*(100+H5)% -> 0 | K5: 16.5 | L5: 10 | M5: 0 | N5: =K5*(100+L5)% -> 18.15 | O5: =K5*(100+M5)% -> 16.5 | P5: 32.2 | Q5: =R5*S5 -> 2.938 | R5: 2.26 | S5: 1.3 | T5: =U5*V5*S5 -> 5.2 | U5: 8 | V5: 0.5 | W5: =P5+Q5+T5 -> 40.338 | X5: =W5*25%+W5 -> 50.4225 | Y5: =W5*10%+X5 -> 54.4563
A6: 2 | B6: Норма 2 | E6: 350 | F6: =F5-F5*5% -> 0 | G6: 10 | H6: 0 | I6: =F6*(100+G6)% -> 0 | J6: =F6*(100+H6)% -> 0 | K6: =K5-K5*5% -> 15.675 | L6: 10 | M6: 0 | N6: =K6*(100+L6)% -> 17.2425 | O6: =K6*(100+M6)% -> 15.675 | P6: 32.2 | Q6: =R6*S6 -> 2.938 | R6: 2.26 | S6: 1.3 | T6: =U6*V6*S6 -> 5.2 | U6: 8 | V6: 0.5 | W6: =P6+Q6+T6 -> 40.338 | X6: =W6*25%+W6 -> 50.4225 | Y6: =W6*10%+X6 -> 54.4563
A7: 3 | B7: Норма 3 | E7: 350 | F7: =F5-F5*10% -> 0 | G7: 10 | H7: 0 | I7: =F7*(100+G7)% -> 0 | J7: 0 | K7: =K5-K5*10% -> 14.85 | L7: 10 | M7: 0 | N7: =K7*(100+L7)% -> 16.335 | O7: =K7*(100+M7)% -> 14.85 | P7: 32.2 | Q7: =R7*S7 -> 2.938 | R7: 2.26 | S7: 1.3 | T7: =U7*V7*S7 -> 5.2 | U7: 8 | V7: 0.5 | W7: =P7+Q7+T7 -> 40.338 | X7: =W7*25%+W7 -> 50.4225 | Y7: =W7*10%+X7 -> 54.4563
A8: 4 | B8: Переход 1 | E8: 350 | G8: 10 | H8: 0 | I8: =F8*(100+G8)% -> 0 | J8: =F8*(100+H8)% -> 0 | K8: 5.5 | L8: 10 | M8: 0 | N8: =K8*(100+L8)% -> 6.05 | O8: =K8*(100+M8)% -> 5.5 | Q8: =R8*S8 -> 0 | T8: =U8*V8*S8 -> 0 | W8: =P8+Q8+T8 -> 0 | X8: =W8*25%+W8 -> 0 | Y8: =W8*10%+X8 -> 0
A9: 5 | B9: Переход 2 | E9: 350 | F9: =F8-F8*5% -> 0 | G9: 10 | H9: 0 | I9: =F9*(100+G9)% -> 0 | J9: =F9*(100+H9)% -> 0 | K9: =K8-K8*5% -> 5.225 | L9: 10 | M9: 0 | N9: =K9*(100+L9)% -> 5.7475 | O9: =K9*(100+M9)% -> 5.225 | Q9: =R9*S9 -> 0 | T9: =U9*V9*S9 -> 0 | W9: =P9+Q9+T9 -> 0 | X9: =W9*25%+W9 -> 0 | Y9: =W9*10%+X9 -> 0
A10: 6 | B10: Переход 3 | E10: 350 | F10: =F8-F8*10% -> 0 | G10: 10 | H10: 0 | I10: =F10*(100+G10)% -> 0 | J10: 0 | K10: =K8-K8*10% -> 4.95 | L10: 10 | M10: 0 | N10: =K10*(100+L10)% -> 5.445 | O10: =K10*(100+M10)% -> 4.95 | Q10: =R10*S10 -> 0 | T10: =U10*V10*S10 -> 0 | W10: =P10+Q10+T10 -> 0 | X10: =W10*25%+W10 -> 0 | Y10: =W10*10%+X10 -> 0
B12: Зима
B13: Лето
B15: Январь
B16: Февраль
B17: Март
B18: Апрель
B19: Май
B20: Июнь
B21: Июль
B22: Август
B23: Сентябрь
B24: Октябрь
B25: Ноябрь
B26: Декабрь
B28: Норма 1
B29: Норма 2
B30: Норма 3
B31: Переход 1
B32: Переход 2
B33: Переход 3

Sheet Сотрудники
B1: Ф.И.О.
B2: Григоренко А.И.
B3: Дьяков В.М.
B4: Евстратов А.В.
B5: Зяблов А.А
B6: Ильин А.Г.
B7: Ильин Е.Н.
B8: Ильичев Ю.Ф.
B9: Кобалян М.В.
B10: Лагутенко А.А.
B11: Малышев О.С.
B12: Никляев В.А.
B13: Сергеев Д.О.
B14: Фрук П.И.
B15: Шумов С.А.
B16: Ястребов Е.В.
